Body_Code,Body_Name,Service_Area,Responsible_Unit,Expense_Type,Expense_Code,Narrative,Date,Transaction_Number,Amount,Supplier_Name
http://statistics.data.gov.uk/id/local-authority/38,Oxfordshire County Council,Transport,Area Cyclic,Private Contractors,56400,Major Contracts,01/11/2010,3350202913,3312.6,Eynsham Parish Council
http://statistics.data.gov.uk/id/local-authority/38,Oxfordshire County Council,SCS Pooled Budgets,PD Pool Continuing Care Home Support,Other Agency and Contracted Services,57302,Home Support (Ext) Continuing Care,01/11/2010,3350210877,2507.05,Active Assistance
http://statistics.data.gov.uk/id/local-authority/38,Oxfordshire County Council,SCS Pooled Budgets,OP Pool Continuing Care Home Support,Other Agency and Contracted Services,57302,Home Support (Ext) Continuing Care,01/11/2010,3350210887,1319.5,Active Assistance
http://statistics.data.gov.uk/id/local-authority/38,Oxfordshire County Council,SCS Pooled Budgets,PD Pool Continuing Care Home Support,Other Agency and Contracted Services,57302,Home Support (Ext) Continuing Care,01/11/2010,3350210888,1167.25,Active Assistance
http://statistics.data.gov.uk/id/local-authority/38,Oxfordshire County Council,Early Years & Family Support,Supp Graduate Leader,"Equipment, Furniture and Materials",41100,Educational Supplies,01/11/2010,3350211005,1048,The Slade Day Nursery
http://statistics.data.gov.uk/id/local-authority/38,Oxfordshire County Council,SCS Pooled Budgets,PD Pool Continuing Care Home Support,Other Agency and Contracted Services,57302,Home Support (Ext) Continuing Care,01/11/2010,3350211086,1218,Active Assistance
http://statistics.data.gov.uk/id/local-authority/38,Oxfordshire County Council,Early Years & Family Support,Aim Higher Funding,Services,44500,Other Hired & Contra,01/11/2010,3350211406,15000,OXON FAMILY ARENA
http://statistics.data.gov.uk/id/local-authority/38,Oxfordshire County Council,Highways & Transport,Highways General Operational,Miscellaneous Expenses,48200,Miscellaneous Insura,01/11/2010,3350211410,944.99,PRODDOW MACKAY SOLICIT
http://statistics.data.gov.uk/id/local-authority/38,Oxfordshire County Council,STD Insurance,Liability,Liability Insurance Fund Rev AC,Z5257,Liability IF Fees,01/11/2010,3350211414,1815.5,DWF LLP
http://statistics.data.gov.uk/id/local-authority/38,Oxfordshire County Council,SCS Other Cost Centres,Control Account Trojan Residential Care,Balance Sheet General,B2040,ABACUS Accounts Payable Control A/c,01/11/2010,3350211415,32763.43,Coxwell Hall & Mews Nursing Home
http://statistics.data.gov.uk/id/local-authority/38,Oxfordshire County Council,Early Years & Family Support,Transport costs,Contract Hire/Leasing,33101,Home to School Trans,01/11/2010,3350211418,680,Jackie's Services
http://statistics.data.gov.uk/id/local-authority/38,Oxfordshire County Council,SCS Pooled Budgets,PD Pool Continuing Care Home Support,Other Agency and Contracted Services,57302,Home Support (Ext) Continuing Care,01/11/2010,3350211419,514.57,Bright Yellow Group Plc
http://statistics.data.gov.uk/id/local-authority/38,Oxfordshire County Council,SCS Pooled Budgets,OP Pool Continuing Care Home Support,Other Agency and Contracted Services,57302,Home Support (Ext) Continuing Care,01/11/2010,3350211420,2520.5,Bluebelles Ltd
http://statistics.data.gov.uk/id/local-authority/38,Oxfordshire County Council,Transport,Area Cyclic,Private Contractors,56400,Major Contracts,01/11/2010,3350212488,-3312.6,Eynsham Parish Council
http://statistics.data.gov.uk/id/local-authority/38,Oxfordshire County Council,Shared Service Centre,Servers,Communications and Computing,45700,Software,01/11/2010,4100354858,9800,Civica Services Ltd
http://statistics.data.gov.uk/id/local-authority/38,Oxfordshire County Council,Shared Service Centre,ICT Operations,Communications and Computing,45700,Software,01/11/2010,4100378758,2004,Wavetech Consultancy Ltd
http://statistics.data.gov.uk/id/local-authority/38,Oxfordshire County Council,Shared Service Centre,Maintenance,Communications and Computing,45700,Software,01/11/2010,4100378761,5204.96,Data Integration Ltd
http://statistics.data.gov.uk/id/local-authority/38,Oxfordshire County Council,Social & Community Services,Music Unallocable,"Equipment, Furniture and Materials",41619,Musical Instruments,01/11/2010,4100378763,1890.4,Heritage Music
http://statistics.data.gov.uk/id/local-authority/38,Oxfordshire County Council,Social & Community Services,Music Unallocable,"Equipment, Furniture and Materials",41619,Musical Instruments,01/11/2010,4100378763,2477,Heritage Music
http://statistics.data.gov.uk/id/local-authority/38,Oxfordshire County Council,Social & Community Services,Music Unallocable,"Equipment, Furniture and Materials",41619,Musical Instruments,01/11/2010,4100378767,4653,Heritage Music
http://statistics.data.gov.uk/id/local-authority/38,Oxfordshire County Council,Sustainable Development,LAA Reward Grants,Grants and Subscriptions,47100,Grants to Voluntary,01/11/2010,4100378768,10000,Oxfordshire Rural Community Council
http://statistics.data.gov.uk/id/local-authority/38,Oxfordshire County Council,Shared Service Centre,Adult Social Care & Children's Services,"Printing,Stationery and Gen Office Exp",43600,Books and Publicatio,01/11/2010,4100378783,525,Partridge & Print
http://statistics.data.gov.uk/id/local-authority/38,Oxfordshire County Council,Shared Service Centre,Central Overheads,Temporary Staff (NJC Green Book),16717,Tempry Staff (NJC) Agency Staff,01/11/2010,4100378947,1164.62,Champion Employment Ltd
http://statistics.data.gov.uk/id/local-authority/38,Oxfordshire County Council,Highways & Transport,Public Transport Policy Revenue Budget,Contract Hire/Leasing,33300,Transport (General),01/11/2010,4100379394,9832.07,First Great Western Ltd
http://statistics.data.gov.uk/id/local-authority/38,Oxfordshire County Council,Shared Service Centre,ICT Operations,Communications and Computing,45700,Software,01/11/2010,4100379762,18402.75,Sungard Public Sector Ltd
http://statistics.data.gov.uk/id/local-authority/38,Oxfordshire County Council,Shared Service Centre,ICT Operations,Communications and Computing,45801,IT Maintenance,01/11/2010,4100379763,9294.07,Sungard Public Sector Ltd
http://statistics.data.gov.uk/id/local-authority/38,Oxfordshire County Council,SCS Pooled Budgets,LD External Day Care Spot,Other Agency and Contracted Services,57400,Day Care External Pr,01/11/2010,4100380293,829.74,The Kingwood Trust
http://statistics.data.gov.uk/id/local-authority/38,Oxfordshire County Council,Early Years & Family Support,Relvnt 16&17 Lvg Ind,Other Agency and Contracted Services,57200,Supported Accommodat,01/11/2010,4100380487,1117.08,Stonham Bicester Project
http://statistics.data.gov.uk/id/local-authority/38,Oxfordshire County Council,Highways Management,Error Suspense,Capital Expenditure,CFEA1,Surveys and site investigations - General,01/11/2010,4100380580,1885,Kevan Witt (Global Surveys)
http://statistics.data.gov.uk/id/local-authority/38,Oxfordshire County Council,Social & Community Services,Procurement,Direct Transport Costs,31301,Vehicle Fuel,01/11/2010,4100380873,466.08,Arval UK Limited
http://statistics.data.gov.uk/id/local-authority/38,Oxfordshire County Council,Shared Service Centre,Central Team SSC,Communications and Computing,45100,Postage,01/11/2010,4100380888,3929.19,Royal Mail
http://statistics.data.gov.uk/id/local-authority/38,Oxfordshire County Council,Highways & Transport,S38 Inspections and Other Costs,Training Expenses,19990,Other Training Expenses,01/11/2010,4100382299,1919.4,Coventry University
http://statistics.data.gov.uk/id/local-authority/38,Oxfordshire County Council,Sustainable Development,LAA Reward Grants,Grants and Subscriptions,47100,Grants to Voluntary,01/11/2010,4100382359,6500,Oxfordshire Rural Community Council
http://statistics.data.gov.uk/id/local-authority/38,Oxfordshire County Council,Shared Service Centre,Income Team,Communications and Computing,45100,Postage,01/11/2010,4100382596,1653.76,Royal Mail Group Ltd
http://statistics.data.gov.uk/id/local-authority/38,Oxfordshire County Council,Early Years & Family Support,Southwark - Section 20,Other Agency and Contracted Services,57710,Children's Homes,01/11/2010,4100383584,1911.63,The Ley Community
http://statistics.data.gov.uk/id/local-authority/38,Oxfordshire County Council,Social & Community Services,Older People  Service Agreements (Base),Services,44500,Other Hired & Contra,01/11/2010,4100383705,2425,Citizens Advice Bureau
http://statistics.data.gov.uk/id/local-authority/38,Oxfordshire County Council,Social & Community Services,Older People  Service Agreements (Base),Services,44500,Other Hired & Contra,01/11/2010,4100383706,3900,Citizens Advice Bureau
http://statistics.data.gov.uk/id/local-authority/38,Oxfordshire County Council,Shared Service Centre,Desktop,Communications and Computing,45801,IT Maintenance,01/11/2010,4100383946,512,European Electronique Ltd
http://statistics.data.gov.uk/id/local-authority/38,Oxfordshire County Council,Social & Community Services,Communications,Communications and Computing,45200,Telephony - Equipment,01/11/2010,4100384683,450,Vodafone Ltd (Corporate) PAYMENT ON
http://statistics.data.gov.uk/id/local-authority/38,Oxfordshire County Council,Raising Achievement Service,School Improvement Partners,Rent and Rates,24200,Hire of Facilities,01/11/2010,4100384818,663.83,Oxford Thames Four Pillars Hotel
http://statistics.data.gov.uk/id/local-authority/38,Oxfordshire County Council,Raising Achievement Service,School Improvement Partners,Rent and Rates,24200,Hire of Facilities,01/11/2010,4100384818,1820,Oxford Thames Four Pillars Hotel
http://statistics.data.gov.uk/id/local-authority/38,Oxfordshire County Council,Sustainable Development,LAA Reward Grants,Grants and Subscriptions,47100,Grants to Voluntary,01/11/2010,4100384952,-10000,Oxfordshire Rural Community Council
http://statistics.data.gov.uk/id/local-authority/38,Oxfordshire County Council,Shared Service Centre,Oxford City Investment,Communications and Computing,45801,IT Maintenance,01/11/2010,4100385255,500,European Electronique Ltd
http://statistics.data.gov.uk/id/local-authority/38,Oxfordshire County Council,Shared Service Centre,Desktop,Communications and Computing,45801,IT Maintenance,01/11/2010,4100385259,2337.5,European Electronique Ltd
http://statistics.data.gov.uk/id/local-authority/38,Oxfordshire County Council,Raising Achievement Service,Maths:inc AFL/APP,Rent and Rates,24200,Hire of Facilities,01/11/2010,4100385842,1054.47,Hawkwell House Hotel
http://statistics.data.gov.uk/id/local-authority/38,Oxfordshire County Council,Social & Community Services,Reprographics Unit,"Printing,Stationery and Gen Office Exp",43500,Printing & Duplicating,01/11/2010,4100385890,579,Banbury Litho Limited
http://statistics.data.gov.uk/id/local-authority/38,Oxfordshire County Council,Social & Community Services,Reprographics Unit,"Printing,Stationery and Gen Office Exp",43500,Printing & Duplicating,01/11/2010,4100385891,1100,Banbury Litho Limited
http://statistics.data.gov.uk/id/local-authority/38,Oxfordshire County Council,Social & Community Services,Reprographics Unit,"Printing,Stationery and Gen Office Exp",43500,Printing & Duplicating,01/11/2010,4100385892,2426,Banbury Litho Limited
http://statistics.data.gov.uk/id/local-authority/38,Oxfordshire County Council,Social & Community Services,Library Collections Management,"Equipment, Furniture and Materials",41601,Library & Curriculum Books,01/11/2010,4100386091,699.56,The Holt Jackson Book Co. Ltd.
http://statistics.data.gov.uk/id/local-authority/38,Oxfordshire County Council,Sustainable Development,Rights of Way Maintenance,"Equipment, Furniture and Materials",40600,Operational Equipmen,01/11/2010,4100386202,6030,Kavan Ring
http://statistics.data.gov.uk/id/local-authority/38,Oxfordshire County Council,Sustainable Development,Rights of Way Maintenance,"Equipment, Furniture and Materials",40600,Operational Equipmen,01/11/2010,4100386202,640,Kavan Ring
http://statistics.data.gov.uk/id/local-authority/38,Oxfordshire County Council,Shared Service Centre,Schools Support Service,Communications and Computing,45801,IT Maintenance,01/11/2010,4100386360,465,Pirean Limited
http://statistics.data.gov.uk/id/local-authority/38,Oxfordshire County Council,Property Services,Knights Court,Communications and Computing,45100,Postage,01/11/2010,4100386495,3000,Neopost Finance Ltd
http://statistics.data.gov.uk/id/local-authority/38,Oxfordshire County Council,Social & Community Services,Oxfordshire Museum,Capital Expenditure,CCAM1,Main Contract - Minor Works,01/11/2010,4100386675,1875,SolidArt Ltd
http://statistics.data.gov.uk/id/local-authority/38,Oxfordshire County Council,Social & Community Services,Oxfordshire Museum,Capital Expenditure,CCAM1,Main Contract - Minor Works,01/11/2010,4100386676,5925,SolidArt Ltd
http://statistics.data.gov.uk/id/local-authority/38,Oxfordshire County Council,SCS Pooled Budgets,LD External Day Care Spot,Other Agency and Contracted Services,57400,Day Care External Pr,01/11/2010,4100387243,1344,HF TRUST Ltd
http://statistics.data.gov.uk/id/local-authority/38,Oxfordshire County Council,Property Services,County Hall,"Printing,Stationery and Gen Office Exp",43530,Paper,01/11/2010,4100387695,1068,Lyreco UK Ltd
http://statistics.data.gov.uk/id/local-authority/38,Oxfordshire County Council,Early Years & Family Support,Supp Graduate Leader,Rent and Rates,24200,Hire of Facilities,01/11/2010,4100388106,6120,North Oxfordshire Academy
http://statistics.data.gov.uk/id/local-authority/38,Oxfordshire County Council,Corporate Core Transformation,Audit Fee,Expenses,46510,Professional Fees,01/11/2010,4100388310,3057,Audit Commission
http://statistics.data.gov.uk/id/local-authority/38,Oxfordshire County Council,Corporate Core Transformation,Audit Fee,Expenses,46510,Professional Fees,01/11/2010,4100388311,22625,Audit Commission
http://statistics.data.gov.uk/id/local-authority/38,Oxfordshire County Council,Corporate Core Transformation,Audit Services,Services,44500,Other Hired & Contra,01/11/2010,4100388312,6900,Deloitte
http://statistics.data.gov.uk/id/local-authority/38,Oxfordshire County Council,Children & Young People,Recoupment Special,Voluntary Associations,55100,Fees to Non Maintain,01/11/2010,4100388318,18225,Chilworth House School
http://statistics.data.gov.uk/id/local-authority/38,Oxfordshire County Council,Corporate Core Transformation,Future Jobs Fund,Services,44500,Other Hired & Contra,01/11/2010,4100388328,1800,Age Concern Oxfordshire
http://statistics.data.gov.uk/id/local-authority/38,Oxfordshire County Council,"Commissioning, Performance & Quality Ass",Participation & Play,Services,44500,Other Hired & Contra,01/11/2010,4100388332,928,Donnington Doorstep
http://statistics.data.gov.uk/id/local-authority/38,Oxfordshire County Council,Highways & Transport,Bus Subsidy budget,Private Contractors,56100,Public Transport Rev,01/11/2010,4100388334,3666.67,City of Oxford Motor Services Ltd
http://statistics.data.gov.uk/id/local-authority/38,Oxfordshire County Council,Highways & Transport,Bus Subsidy budget,Private Contractors,56100,Public Transport Rev,01/11/2010,4100388336,1892.92,City of Oxford Motor Services Ltd
http://statistics.data.gov.uk/id/local-authority/38,Oxfordshire County Council,Highways & Transport,Bus Subsidy budget,Private Contractors,56100,Public Transport Rev,01/11/2010,4100388337,1722.04,City of Oxford Motor Services Ltd
http://statistics.data.gov.uk/id/local-authority/38,Oxfordshire County Council,Highways & Transport,Bus Subsidy budget,Private Contractors,56100,Public Transport Rev,01/11/2010,4100388338,636,Heyfordian Travel Ltd
http://statistics.data.gov.uk/id/local-authority/38,Oxfordshire County Council,Highways & Transport,Bus Subsidy budget,Private Contractors,56100,Public Transport Rev,01/11/2010,4100388339,5793.42,Heyfordian Travel Ltd
http://statistics.data.gov.uk/id/local-authority/38,Oxfordshire County Council,Highways & Transport,Rural Bus Subsidy Grant,Private Contractors,56100,Public Transport Rev,01/11/2010,4100388339,5793.42,Heyfordian Travel Ltd
http://statistics.data.gov.uk/id/local-authority/38,Oxfordshire County Council,Highways & Transport,Bus Subsidy budget,Private Contractors,56100,Public Transport Rev,01/11/2010,4100388340,9289.19,Heyfordian Travel Ltd
http://statistics.data.gov.uk/id/local-authority/38,Oxfordshire County Council,Highways & Transport,Rural Bus Subsidy Grant,Private Contractors,56100,Public Transport Rev,01/11/2010,4100388341,16292.34,Heyfordian Travel Ltd
http://statistics.data.gov.uk/id/local-authority/38,Oxfordshire County Council,Highways & Transport,Rural Bus Subsidy Grant,Private Contractors,56100,Public Transport Rev,01/11/2010,4100388342,5062.04,Heyfordian Travel Ltd
http://statistics.data.gov.uk/id/local-authority/38,Oxfordshire County Council,Highways & Transport,Bus Subsidy budget,Private Contractors,56100,Public Transport Rev,01/11/2010,4100388342,2550.06,Heyfordian Travel Ltd
http://statistics.data.gov.uk/id/local-authority/38,Oxfordshire County Council,Highways & Transport,Bus Subsidy budget,Private Contractors,56100,Public Transport Rev,01/11/2010,4100388343,17582.24,Heyfordian Travel Ltd
http://statistics.data.gov.uk/id/local-authority/38,Oxfordshire County Council,Highways & Transport,Rural Bus Subsidy Grant,Private Contractors,56100,Public Transport Rev,01/11/2010,4100388344,6844.86,Heyfordian Travel Ltd
http://statistics.data.gov.uk/id/local-authority/38,Oxfordshire County Council,Highways & Transport,Bus Subsidy budget,Private Contractors,56100,Public Transport Rev,01/11/2010,4100388345,3850.22,Motts Coaches (Aylesbury) Ltd
http://statistics.data.gov.uk/id/local-authority/38,Oxfordshire County Council,Highways & Transport,Rural Bus Subsidy Grant,Private Contractors,56100,Public Transport Rev,01/11/2010,4100388345,3850.22,Motts Coaches (Aylesbury) Ltd
http://statistics.data.gov.uk/id/local-authority/38,Oxfordshire County Council,Highways & Transport,Bus Subsidy budget,Private Contractors,56100,Public Transport Rev,01/11/2010,4100388346,3700.13,Motts Coaches (Aylesbury) Ltd
http://statistics.data.gov.uk/id/local-authority/38,Oxfordshire County Council,Highways & Transport,Bus Subsidy budget,Private Contractors,56100,Public Transport Rev,01/11/2010,4100388347,3571.34,Red Rose Travel
http://statistics.data.gov.uk/id/local-authority/38,Oxfordshire County Council,Early Years & Family Support,Young Carers Worker,Services,44500,Other Hired & Contra,01/11/2010,4100388348,5181.16,South and Vale Carers Centre Ltd
http://statistics.data.gov.uk/id/local-authority/38,Oxfordshire County Council,Highways & Transport,Bus Subsidy budget,Private Contractors,56100,Public Transport Rev,01/11/2010,4100388349,536.6,Thames Travel
http://statistics.data.gov.uk/id/local-authority/38,Oxfordshire County Council,Highways & Transport,Bus Subsidy budget,Private Contractors,56100,Public Transport Rev,01/11/2010,4100388350,12145.37,Thames Travel
http://statistics.data.gov.uk/id/local-authority/38,Oxfordshire County Council,Highways & Transport,Bus Subsidy budget,Private Contractors,56100,Public Transport Rev,01/11/2010,4100388351,3561.74,Thames Travel
http://statistics.data.gov.uk/id/local-authority/38,Oxfordshire County Council,Highways & Transport,Rural Bus Subsidy Grant,Private Contractors,56100,Public Transport Rev,01/11/2010,4100388352,979.48,Thames Travel
http://statistics.data.gov.uk/id/local-authority/38,Oxfordshire County Council,Highways & Transport,Bus Subsidy budget,Private Contractors,56100,Public Transport Rev,01/11/2010,4100388353,5253.56,Thames Travel
http://statistics.data.gov.uk/id/local-authority/38,Oxfordshire County Council,Highways & Transport,Bus Subsidy budget,Private Contractors,56100,Public Transport Rev,01/11/2010,4100388354,2582.26,Thames Travel
http://statistics.data.gov.uk/id/local-authority/38,Oxfordshire County Council,Highways & Transport,Bus Subsidy budget,Private Contractors,56100,Public Transport Rev,01/11/2010,4100388355,2671.3,Thames Travel
http://statistics.data.gov.uk/id/local-authority/38,Oxfordshire County Council,Highways & Transport,Bus Subsidy budget,Private Contractors,56100,Public Transport Rev,01/11/2010,4100388357,7636.27,Thames Travel
http://statistics.data.gov.uk/id/local-authority/38,Oxfordshire County Council,Highways & Transport,Bus Subsidy budget,Private Contractors,56100,Public Transport Rev,01/11/2010,4100388358,819.2,Thames Travel
http://statistics.data.gov.uk/id/local-authority/38,Oxfordshire County Council,Highways & Transport,Bus Subsidy budget,Private Contractors,56100,Public Transport Rev,01/11/2010,4100388359,2671.3,Thames Travel
http://statistics.data.gov.uk/id/local-authority/38,Oxfordshire County Council,Highways & Transport,Rural Bus Subsidy Grant,Private Contractors,56100,Public Transport Rev,01/11/2010,4100388360,3116.52,Thames Travel
http://statistics.data.gov.uk/id/local-authority/38,Oxfordshire County Council,Highways & Transport,Rural Bus Subsidy Grant,Private Contractors,56100,Public Transport Rev,01/11/2010,4100388361,1846.31,Thames Travel
http://statistics.data.gov.uk/id/local-authority/38,Oxfordshire County Council,Highways & Transport,Bus Subsidy budget,Private Contractors,56100,Public Transport Rev,01/11/2010,4100388363,12341.2,Whites Coaches Ltd
http://statistics.data.gov.uk/id/local-authority/38,Oxfordshire County Council,Highways & Transport,Rural Bus Subsidy Grant,Private Contractors,56100,Public Transport Rev,01/11/2010,4100388364,590.36,Whites Coaches Ltd
http://statistics.data.gov.uk/id/local-authority/38,Oxfordshire County Council,Highways & Transport,Rural Bus Subsidy Grant,Private Contractors,56100,Public Transport Rev,01/11/2010,4100388365,3615.2,Whites Coaches Ltd
http://statistics.data.gov.uk/id/local-authority/38,Oxfordshire County Council,Highways & Transport,Community Transport,Private Contractors,56100,Public Transport Rev,01/11/2010,4100388366,20368.46,Walters Limousines
http://statistics.data.gov.uk/id/local-authority/38,Oxfordshire County Council,Highways & Transport,Bus Subsidy budget,Private Contractors,56100,Public Transport Rev,01/11/2010,4100388367,587.79,R H Transport Services
http://statistics.data.gov.uk/id/local-authority/38,Oxfordshire County Council,"Commissioning, Performance & Quality Ass",Zone 1 - North,Contract Hire/Leasing,33101,Home to School Trans,01/11/2010,4100388368,971.78,R H Transport Services
http://statistics.data.gov.uk/id/local-authority/38,Oxfordshire County Council,"Commissioning, Performance & Quality Ass",Zone 4 - Vale,Contract Hire/Leasing,33101,Home to School Trans,01/11/2010,4100388371,1623.51,R H Transport Services
http://statistics.data.gov.uk/id/local-authority/38,Oxfordshire County Council,"Commissioning, Performance & Quality Ass",Zone 3 - West,Contract Hire/Leasing,33101,Home to School Trans,01/11/2010,4100388372,2549.53,R H Transport Services
http://statistics.data.gov.uk/id/local-authority/38,Oxfordshire County Council,"Commissioning, Performance & Quality Ass",Zone 2 - East,Contract Hire/Leasing,33101,Home to School Trans,01/11/2010,4100388373,2611.45,R H Transport Services
http://statistics.data.gov.uk/id/local-authority/38,Oxfordshire County Council,"Commissioning, Performance & Quality Ass",Zone 1 - North,Contract Hire/Leasing,33101,Home to School Trans,01/11/2010,4100388374,21315.32,R H Transport Services
http://statistics.data.gov.uk/id/local-authority/38,Oxfordshire County Council,"Commissioning, Performance & Quality Ass",Zone 1 - North,Contract Hire/Leasing,33101,Home to School Trans,01/11/2010,4100388375,2882.22,R H Transport Services
http://statistics.data.gov.uk/id/local-authority/38,Oxfordshire County Council,"Commissioning, Performance & Quality Ass",Zone 1 - North,Contract Hire/Leasing,33101,Home to School Trans,01/11/2010,4100388376,1040.41,R H Transport Services
http://statistics.data.gov.uk/id/local-authority/38,Oxfordshire County Council,"Commissioning, Performance & Quality Ass",Zone 4 - Vale,Contract Hire/Leasing,33101,Home to School Trans,01/11/2010,4100388377,2113.75,R H Transport Services
http://statistics.data.gov.uk/id/local-authority/38,Oxfordshire County Council,"Commissioning, Performance & Quality Ass",Zone 2 - East,Contract Hire/Leasing,33101,Home to School Trans,01/11/2010,4100388378,1715.21,R H Transport Services
http://statistics.data.gov.uk/id/local-authority/38,Oxfordshire County Council,Highways & Transport,Rural Bus Subsidy Grant,Private Contractors,56100,Public Transport Rev,01/11/2010,4100388379,4115.94,R H Transport Services
http://statistics.data.gov.uk/id/local-authority/38,Oxfordshire County Council,"Commissioning, Performance & Quality Ass",Zone 3 - West,Contract Hire/Leasing,33101,Home to School Trans,01/11/2010,4100388380,3510,R H Transport Services
http://statistics.data.gov.uk/id/local-authority/38,Oxfordshire County Council,Highways & Transport,Rural Bus Subsidy Grant,Private Contractors,56100,Public Transport Rev,01/11/2010,4100388381,602.42,The Villager Community
http://statistics.data.gov.uk/id/local-authority/38,Oxfordshire County Council,Highways & Transport,Bus Subsidy budget,Private Contractors,56100,Public Transport Rev,01/11/2010,4100388382,716.54,ARRIVA THE SHIRES LIMITED
http://statistics.data.gov.uk/id/local-authority/38,Oxfordshire County Council,Early Years & Family Support,Young Carers Worker,Services,44500,Other Hired & Contra,01/11/2010,4100388384,6434.5,SPURGEON'S
http://statistics.data.gov.uk/id/local-authority/38,Oxfordshire County Council,Early Years & Family Support,Young Carers Worker,Services,44500,Other Hired & Contra,01/11/2010,4100388385,5181.16,The Carers Centre (Oxford)
http://statistics.data.gov.uk/id/local-authority/38,Oxfordshire County Council,Highways & Transport,Public Transport Policy Revenue Budget,Private Contractors,56100,Public Transport Rev,01/11/2010,4100388387,1538.77,Watlington Community Interest
http://statistics.data.gov.uk/id/local-authority/38,Oxfordshire County Council,Property Services,Corporate Properties,Rent and Rates,24100,Rent,01/11/2010,4100388398,20642.72,Diocesan Trustees (Oxford) Ltd.
http://statistics.data.gov.uk/id/local-authority/38,Oxfordshire County Council,Social & Community Services,Procurement,"Clothing,Uniforms and Laundry",43100,"Clothing, Uniforms",01/11/2010,4100388399,15719.34,Lion Apparel Systems Ltd
http://statistics.data.gov.uk/id/local-authority/38,Oxfordshire County Council,Social & Community Services,Mental Capacity,Services,44500,Other Hired & Contra,01/11/2010,4100388400,5083.33,Oxford Advocacy Development Group
http://statistics.data.gov.uk/id/local-authority/38,Oxfordshire County Council,"Commissioning, Performance & Quality Ass",Participation & Play,Services,44500,Other Hired & Contra,01/11/2010,4100388401,2316,Oxfordshire Play Association
http://statistics.data.gov.uk/id/local-authority/38,Oxfordshire County Council,"Commissioning, Performance & Quality Ass",Participation & Play,Services,44500,Other Hired & Contra,01/11/2010,4100388402,667,Oxfordshire Playbus
http://statistics.data.gov.uk/id/local-authority/38,Oxfordshire County Council,Highways & Transport,Bus Subsidy budget,Private Contractors,56100,Public Transport Rev,01/11/2010,4100388406,6461.56,R H Transport Services
http://statistics.data.gov.uk/id/local-authority/38,Oxfordshire County Council,Property Services,Corporate Properties,Rent and Rates,24100,Rent,01/11/2010,4100388407,808.33,RUSSELL ESTATES LIMITED
http://statistics.data.gov.uk/id/local-authority/38,Oxfordshire County Council,"Commissioning, Performance & Quality Ass",Participation & Play,Services,44500,Other Hired & Contra,01/11/2010,4100388408,943,LETS PLAY PROJECT
http://statistics.data.gov.uk/id/local-authority/38,Oxfordshire County Council,Property Services,Corporate Properties,Rent and Rates,24500,Rates,01/11/2010,4100388410,955,The City and Council of Swansea
http://statistics.data.gov.uk/id/local-authority/38,Oxfordshire County Council,Property Services,Corporate Properties,Rent and Rates,24100,Rent,01/11/2010,4100388413,6157,The Magdalen Centre
http://statistics.data.gov.uk/id/local-authority/38,Oxfordshire County Council,"Commissioning, Performance & Quality Ass",Participation & Play,Services,44500,Other Hired & Contra,01/11/2010,4100388418,2833,Sunrise Multicultural Project
http://statistics.data.gov.uk/id/local-authority/38,Oxfordshire County Council,Social & Community Services,Local Involvement Networks ABG,Voluntary Associations,55400,Service Agreements-A,01/11/2010,4100388423,16725,Help and Care
http://statistics.data.gov.uk/id/local-authority/38,Oxfordshire County Council,Property Services,Corporate Properties,Rent and Rates,24100,Rent,01/11/2010,4100388424,650,Old Marston Village Hall
http://statistics.data.gov.uk/id/local-authority/38,Oxfordshire County Council,Property Services,Corporate Properties,Rent and Rates,24500,Rates,01/11/2010,4100388463,1309,Cherwell District Council
http://statistics.data.gov.uk/id/local-authority/38,Oxfordshire County Council,Property Services,Corporate Properties,Rent and Rates,24500,Rates,01/11/2010,4100388464,1675,Cherwell District Council
http://statistics.data.gov.uk/id/local-authority/38,Oxfordshire County Council,Property Services,Corporate Properties,Rent and Rates,24500,Rates,01/11/2010,4100388466,1045,Cherwell District Council
http://statistics.data.gov.uk/id/local-authority/38,Oxfordshire County Council,Property Services,Corporate Properties,Rent and Rates,24500,Rates,01/11/2010,4100388467,3771,Cherwell District Council
http://statistics.data.gov.uk/id/local-authority/38,Oxfordshire County Council,Property Services,Corporate Properties,Rent and Rates,24500,Rates,01/11/2010,4100388468,999,Cherwell District Council
http://statistics.data.gov.uk/id/local-authority/38,Oxfordshire County Council,Property Services,Corporate Properties,Rent and Rates,24500,Rates,01/11/2010,4100388469,654.63,Cherwell District Council
http://statistics.data.gov.uk/id/local-authority/38,Oxfordshire County Council,Property Services,Corporate Properties,Rent and Rates,24500,Rates,01/11/2010,4100388472,3602,Cherwell District Council
http://statistics.data.gov.uk/id/local-authority/38,Oxfordshire County Council,Property Services,Corporate Properties,Rent and Rates,24500,Rates,01/11/2010,4100388475,1080,Cherwell District Council
http://statistics.data.gov.uk/id/local-authority/38,Oxfordshire County Council,Property Services,Corporate Properties,Rent and Rates,24500,Rates,01/11/2010,4100388479,1885,Cherwell District Council
http://statistics.data.gov.uk/id/local-authority/38,Oxfordshire County Council,Property Services,Corporate Properties,Rent and Rates,24500,Rates,01/11/2010,4100388481,1403,Cherwell District Council
http://statistics.data.gov.uk/id/local-authority/38,Oxfordshire County Council,Property Services,Corporate Properties,Rent and Rates,24500,Rates,01/11/2010,4100388482,1907,Cherwell District Council
http://statistics.data.gov.uk/id/local-authority/38,Oxfordshire County Council,Property Services,Corporate Properties,Rent and Rates,24500,Rates,01/11/2010,4100388483,5920,Cherwell District Council
http://statistics.data.gov.uk/id/local-authority/38,Oxfordshire County Council,Property Services,Corporate Properties,Rent and Rates,24500,Rates,01/11/2010,4100388485,910,Cherwell District Council
http://statistics.data.gov.uk/id/local-authority/38,Oxfordshire County Council,Property Services,Corporate Properties,Rent and Rates,24500,Rates,01/11/2010,4100388486,1977,Cherwell District Council
http://statistics.data.gov.uk/id/local-authority/38,Oxfordshire County Council,Highways & Transport,Highways General Operational,Rent and Rates,24500,Rates,01/11/2010,4100388489,538,Cherwell District Council
http://statistics.data.gov.uk/id/local-authority/38,Oxfordshire County Council,Sustainable Development,Contract Management,Rent and Rates,24500,Rates,01/11/2010,4100388490,787,Cherwell District Council
http://statistics.data.gov.uk/id/local-authority/38,Oxfordshire County Council,Highways & Transport,Water Eaton P & R (North Oxford),Rent and Rates,24500,Rates,01/11/2010,4100388491,3639,Cherwell District Council
http://statistics.data.gov.uk/id/local-authority/38,Oxfordshire County Council,Children & Young People,Connexions Service-Overall Commissioning,Rent and Rates,24500,Rates,01/11/2010,4100388492,631,Cherwell District Council
http://statistics.data.gov.uk/id/local-authority/38,Oxfordshire County Council,Children & Young People,Connexions Service-Overall Commissioning,Rent and Rates,24500,Rates,01/11/2010,4100388493,538,Cherwell District Council
http://statistics.data.gov.uk/id/local-authority/38,Oxfordshire County Council,Property Services,Corporate Properties,Rent and Rates,24500,Rates,01/11/2010,4100388502,549,Cherwell District Council
http://statistics.data.gov.uk/id/local-authority/38,Oxfordshire County Council,Property Services,Corporate Properties,Rent and Rates,24500,Rates,01/11/2010,4100388505,559,Cherwell District Council
http://statistics.data.gov.uk/id/local-authority/38,Oxfordshire County Council,Property Services,Corporate Properties,Rent and Rates,24500,Rates,01/11/2010,4100388525,1031,Cherwell District Council
http://statistics.data.gov.uk/id/local-authority/38,Oxfordshire County Council,Property Services,Surplus Property,Rent and Rates,24500,Rates,01/11/2010,4100388533,2714,Cherwell District Council
http://statistics.data.gov.uk/id/local-authority/38,Oxfordshire County Council,Property Services,Corporate Properties,Rent and Rates,24500,Rates,01/11/2010,4100388537,16869,Cherwell District Council
http://statistics.data.gov.uk/id/local-authority/38,Oxfordshire County Council,"Commissioning, Performance & Quality Ass",Play Pathfinder,Rent and Rates,24100,Rent,01/11/2010,4100388538,6500,Oxford City Council
http://statistics.data.gov.uk/id/local-authority/38,Oxfordshire County Council,Property Services,Corporate Properties,Rent and Rates,24500,Rates,01/11/2010,4100388546,571,Oxford City Council
http://statistics.data.gov.uk/id/local-authority/38,Oxfordshire County Council,Property Services,Corporate Properties,Rent and Rates,24500,Rates,01/11/2010,4100388548,953,Oxford City Council
http://statistics.data.gov.uk/id/local-authority/38,Oxfordshire County Council,Property Services,Corporate Properties,Rent and Rates,24500,Rates,01/11/2010,4100388551,673,Oxford City Council
http://statistics.data.gov.uk/id/local-authority/38,Oxfordshire County Council,Property Services,Corporate Properties,Rent and Rates,24500,Rates,01/11/2010,4100388552,2525,Oxford City Council
http://statistics.data.gov.uk/id/local-authority/38,Oxfordshire County Council,Property Services,Corporate Properties,Rent and Rates,24500,Rates,01/11/2010,4100388553,10978,Oxford City Council
http://statistics.data.gov.uk/id/local-authority/38,Oxfordshire County Council,Property Services,Corporate Properties,Rent and Rates,24500,Rates,01/11/2010,4100388554,930,Oxford City Council
http://statistics.data.gov.uk/id/local-authority/38,Oxfordshire County Council,Property Services,Corporate Properties,Rent and Rates,24500,Rates,01/11/2010,4100388555,1643,Oxford City Council
http://statistics.data.gov.uk/id/local-authority/38,Oxfordshire County Council,Property Services,Corporate Properties,Rent and Rates,24500,Rates,01/11/2010,4100388556,14149,Oxford City Council
http://statistics.data.gov.uk/id/local-authority/38,Oxfordshire County Council,Property Services,Corporate Properties,Rent and Rates,24500,Rates,01/11/2010,4100388557,1127,Oxford City Council
http://statistics.data.gov.uk/id/local-authority/38,Oxfordshire County Council,Property Services,Corporate Properties,Rent and Rates,24500,Rates,01/11/2010,4100388558,735,Oxford City Council
http://statistics.data.gov.uk/id/local-authority/38,Oxfordshire County Council,Property Services,Corporate Properties,Rent and Rates,24500,Rates,01/11/2010,4100388559,600,Oxford City Council
http://statistics.data.gov.uk/id/local-authority/38,Oxfordshire County Council,Property Services,Corporate Properties,Rent and Rates,24500,Rates,01/11/2010,4100388561,2118,Oxford City Council
http://statistics.data.gov.uk/id/local-authority/38,Oxfordshire County Council,Property Services,Corporate Properties,Rent and Rates,24500,Rates,01/11/2010,4100388562,693,Oxford City Council
http://statistics.data.gov.uk/id/local-authority/38,Oxfordshire County Council,Property Services,Corporate Properties,Rent and Rates,24500,Rates,01/11/2010,4100388563,5826,Oxford City Council
http://statistics.data.gov.uk/id/local-authority/38,Oxfordshire County Council,Property Services,Corporate Properties,Rent and Rates,24500,Rates,01/11/2010,4100388564,6787,Oxford City Council
http://statistics.data.gov.uk/id/local-authority/38,Oxfordshire County Council,Children & Young People,Connexions Service-Overall Commissioning,Rent and Rates,24500,Rates,01/11/2010,4100388567,1447.44,Oxford City Council
http://statistics.data.gov.uk/id/local-authority/38,Oxfordshire County Council,Sustainable Development,Contract Management,Rent and Rates,24500,Rates,01/11/2010,4100388568,2723,Oxford City Council
http://statistics.data.gov.uk/id/local-authority/38,Oxfordshire County Council,Property Services,Corporate Properties,Rent and Rates,24500,Rates,01/11/2010,4100388570,621,Oxford City Council
http://statistics.data.gov.uk/id/local-authority/38,Oxfordshire County Council,Property Services,Corporate Properties,Rent and Rates,24500,Rates,01/11/2010,4100388571,907,Oxford City Council
http://statistics.data.gov.uk/id/local-authority/38,Oxfordshire County Council,Property Services,Corporate Properties,Rent and Rates,24500,Rates,01/11/2010,4100388584,21246,Oxford City Council
http://statistics.data.gov.uk/id/local-authority/38,Oxfordshire County Council,Property Services,Corporate Properties,Rent and Rates,24500,Rates,01/11/2010,4100388585,597,Oxford City Council
http://statistics.data.gov.uk/id/local-authority/38,Oxfordshire County Council,Property Services,Corporate Properties,Rent and Rates,24500,Rates,01/11/2010,4100388586,5537,Oxford City Council
http://statistics.data.gov.uk/id/local-authority/38,Oxfordshire County Council,Property Services,Corporate Properties,Rent and Rates,24500,Rates,01/11/2010,4100388587,2153,Oxford City Council
http://statistics.data.gov.uk/id/local-authority/38,Oxfordshire County Council,Property Services,Corporate Properties,Rent and Rates,24500,Rates,01/11/2010,4100388588,9895,Oxford City Council
http://statistics.data.gov.uk/id/local-authority/38,Oxfordshire County Council,Property Services,Corporate Properties,Rent and Rates,24500,Rates,01/11/2010,4100388590,4591,Oxford City Council
http://statistics.data.gov.uk/id/local-authority/38,Oxfordshire County Council,Property Services,Better Offices Programme,Rent and Rates,24500,Rates,01/11/2010,4100388591,2663,Oxford City Council
http://statistics.data.gov.uk/id/local-authority/38,Oxfordshire County Council,Property Services,Corporate Properties,Rent and Rates,24500,Rates,01/11/2010,4100388592,590,Oxford City Council
http://statistics.data.gov.uk/id/local-authority/38,Oxfordshire County Council,Highways & Transport,Peartree Park & Ride,Rent and Rates,24500,Rates,01/11/2010,4100388594,4185,Oxford City Council
http://statistics.data.gov.uk/id/local-authority/38,Oxfordshire County Council,Highways & Transport,Seacourt Park & Ride,Rent and Rates,24500,Rates,01/11/2010,4100388595,4129,Oxford City Council
http://statistics.data.gov.uk/id/local-authority/38,Oxfordshire County Council,Highways & Transport,Redbridge Park & Ride,Rent and Rates,24500,Rates,01/11/2010,4100388596,7551,Oxford City Council
http://statistics.data.gov.uk/id/local-authority/38,Oxfordshire County Council,Property Services,Corporate Properties,Rent and Rates,24500,Rates,01/11/2010,4100388661,590,West Oxfordshire District Council
http://statistics.data.gov.uk/id/local-authority/38,Oxfordshire County Council,Property Services,Corporate Properties,Rent and Rates,24500,Rates,01/11/2010,4100388662,621,West Oxfordshire District Council
http://statistics.data.gov.uk/id/local-authority/38,Oxfordshire County Council,Property Services,Corporate Properties,Rent and Rates,24500,Rates,01/11/2010,4100388664,3602,West Oxfordshire District Council
http://statistics.data.gov.uk/id/local-authority/38,Oxfordshire County Council,Property Services,Corporate Properties,Rent and Rates,24500,Rates,01/11/2010,4100388665,1273,West Oxfordshire District Council
http://statistics.data.gov.uk/id/local-authority/38,Oxfordshire County Council,Property Services,Corporate Properties,Rent and Rates,24500,Rates,01/11/2010,4100388668,1584,West Oxfordshire District Council
http://statistics.data.gov.uk/id/local-authority/38,Oxfordshire County Council,Property Services,Corporate Properties,Rent and Rates,24500,Rates,01/11/2010,4100388669,932,West Oxfordshire District Council
http://statistics.data.gov.uk/id/local-authority/38,Oxfordshire County Council,Property Services,Corporate Properties,Rent and Rates,24500,Rates,01/11/2010,4100388671,659,West Oxfordshire District Council
http://statistics.data.gov.uk/id/local-authority/38,Oxfordshire County Council,Property Services,Corporate Properties,Rent and Rates,24500,Rates,01/11/2010,4100388675,1397,West Oxfordshire District Council
http://statistics.data.gov.uk/id/local-authority/38,Oxfordshire County Council,Property Services,Corporate Properties,Rent and Rates,24500,Rates,01/11/2010,4100388676,2836,West Oxfordshire District Council
http://statistics.data.gov.uk/id/local-authority/38,Oxfordshire County Council,Property Services,Corporate Properties,Rent and Rates,24500,Rates,01/11/2010,4100388677,538,West Oxfordshire District Council
http://statistics.data.gov.uk/id/local-authority/38,Oxfordshire County Council,Property Services,Corporate Properties,Rent and Rates,24500,Rates,01/11/2010,4100388678,621,West Oxfordshire District Council
http://statistics.data.gov.uk/id/local-authority/38,Oxfordshire County Council,Property Services,Corporate Properties,Rent and Rates,24500,Rates,01/11/2010,4100388679,559,West Oxfordshire District Council
http://statistics.data.gov.uk/id/local-authority/38,Oxfordshire County Council,Property Services,Corporate Properties,Rent and Rates,24500,Rates,01/11/2010,4100388680,1053.14,West Oxfordshire District Council
http://statistics.data.gov.uk/id/local-authority/38,Oxfordshire County Council,Sustainable Development,Contract Management,Rent and Rates,24500,Rates,01/11/2010,4100388681,502,West Oxfordshire District Council
http://statistics.data.gov.uk/id/local-authority/38,Oxfordshire County Council,Property Services,Corporate Properties,Rent and Rates,24500,Rates,01/11/2010,4100388690,1012,West Oxfordshire District Council
http://statistics.data.gov.uk/id/local-authority/38,Oxfordshire County Council,Property Services,Corporate Properties,Rent and Rates,24500,Rates,01/11/2010,4100388696,652,West Oxfordshire District Council
http://statistics.data.gov.uk/id/local-authority/38,Oxfordshire County Council,Property Services,Corporate Properties,Rent and Rates,24500,Rates,01/11/2010,4100388697,1734,West Oxfordshire District Council
http://statistics.data.gov.uk/id/local-authority/38,Oxfordshire County Council,Property Services,Corporate Properties,Rent and Rates,24500,Rates,01/11/2010,4100388698,1034,West Oxfordshire District Council
http://statistics.data.gov.uk/id/local-authority/38,Oxfordshire County Council,Property Services,Corporate Properties,Rent and Rates,24500,Rates,01/11/2010,4100388699,989,West Oxfordshire District Council
http://statistics.data.gov.uk/id/local-authority/38,Oxfordshire County Council,Property Services,Corporate Properties,Rent and Rates,24500,Rates,01/11/2010,4100388707,1362,West Oxfordshire District Council
http://statistics.data.gov.uk/id/local-authority/38,Oxfordshire County Council,Property Services,Corporate Properties,Rent and Rates,24500,Rates,01/11/2010,4100388709,945.61,West Oxfordshire District Council
http://statistics.data.gov.uk/id/local-authority/38,Oxfordshire County Council,Property Services,Corporate Properties,Rent and Rates,24500,Rates,01/11/2010,4100388711,1166,POWYS COUNTY COUNCIL
http://statistics.data.gov.uk/id/local-authority/38,Oxfordshire County Council,Property Services,Corporate Properties,Rent and Rates,24500,Rates,01/11/2010,4100388729,1194,South Oxfordshire District Council
http://statistics.data.gov.uk/id/local-authority/38,Oxfordshire County Council,Property Services,Corporate Properties,Rent and Rates,24500,Rates,01/11/2010,4100388745,1254,South Oxfordshire District Council
http://statistics.data.gov.uk/id/local-authority/38,Oxfordshire County Council,Property Services,Corporate Properties,Rent and Rates,24500,Rates,01/11/2010,4100388748,3906,South Oxfordshire District Council
http://statistics.data.gov.uk/id/local-authority/38,Oxfordshire County Council,Property Services,Corporate Properties,Rent and Rates,24500,Rates,01/11/2010,4100388749,1146,South Oxfordshire District Council
http://statistics.data.gov.uk/id/local-authority/38,Oxfordshire County Council,Property Services,Corporate Properties,Rent and Rates,24500,Rates,01/11/2010,4100388750,1606,South Oxfordshire District Council
http://statistics.data.gov.uk/id/local-authority/38,Oxfordshire County Council,Highways & Transport,Thornhill P & R,Rent and Rates,24500,Rates,01/11/2010,4100388757,3119,South Oxfordshire District Council
http://statistics.data.gov.uk/id/local-authority/38,Oxfordshire County Council,Property Services,Corporate Properties,Rent and Rates,24500,Rates,01/11/2010,4100388762,787,South Oxfordshire District Council
http://statistics.data.gov.uk/id/local-authority/38,Oxfordshire County Council,Property Services,Corporate Properties,Rent and Rates,24500,Rates,01/11/2010,4100388763,2164,South Oxfordshire District Council
http://statistics.data.gov.uk/id/local-authority/38,Oxfordshire County Council,Property Services,Corporate Properties,Rent and Rates,24500,Rates,01/11/2010,4100388764,983,South Oxfordshire District Council
http://statistics.data.gov.uk/id/local-authority/38,Oxfordshire County Council,Property Services,Corporate Properties,Rent and Rates,24500,Rates,01/11/2010,4100388765,734,South Oxfordshire District Council
http://statistics.data.gov.uk/id/local-authority/38,Oxfordshire County Council,Property Services,Corporate Properties,Rent and Rates,24500,Rates,01/11/2010,4100388766,580,South Oxfordshire District Council
http://statistics.data.gov.uk/id/local-authority/38,Oxfordshire County Council,Property Services,Corporate Properties,Rent and Rates,24500,Rates,01/11/2010,4100388770,919,South Oxfordshire District Council
http://statistics.data.gov.uk/id/local-authority/38,Oxfordshire County Council,Property Services,Corporate Properties,Rent and Rates,24500,Rates,01/11/2010,4100388773,2712,South Oxfordshire District Council
http://statistics.data.gov.uk/id/local-authority/38,Oxfordshire County Council,Property Services,Corporate Properties,Rent and Rates,24500,Rates,01/11/2010,4100388833,3258,Vale of White Horse District Counci
http://statistics.data.gov.uk/id/local-authority/38,Oxfordshire County Council,Property Services,Corporate Properties,Rent and Rates,24500,Rates,01/11/2010,4100388835,1700,Vale of White Horse District Counci
http://statistics.data.gov.uk/id/local-authority/38,Oxfordshire County Council,Property Services,Corporate Properties,Rent and Rates,24500,Rates,01/11/2010,4100388836,530,Vale of White Horse District Counci
http://statistics.data.gov.uk/id/local-authority/38,Oxfordshire County Council,Property Services,Corporate Properties,Rent and Rates,24500,Rates,01/11/2010,4100388837,15017,Vale of White Horse District Counci
http://statistics.data.gov.uk/id/local-authority/38,Oxfordshire County Council,Property Services,Corporate Properties,Rent and Rates,24500,Rates,01/11/2010,4100388838,4129,Vale of White Horse District Counci
http://statistics.data.gov.uk/id/local-authority/38,Oxfordshire County Council,Property Services,Corporate Properties,Rent and Rates,24500,Rates,01/11/2010,4100388840,1977,Vale of White Horse District Counci
http://statistics.data.gov.uk/id/local-authority/38,Oxfordshire County Council,Property Services,Corporate Properties,Rent and Rates,24500,Rates,01/11/2010,4100388841,1322,Vale of White Horse District Counci
http://statistics.data.gov.uk/id/local-authority/38,Oxfordshire County Council,Property Services,Corporate Properties,Rent and Rates,24500,Rates,01/11/2010,4100388842,3394,Vale of White Horse District Counci
http://statistics.data.gov.uk/id/local-authority/38,Oxfordshire County Council,Sustainable Development,Contract Management,Rent and Rates,24500,Rates,01/11/2010,4100388843,1515,Vale of White Horse District Counci
http://statistics.data.gov.uk/id/local-authority/38,Oxfordshire County Council,Sustainable Development,Contract Management,Rent and Rates,24500,Rates,01/11/2010,4100388845,1149,Vale of White Horse District Counci
http://statistics.data.gov.uk/id/local-authority/38,Oxfordshire County Council,Children & Young People,Connexions Service-Overall Commissioning,Rent and Rates,24500,Rates,01/11/2010,4100388846,2891,Vale of White Horse District Counci
http://statistics.data.gov.uk/id/local-authority/38,Oxfordshire County Council,Property Services,Corporate Properties,Rent and Rates,24500,Rates,01/11/2010,4100388848,545,Vale of White Horse District Counci
http://statistics.data.gov.uk/id/local-authority/38,Oxfordshire County Council,Property Services,Corporate Properties,Rent and Rates,24500,Rates,01/11/2010,4100388849,569,Vale of White Horse District Counci
http://statistics.data.gov.uk/id/local-authority/38,Oxfordshire County Council,Property Services,Corporate Properties,Rent and Rates,24500,Rates,01/11/2010,4100388850,1304,Vale of White Horse District Counci
http://statistics.data.gov.uk/id/local-authority/38,Oxfordshire County Council,Property Services,Corporate Properties,Rent and Rates,24500,Rates,01/11/2010,4100388853,569,Vale of White Horse District Counci
http://statistics.data.gov.uk/id/local-authority/38,Oxfordshire County Council,Highways & Transport,Rd Cond Surveys/Inventory,Expenses,46510,Professional Fees,01/11/2010,4100388932,13806.95,Yotta Ltd
http://statistics.data.gov.uk/id/local-authority/38,Oxfordshire County Council,Highways & Transport,Rd Cond Surveys/Inventory,Expenses,46510,Professional Fees,01/11/2010,4100388933,900,Yotta Ltd
http://statistics.data.gov.uk/id/local-authority/38,Oxfordshire County Council,Sustainable Development,Composting of Food & Green Waste,Private Contractors,56605,F&GW Treatment,01/11/2010,4100388935,3356.47,Agrivert (Biogas) Limited
http://statistics.data.gov.uk/id/local-authority/38,Oxfordshire County Council,Sustainable Development,Composting of Food & Green Waste,Private Contractors,56605,F&GW Treatment,01/11/2010,4100388935,4148,Agrivert (Biogas) Limited
http://statistics.data.gov.uk/id/local-authority/38,Oxfordshire County Council,Highways & Transport,Community Transport,Private Contractors,56100,Public Transport Rev,01/11/2010,4100388940,3926.19,The Independent Advice Centre
http://statistics.data.gov.uk/id/local-authority/38,Oxfordshire County Council,Property Services,Cricket Road,Communications and Computing,45200,Telephony - Equipment,01/11/2010,4100388954,1238.3,Virgin Media Business
http://statistics.data.gov.uk/id/local-authority/38,Oxfordshire County Council,Social & Community Services,Library Collections Management,"Equipment, Furniture and Materials",41601,Library & Curriculum Books,01/11/2010,4100388955,657.73,Peters Bookselling Services
http://statistics.data.gov.uk/id/local-authority/38,Oxfordshire County Council,Shared Service Centre,"St Christopher, Oxford",Public Transport,34101,Pupils Season Ticket,01/11/2010,4100388964,526.82,Sheridan Myers Management Services
http://statistics.data.gov.uk/id/local-authority/38,Oxfordshire County Council,Shared Service Centre,"SS Mary & John, Oxford",Public Transport,34101,Pupils Season Ticket,01/11/2010,4100388964,431.82,Sheridan Myers Management Services
http://statistics.data.gov.uk/id/local-authority/38,Oxfordshire County Council,Shared Service Centre,"St Birinus, Dorchest",Public Transport,34101,Pupils Season Ticket,01/11/2010,4100388964,466.36,Sheridan Myers Management Services
http://statistics.data.gov.uk/id/local-authority/38,Oxfordshire County Council,Shared Service Centre,"St Swithun's Primary School, Kennington",Public Transport,34101,Pupils Season Ticket,01/11/2010,4100388964,449.09,Sheridan Myers Management Services
http://statistics.data.gov.uk/id/local-authority/38,Oxfordshire County Council,Shared Service Centre,"Badgemore, Henley",Public Transport,34101,Pupils Season Ticket,01/11/2010,4100388964,431.82,Sheridan Myers Management Services
http://statistics.data.gov.uk/id/local-authority/38,Oxfordshire County Council,Corporate Core Transformation,Future Jobs Fund,Services,44500,Other Hired & Contra,01/11/2010,4100389008,2400,Age Concern Oxfordshire Trading Ltd
http://statistics.data.gov.uk/id/local-authority/38,Oxfordshire County Council,Highways & Transport,"Special Transport, Vehicle Maintenance",Direct Transport Costs,31101,Purchase of Vehicles,01/11/2010,4100389014,11495,GM Coachwork Ltd
http://statistics.data.gov.uk/id/local-authority/38,Oxfordshire County Council,Children & Young People,Playgroup Fees - Statementing,Voluntary Associations,55300,Fees to Centres Playgroups,01/11/2010,4100389018,500.5,Freeland Playgroup Association
http://statistics.data.gov.uk/id/local-authority/38,Oxfordshire County Council,In-House,Pension Fund Investment Miscellaneous ex,Investment Expenses,PR362,Investment - Global Custodian Fees,01/11/2010,4100389028,4005.45,BNY Mellon Asset Servicing
http://statistics.data.gov.uk/id/local-authority/38,Oxfordshire County Council,Shared Service Centre,Schools Support Service,Communications and Computing,45801,IT Maintenance,01/11/2010,4100389053,-465,Pirean Limited
http://statistics.data.gov.uk/id/local-authority/38,Oxfordshire County Council,Social & Community Services,Property,"Equipment, Furniture and Materials",40500,Specialist Supplies,01/11/2010,4100389065,1327.04,Premier Garden care
http://statistics.data.gov.uk/id/local-authority/38,Oxfordshire County Council,Social & Community Services,Property,"Equipment, Furniture and Materials",40500,Specialist Supplies,01/11/2010,4100389068,2160,Premier Garden care
http://statistics.data.gov.uk/id/local-authority/38,Oxfordshire County Council,Corporate Core Transformation,HR Training,Expenses,46403,Course / Tuition Fee,01/11/2010,4100389166,3280,Oxford Brookes University
http://statistics.data.gov.uk/id/local-authority/38,Oxfordshire County Council,"Commissioning, Performance & Quality Ass",Capital Charges - Youth,Capital Expenditure,CCAA1,Main Contract - General,01/11/2010,4100389184,82998.04,STEPNELL  LIMITED
http://statistics.data.gov.uk/id/local-authority/38,Oxfordshire County Council,"Commissioning, Performance & Quality Ass",Capital Charges - Youth,Capital Expenditure,CCAA1,Main Contract - General,01/11/2010,4100389185,34386.75,STEPNELL  LIMITED
http://statistics.data.gov.uk/id/local-authority/38,Oxfordshire County Council,Scheduled Bodies,South Oxfordshire District Council,Pensions,PR507,Combined Benefits Basic Pension,02/11/2010,3301138311,1494.2,Dorset County Council
http://statistics.data.gov.uk/id/local-authority/38,Oxfordshire County Council,Early Years & Family Support,Learner Grants,"Equipment, Furniture and Materials",41100,Educational Supplies,02/11/2010,3350210294,1160,Petit Enfant Day Nursery
http://statistics.data.gov.uk/id/local-authority/38,Oxfordshire County Council,Early Years & Family Support,Learner Grants,"Equipment, Furniture and Materials",41100,Educational Supplies,02/11/2010,3350210912,924,Aston & Cote Playgroup
http://statistics.data.gov.uk/id/local-authority/38,Oxfordshire County Council,Early Years & Family Support,Aim Higher Funding,Services,44500,Other Hired & Contra,02/11/2010,3350211052,4000,KEEN
http://statistics.data.gov.uk/id/local-authority/38,Oxfordshire County Council,Highways & Transport,"Electrical NP Rds, Street Lighting",Private Contractors,56400,Major Contracts,02/11/2010,3350211424,1358.32,Southern Electric Contracting Ltd.
http://statistics.data.gov.uk/id/local-authority/38,Oxfordshire County Council,Highways & Transport,"Electrical NP Rds, Street Lighting",Private Contractors,56400,Major Contracts,02/11/2010,3350211425,496.98,Southern Electric Contracting Ltd.
http://statistics.data.gov.uk/id/local-authority/38,Oxfordshire County Council,Highways & Transport,"Electrical NP Rds, Street Lighting",Private Contractors,56400,Major Contracts,02/11/2010,3350211426,929.92,Southern Electric Contracting Ltd.
http://statistics.data.gov.uk/id/local-authority/38,Oxfordshire County Council,Highways & Transport,"Electrical NP Rds, illuminated Signs",Private Contractors,56400,Major Contracts,02/11/2010,3350211427,1885.52,Southern Electric Contracting Ltd.
http://statistics.data.gov.uk/id/local-authority/38,Oxfordshire County Council,Highways & Transport,Highways General Operational,Miscellaneous Expenses,48200,Miscellaneous Insura,02/11/2010,3350211434,580.4,REDACTED PERSONAL DATA
http://statistics.data.gov.uk/id/local-authority/38,Oxfordshire County Council,SCS Other Cost Centres,Social Services Balance Sheet Default,Balance Sheet Banking,B1683,SS Payments A/C No 0165471,02/11/2010,3350211438,4647.06,REDACTED PERSONAL DATA
http://statistics.data.gov.uk/id/local-authority/38,Oxfordshire County Council,SCS Pooled Budgets,OP Pool Continuing Care Delegated Health,Other Agency and Contracted Services,57300,Home Support (Ext) OS&HCD,02/11/2010,3350211442,877.32,Oxford Aunts
http://statistics.data.gov.uk/id/local-authority/38,Oxfordshire County Council,Property Services,Property Holding Code For Reallocation,Energy Costs,23200,Gas,02/11/2010,3350211445,-1524.56,BRITISH GAS BUSINESS
http://statistics.data.gov.uk/id/local-authority/38,Oxfordshire County Council,Property Services,Property Holding Code For Reallocation,Energy Costs,23200,Gas,02/11/2010,3350211445,1496.05,BRITISH GAS BUSINESS
http://statistics.data.gov.uk/id/local-authority/38,Oxfordshire County Council,Property Services,Property Holding Code For Reallocation,Energy Costs,23200,Gas,02/11/2010,3350211445,1423.08,BRITISH GAS BUSINESS
http://statistics.data.gov.uk/id/local-authority/38,Oxfordshire County Council,Social & Community Services,Uniformed Salaries,Temporary Staff (NJC Green Book),16717,Tempry Staff (NJC) Agency Staff,02/11/2010,4100378908,2021.61,Champion Employment Ltd
http://statistics.data.gov.uk/id/local-authority/38,Oxfordshire County Council,Social & Community Services,Library Projects,Capital Expenditure,CEBA1,"Fixtures, Furniture & Equipment - Gen",02/11/2010,4100379257,640,Axiell Ltd
http://statistics.data.gov.uk/id/local-authority/38,Oxfordshire County Council,Shared Service Centre,Travel Loans,Balance Sheet General,B1406,Train Season Ticket Loans,02/11/2010,4100380471,862.6,Firstinfo
http://statistics.data.gov.uk/id/local-authority/38,Oxfordshire County Council,Social & Community Services,County Print Finishers,Private Contractors,56400,Major Contracts,02/11/2010,4100380766,600,Why Be Limited
http://statistics.data.gov.uk/id/local-authority/38,Oxfordshire County Council,Sustainable Development,PIG Management,Expenses,46301,Members Training,02/11/2010,4100381034,535,Cipfa
http://statistics.data.gov.uk/id/local-authority/38,Oxfordshire County Council,Corporate Core Transformation,F&P Training,Expenses,46403,Course / Tuition Fee,02/11/2010,4100381036,540,CIPFA
http://statistics.data.gov.uk/id/local-authority/38,Oxfordshire County Council,Corporate Core Transformation,F&P Training,Expenses,46403,Course / Tuition Fee,02/11/2010,4100381036,540,CIPFA
http://statistics.data.gov.uk/id/local-authority/38,Oxfordshire County Council,Corporate Core Transformation,F&P Training,Expenses,46403,Course / Tuition Fee,02/11/2010,4100381038,540,Cipfa
http://statistics.data.gov.uk/id/local-authority/38,Oxfordshire County Council,Corporate Core Transformation,F&P Training,Expenses,46403,Course / Tuition Fee,02/11/2010,4100381040,540,Cipfa
http://statistics.data.gov.uk/id/local-authority/38,Oxfordshire County Council,Corporate Core Transformation,F&P Training,Expenses,46403,Course / Tuition Fee,02/11/2010,4100381040,540,Cipfa
http://statistics.data.gov.uk/id/local-authority/38,Oxfordshire County Council,Corporate Core Transformation,Organisational Development,Training Expenses,19990,Other Training Expenses,02/11/2010,4100381066,1075,Career Counselling Services Ltd
http://statistics.data.gov.uk/id/local-authority/38,Oxfordshire County Council,Social & Community Services,Reprographics Unit,"Printing,Stationery and Gen Office Exp",43520,Printing Materials,02/11/2010,4100381788,943.81,Antalis Limited
http://statistics.data.gov.uk/id/local-authority/38,Oxfordshire County Council,Early Years & Family Support,Southwark - Section 20,Other Agency and Contracted Services,57200,Supported Accommodat,02/11/2010,4100383193,1117.08,Stonham Bicester Project
http://statistics.data.gov.uk/id/local-authority/38,Oxfordshire County Council,SCS Pooled Budgets,PD Comm Supp Purchasg Budget - Abingdon,Other Agency and Contracted Services,57300,Home Support (Ext) OS&HCD,02/11/2010,4100384142,1326.28,Two Counties Community Care
http://statistics.data.gov.uk/id/local-authority/38,Oxfordshire County Council,Corporate Core Strategy,Legal Services,Expenses,46500,Legal Fees & Exp,02/11/2010,4100384765,650,MISS  M.C. DEFREITAS
http://statistics.data.gov.uk/id/local-authority/38,Oxfordshire County Council,Social & Community Services,Finnamore Wood YOI,"Equipment, Furniture and Materials",41601,Library & Curriculum Books,02/11/2010,4100385266,519.02,Askews Library Services Ltd
http://statistics.data.gov.uk/id/local-authority/38,Oxfordshire County Council,Shared Service Centre,Oxford City,Communications and Computing,45700,Software,02/11/2010,4100385779,3224.08,Bytes Software Services Ltd
http://statistics.data.gov.uk/id/local-authority/38,Oxfordshire County Council,SCS Pooled Budgets,IAES - Central Locality,"Equipment, Furniture and Materials",40101,Furniture & Equipment,02/11/2010,4100385858,491.56,Canon (UK) Ltd
http://statistics.data.gov.uk/id/local-authority/38,Oxfordshire County Council,Social & Community Services,Library Collections Management,"Equipment, Furniture and Materials",41601,Library & Curriculum Books,02/11/2010,4100385943,511.99,Askews Library Services Ltd
http://statistics.data.gov.uk/id/local-authority/38,Oxfordshire County Council,Social & Community Services,Library Collections Management,"Equipment, Furniture and Materials",41601,Library & Curriculum Books,02/11/2010,4100386036,524.34,Askews Library Services Ltd
http://statistics.data.gov.uk/id/local-authority/38,Oxfordshire County Council,Property Services,Cricket Road,Communications and Computing,45200,Telephony - Equipment,02/11/2010,4100386440,827.82,Virgin Media Business
http://statistics.data.gov.uk/id/local-authority/38,Oxfordshire County Council,Social & Community Services,Trading Standards,Services,44303,Analysis Fees - Food,02/11/2010,4100386446,1287,Worcestershire County Council
http://statistics.data.gov.uk/id/local-authority/38,Oxfordshire County Council,Social & Community Services,Trading Standards,Services,44303,Analysis Fees - Food,02/11/2010,4100386446,2340,Worcestershire County Council
http://statistics.data.gov.uk/id/local-authority/38,Oxfordshire County Council,Highways & Transport,"On Street Parking, Henley",Private Contractors,56400,Major Contracts,02/11/2010,4100386615,21108.7,Henley Town Council
http://statistics.data.gov.uk/id/local-authority/38,Oxfordshire County Council,Children & Young People,OQSA - V Carr,Expenses,46301,Members Training,02/11/2010,4100387307,731.5,SGA Systems Limited
http://statistics.data.gov.uk/id/local-authority/38,Oxfordshire County Council,Children & Young People,Success Project -DSG,"Equipment, Furniture and Materials",41100,Educational Supplies,02/11/2010,4100387791,6800,Accipio Learning
http://statistics.data.gov.uk/id/local-authority/38,Oxfordshire County Council,L&G UK Equity Index Fund,L&G UK Equity Index Fund Miscellaneous,Investment Expenses,PR361,Investment - Management Fees,02/11/2010,4100389026,12946.83,Legal & General Investment Manageme
http://statistics.data.gov.uk/id/local-authority/38,Oxfordshire County Council,Property Services,Samuelson House,Communications and Computing,45100,Postage,02/11/2010,4100389220,4000,Neopost Ltd Credifon RCB Account
http://statistics.data.gov.uk/id/local-authority/38,Oxfordshire County Council,Social & Community Services,Gypsy & Traveller Services - General,Services,44500,Other Hired & Contra,02/11/2010,4100389229,1000,Crescent Events.
http://statistics.data.gov.uk/id/local-authority/38,Oxfordshire County Council,Social & Community Services,Gypsy & Traveller Services - General,Services,44500,Other Hired & Contra,02/11/2010,4100389229,435,Crescent Events.
http://statistics.data.gov.uk/id/local-authority/38,Oxfordshire County Council,Early Years & Family Support,Southwark - Section 20,Other Agency and Contracted Services,57200,Supported Accommodat,02/11/2010,4100389275,668.12,Stonham Housing
http://statistics.data.gov.uk/id/local-authority/38,Oxfordshire County Council,Shared Service Centre,AL Premises,"Equipment, Furniture and Materials",40101,Furniture & Equipment,02/11/2010,4100389277,635,CDEC Limited
http://statistics.data.gov.uk/id/local-authority/38,Oxfordshire County Council,Highways & Transport,Nework Management Operations,Expenses,46510,Professional Fees,02/11/2010,4100389393,1500,Building Software Ltd
http://statistics.data.gov.uk/id/local-authority/38,Oxfordshire County Council,Highways & Transport,Nework Management Operations,Expenses,46510,Professional Fees,02/11/2010,4100389393,2000,Building Software Ltd
http://statistics.data.gov.uk/id/local-authority/38,Oxfordshire County Council,Social & Community Services,Property,"Equipment, Furniture and Materials",40500,Specialist Supplies,02/11/2010,4100389395,1081.21,Taylors Catering Equipment
http://statistics.data.gov.uk/id/local-authority/38,Oxfordshire County Council,Corporate Core Strategy,Members Services,Expenses,46302,Leader's Dinners & Events,02/11/2010,4100389402,500,The Kids Lit Quiz
http://statistics.data.gov.uk/id/local-authority/38,Oxfordshire County Council,Transport,Area Cyclic,Private Contractors,56400,Major Contracts,02/11/2010,4100389407,1084.05,P Bradley
http://statistics.data.gov.uk/id/local-authority/38,Oxfordshire County Council,Transport,Area Cyclic,Private Contractors,56400,Major Contracts,02/11/2010,4100389407,890.9,P Bradley
http://statistics.data.gov.uk/id/local-authority/38,Oxfordshire County Council,Transport,Area Cyclic,Private Contractors,56400,Major Contracts,02/11/2010,4100389407,714.65,P Bradley
http://statistics.data.gov.uk/id/local-authority/38,Oxfordshire County Council,Transport,Area Cyclic,Private Contractors,56400,Major Contracts,02/11/2010,4100389407,648.4,P Bradley
http://statistics.data.gov.uk/id/local-authority/38,Oxfordshire County Council,Transport,Area Cyclic,Private Contractors,56400,Major Contracts,02/11/2010,4100389407,705.35,P Bradley
http://statistics.data.gov.uk/id/local-authority/38,Oxfordshire County Council,"Commissioning, Performance & Quality Ass",Abbey Sch Swim Pool,Joint Authorities,53200,J.S.Agreements-Cont',02/11/2010,4100389559,11026,South Oxfordshire District Council
http://statistics.data.gov.uk/id/local-authority/38,Oxfordshire County Council,"Commissioning, Performance & Quality Ass",Wallingford S.Hall,Joint Authorities,53200,J.S.Agreements-Cont',02/11/2010,4100389559,18681,South Oxfordshire District Council
http://statistics.data.gov.uk/id/local-authority/38,Oxfordshire County Council,"Commissioning, Performance & Quality Ass",Wheatley Sports Cntr,Joint Authorities,53200,J.S.Agreements-Cont',02/11/2010,4100389559,11805,South Oxfordshire District Council
http://statistics.data.gov.uk/id/local-authority/38,Oxfordshire County Council,"Commissioning, Performance & Quality Ass",Thame Sports/Arts Ce,Joint Authorities,53200,J.S.Agreements-Cont',02/11/2010,4100389559,19321,South Oxfordshire District Council
http://statistics.data.gov.uk/id/local-authority/38,Oxfordshire County Council,Social & Community Services,Trading Standards - Operations,Training Expenses,19981,Qualification Training - Fees,02/11/2010,4100389564,1310,Oxford Brookes University
http://statistics.data.gov.uk/id/local-authority/38,Oxfordshire County Council,Social & Community Services,The Garth Day Service,Contract Hire/Leasing,33600,Hire of vehicles,02/11/2010,4100389723,524.67,The Village Motor Company Limited
http://statistics.data.gov.uk/id/local-authority/38,Oxfordshire County Council,Property Services,Corporate Properties,Urgent R & M,21110,Power (Urgent),02/11/2010,7000364365,2145.54,Axis Elevators Ltd
http://statistics.data.gov.uk/id/local-authority/38,Oxfordshire County Council,Property Services,Corporate Properties,Urgent R & M,21110,Power (Urgent),02/11/2010,7000364366,2145.54,Axis Elevators Ltd
http://statistics.data.gov.uk/id/local-authority/38,Oxfordshire County Council,Property Services,Corporate Properties,Urgent R & M,21110,Power (Urgent),02/11/2010,7000364370,496,Axis Elevators Ltd
http://statistics.data.gov.uk/id/local-authority/38,Oxfordshire County Council,"Commissioning, Performance & Quality Ass",Abbey Sch Swim Pool,Joint Authorities,53100,Joint Use Provision,02/11/2010,7000364379,1273,Scion Technical Services Limited
http://statistics.data.gov.uk/id/local-authority/38,Oxfordshire County Council,"Commissioning, Performance & Quality Ass",Didcot Sports Hall,Urgent R & M,21112,H&C Water (Urg),02/11/2010,7000364392,1074,SMS Environmental Limited
http://statistics.data.gov.uk/id/local-authority/38,Oxfordshire County Council,Property Services,Corporate Properties,Urgent R & M,21104,Windows & Doors (Urgent),02/11/2010,7000364397,645,Windrush Door and Window Services
http://statistics.data.gov.uk/id/local-authority/38,Oxfordshire County Council,"Commissioning, Performance & Quality Ass",Henley SH & S Pool,Joint Authorities,53100,Joint Use Provision,02/11/2010,7000364402,641.23,Scion Technical Services Limited
http://statistics.data.gov.uk/id/local-authority/38,Oxfordshire County Council,SCS Pooled Budgets,PD Comm Supp Purchasg Budget - City,Other Agency and Contracted Services,57401,Direct Payments,03/11/2010,3301139148,940.51,REDACTED PERSONAL DATA
http://statistics.data.gov.uk/id/local-authority/38,Oxfordshire County Council,SCS Pooled Budgets,Community Support Budget - Bicester,Other Agency and Contracted Services,57401,Direct Payments,03/11/2010,3301139149,916,REDACTED PERSONAL DATA
http://statistics.data.gov.uk/id/local-authority/38,Oxfordshire County Council,SCS Pooled Budgets,PD Comm Supp Purchasg Budget - Henley,Other Agency and Contracted Services,57401,Direct Payments,03/11/2010,3301139150,3861,REDACTED PERSONAL DATA
http://statistics.data.gov.uk/id/local-authority/38,Oxfordshire County Council,SCS Pooled Budgets,Community Support Budget - Wantage,Other Agency and Contracted Services,57401,Direct Payments,03/11/2010,3301139152,2028.32,REDACTED PERSONAL DATA
http://statistics.data.gov.uk/id/local-authority/38,Oxfordshire County Council,SCS Pooled Budgets,Direct Payments South Team,Other Agency and Contracted Services,57401,Direct Payments,03/11/2010,3301139153,11990.12,REDACTED PERSONAL DATA
http://statistics.data.gov.uk/id/local-authority/38,Oxfordshire County Council,SCS Pooled Budgets,Community Support Budget - Henley,Other Agency and Contracted Services,57401,Direct Payments,03/11/2010,3301139155,975.84,REDACTED PERSONAL DATA
http://statistics.data.gov.uk/id/local-authority/38,Oxfordshire County Council,SCS Pooled Budgets,PD Comm Supp Purchasg Budget - City,Other Agency and Contracted Services,57401,Direct Payments,03/11/2010,3301139156,1135.04,REDACTED PERSONAL DATA
http://statistics.data.gov.uk/id/local-authority/38,Oxfordshire County Council,SCS Pooled Budgets,PD Comm Supp Purchasg Budget - Witney,Other Agency and Contracted Services,57401,Direct Payments,03/11/2010,3301139157,998,REDACTED PERSONAL DATA
http://statistics.data.gov.uk/id/local-authority/38,Oxfordshire County Council,SCS Pooled Budgets,Community Support Budget - Didcot,Other Agency and Contracted Services,57401,Direct Payments,03/11/2010,3301139158,1662.96,REDACTED PERSONAL DATA
http://statistics.data.gov.uk/id/local-authority/38,Oxfordshire County Council,SCS Pooled Budgets,PD Comm Supp Purchasg Budget - City,Other Agency and Contracted Services,57401,Direct Payments,03/11/2010,3301139159,716.12,REDACTED PERSONAL DATA
http://statistics.data.gov.uk/id/local-authority/38,Oxfordshire County Council,SCS Pooled Budgets,PD Comm Supp Budgt - Bicester/Kidlington,Other Agency and Contracted Services,57401,Direct Payments,03/11/2010,3301139161,1081.76,REDACTED PERSONAL DATA
http://statistics.data.gov.uk/id/local-authority/38,Oxfordshire County Council,SCS Pooled Budgets,PD Comm Supp Purchasg Budget - Witney,Other Agency and Contracted Services,57401,Direct Payments,03/11/2010,3301139162,737.8,REDACTED PERSONAL DATA
http://statistics.data.gov.uk/id/local-authority/38,Oxfordshire County Council,SCS Pooled Budgets,Direct Payments City Team,Other Agency and Contracted Services,57401,Direct Payments,03/11/2010,3301139163,1554.72,REDACTED PERSONAL DATA
http://statistics.data.gov.uk/id/local-authority/38,Oxfordshire County Council,SCS Pooled Budgets,Direct Payments South Team,Other Agency and Contracted Services,57401,Direct Payments,03/11/2010,3301139164,5602.86,REDACTED PERSONAL DATA
http://statistics.data.gov.uk/id/local-authority/38,Oxfordshire County Council,SCS Pooled Budgets,Community Support Budget - Thame,Other Agency and Contracted Services,57401,Direct Payments,03/11/2010,3301139165,538.48,REDACTED PERSONAL DATA
http://statistics.data.gov.uk/id/local-authority/38,Oxfordshire County Council,SCS Pooled Budgets,Direct Payments North Team,Other Agency and Contracted Services,57401,Direct Payments,03/11/2010,3301139166,770.56,REDACTED PERSONAL DATA
http://statistics.data.gov.uk/id/local-authority/38,Oxfordshire County Council,SCS Pooled Budgets,PD Comm Supp Purchasg Budget - Witney,Other Agency and Contracted Services,57401,Direct Payments,03/11/2010,3301139167,548.64,REDACTED PERSONAL DATA
http://statistics.data.gov.uk/id/local-authority/38,Oxfordshire County Council,SCS Pooled Budgets,Community Support Budget - Henley,Other Agency and Contracted Services,57401,Direct Payments,03/11/2010,3301139168,1819.88,REDACTED PERSONAL DATA
http://statistics.data.gov.uk/id/local-authority/38,Oxfordshire County Council,SCS Pooled Budgets,PD Comm Supp Purchasg Budget - City,Other Agency and Contracted Services,57401,Direct Payments,03/11/2010,3301139169,739.9,REDACTED PERSONAL DATA
http://statistics.data.gov.uk/id/local-authority/38,Oxfordshire County Council,SCS Pooled Budgets,Direct Payments North Team,Other Agency and Contracted Services,57401,Direct Payments,03/11/2010,3301139170,5810.12,REDACTED PERSONAL DATA
http://statistics.data.gov.uk/id/local-authority/38,Oxfordshire County Council,SCS Pooled Budgets,Community Support Budget - City,Other Agency and Contracted Services,57401,Direct Payments,03/11/2010,3301139172,760.62,REDACTED PERSONAL DATA
http://statistics.data.gov.uk/id/local-authority/38,Oxfordshire County Council,SCS Pooled Budgets,Direct Payments South Team,Other Agency and Contracted Services,57401,Direct Payments,03/11/2010,3301139173,2118.76,REDACTED PERSONAL DATA
http://statistics.data.gov.uk/id/local-authority/38,Oxfordshire County Council,SCS Pooled Budgets,Community Support Budget - Banbury,Other Agency and Contracted Services,57401,Direct Payments,03/11/2010,3301139174,724.4,REDACTED PERSONAL DATA
http://statistics.data.gov.uk/id/local-authority/38,Oxfordshire County Council,SCS Pooled Budgets,Community Support Budget - Wantage,Other Agency and Contracted Services,57401,Direct Payments,03/11/2010,3301139176,543.32,REDACTED PERSONAL DATA
http://statistics.data.gov.uk/id/local-authority/38,Oxfordshire County Council,SCS Pooled Budgets,Community Support Budget - Abingdon,Other Agency and Contracted Services,57401,Direct Payments,03/11/2010,3301139177,1500,REDACTED PERSONAL DATA
http://statistics.data.gov.uk/id/local-authority/38,Oxfordshire County Council,SCS Pooled Budgets,Community Support Budget - Didcot,Other Agency and Contracted Services,57401,Direct Payments,03/11/2010,3301139178,923.6,REDACTED PERSONAL DATA
http://statistics.data.gov.uk/id/local-authority/38,Oxfordshire County Council,SCS Pooled Budgets,Community Support Budget - Faringdon,Other Agency and Contracted Services,57401,Direct Payments,03/11/2010,3301139179,1506.28,REDACTED PERSONAL DATA
http://statistics.data.gov.uk/id/local-authority/38,Oxfordshire County Council,SCS Pooled Budgets,Direct Payments City Team,Other Agency and Contracted Services,57401,Direct Payments,03/11/2010,3301139180,1200,REDACTED PERSONAL DATA
http://statistics.data.gov.uk/id/local-authority/38,Oxfordshire County Council,SCS Pooled Budgets,Community Support Budget - Banbury,Other Agency and Contracted Services,57401,Direct Payments,03/11/2010,3301139181,1245.56,REDACTED PERSONAL DATA
http://statistics.data.gov.uk/id/local-authority/38,Oxfordshire County Council,SCS Pooled Budgets,Community Support Budget - Abingdon,Other Agency and Contracted Services,57401,Direct Payments,03/11/2010,3301139182,1323.8,REDACTED PERSONAL DATA
http://statistics.data.gov.uk/id/local-authority/38,Oxfordshire County Council,SCS Pooled Budgets,Direct Payments North Team,Other Agency and Contracted Services,57401,Direct Payments,03/11/2010,3301139183,854.28,REDACTED PERSONAL DATA
http://statistics.data.gov.uk/id/local-authority/38,Oxfordshire County Council,SCS Pooled Budgets,Community Support Budget - Thame,Other Agency and Contracted Services,57401,Direct Payments,03/11/2010,3301139184,507.08,REDACTED PERSONAL DATA
http://statistics.data.gov.uk/id/local-authority/38,Oxfordshire County Council,SCS Pooled Budgets,Community Support Budget - Witney,Other Agency and Contracted Services,57401,Direct Payments,03/11/2010,3301139185,931.37,REDACTED PERSONAL DATA
http://statistics.data.gov.uk/id/local-authority/38,Oxfordshire County Council,SCS Pooled Budgets,Community Support Budget - City,Other Agency and Contracted Services,57401,Direct Payments,03/11/2010,3301139187,537.76,REDACTED PERSONAL DATA
http://statistics.data.gov.uk/id/local-authority/38,Oxfordshire County Council,SCS Pooled Budgets,OP Pool Continuing Care Home Support,Other Agency and Contracted Services,57401,Direct Payments,03/11/2010,3301139188,4162.68,REDACTED PERSONAL DATA
http://statistics.data.gov.uk/id/local-authority/38,Oxfordshire County Council,SCS Pooled Budgets,Direct Payments South Team,Other Agency and Contracted Services,57401,Direct Payments,03/11/2010,3301139189,1023.68,REDACTED PERSONAL DATA
http://statistics.data.gov.uk/id/local-authority/38,Oxfordshire County Council,SCS Pooled Budgets,Direct Payments City Team,Other Agency and Contracted Services,57401,Direct Payments,03/11/2010,3301139190,664,REDACTED PERSONAL DATA
http://statistics.data.gov.uk/id/local-authority/38,Oxfordshire County Council,SCS Pooled Budgets,PD Comm Supp Purchasg Budget - City,Other Agency and Contracted Services,57401,Direct Payments,03/11/2010,3301139191,516.28,REDACTED PERSONAL DATA
http://statistics.data.gov.uk/id/local-authority/38,Oxfordshire County Council,SCS Pooled Budgets,Direct Payments North Team,Other Agency and Contracted Services,57401,Direct Payments,03/11/2010,3301139193,686.76,REDACTED PERSONAL DATA
http://statistics.data.gov.uk/id/local-authority/38,Oxfordshire County Council,SCS Pooled Budgets,Community Support Budget - Banbury,Other Agency and Contracted Services,57401,Direct Payments,03/11/2010,3301139195,2307.2,REDACTED PERSONAL DATA
http://statistics.data.gov.uk/id/local-authority/38,Oxfordshire County Council,SCS Pooled Budgets,Direct Payments City Team,Other Agency and Contracted Services,57401,Direct Payments,03/11/2010,3301139196,736.08,REDACTED PERSONAL DATA
http://statistics.data.gov.uk/id/local-authority/38,Oxfordshire County Council,SCS Pooled Budgets,Community Support Budget - Banbury,Other Agency and Contracted Services,57401,Direct Payments,03/11/2010,3301139197,1683.88,REDACTED PERSONAL DATA
http://statistics.data.gov.uk/id/local-authority/38,Oxfordshire County Council,SCS Pooled Budgets,Community Support Budget - City,Other Agency and Contracted Services,57401,Direct Payments,03/11/2010,3301139198,2108,REDACTED PERSONAL DATA
http://statistics.data.gov.uk/id/local-authority/38,Oxfordshire County Council,SCS Pooled Budgets,PD Comm Supp Purchasg Budget - City,Other Agency and Contracted Services,57401,Direct Payments,03/11/2010,3301139200,957.96,REDACTED PERSONAL DATA
http://statistics.data.gov.uk/id/local-authority/38,Oxfordshire County Council,SCS Pooled Budgets,Direct Payments North Team,Other Agency and Contracted Services,57401,Direct Payments,03/11/2010,3301139201,2286.68,REDACTED PERSONAL DATA
http://statistics.data.gov.uk/id/local-authority/38,Oxfordshire County Council,SCS Pooled Budgets,Direct Payments South Team,Other Agency and Contracted Services,57401,Direct Payments,03/11/2010,3301139202,581.76,REDACTED PERSONAL DATA
http://statistics.data.gov.uk/id/local-authority/38,Oxfordshire County Council,SCS Pooled Budgets,PD Comm Supp Purchasg Budget - City,Other Agency and Contracted Services,57401,Direct Payments,03/11/2010,3301139203,1564.13,REDACTED PERSONAL DATA
http://statistics.data.gov.uk/id/local-authority/38,Oxfordshire County Council,SCS Pooled Budgets,PD CS Purch Budget - Health S28a JC,Other Agency and Contracted Services,57401,Direct Payments,03/11/2010,3301139203,770.39,REDACTED PERSONAL DATA
http://statistics.data.gov.uk/id/local-authority/38,Oxfordshire County Council,SCS Pooled Budgets,Community Support Budget - Didcot,Other Agency and Contracted Services,57401,Direct Payments,03/11/2010,3301139204,759.5,REDACTED PERSONAL DATA
http://statistics.data.gov.uk/id/local-authority/38,Oxfordshire County Council,SCS Pooled Budgets,Community Support Budget - Bicester,Other Agency and Contracted Services,57401,Direct Payments,03/11/2010,3301139205,1480,REDACTED PERSONAL DATA
http://statistics.data.gov.uk/id/local-authority/38,Oxfordshire County Council,SCS Pooled Budgets,PD Comm Supp Budget - Banbury,Other Agency and Contracted Services,57401,Direct Payments,03/11/2010,3301139206,1303.92,REDACTED PERSONAL DATA
http://statistics.data.gov.uk/id/local-authority/38,Oxfordshire County Council,SCS Pooled Budgets,Direct Payments City Team,Other Agency and Contracted Services,57401,Direct Payments,03/11/2010,3301139207,656,REDACTED PERSONAL DATA
http://statistics.data.gov.uk/id/local-authority/38,Oxfordshire County Council,SCS Pooled Budgets,Direct Payments North Team,Other Agency and Contracted Services,57401,Direct Payments,03/11/2010,3301139208,4943.4,REDACTED PERSONAL DATA
http://statistics.data.gov.uk/id/local-authority/38,Oxfordshire County Council,SCS Pooled Budgets,Direct Payments North Team,Other Agency and Contracted Services,57401,Direct Payments,03/11/2010,3301139210,1022.24,REDACTED PERSONAL DATA
http://statistics.data.gov.uk/id/local-authority/38,Oxfordshire County Council,SCS Pooled Budgets,PD Comm Supp Purchasg  - City Carers Grt,Other Agency and Contracted Services,57401,Direct Payments,03/11/2010,3301139213,1215.04,REDACTED PERSONAL DATA
http://statistics.data.gov.uk/id/local-authority/38,Oxfordshire County Council,SCS Pooled Budgets,Direct Payments South Team,Other Agency and Contracted Services,57401,Direct Payments,03/11/2010,3301139214,1014.16,REDACTED PERSONAL DATA
http://statistics.data.gov.uk/id/local-authority/38,Oxfordshire County Council,SCS Pooled Budgets,OP Pool Continuing Care Delegated Health,Other Agency and Contracted Services,57401,Direct Payments,03/11/2010,3301139215,716.88,REDACTED PERSONAL DATA
http://statistics.data.gov.uk/id/local-authority/38,Oxfordshire County Council,SCS Pooled Budgets,Community Support Budget - Wantage,Other Agency and Contracted Services,57401,Direct Payments,03/11/2010,3301139215,781.2,REDACTED PERSONAL DATA
http://statistics.data.gov.uk/id/local-authority/38,Oxfordshire County Council,SCS Pooled Budgets,Direct Payments North Team,Other Agency and Contracted Services,57401,Direct Payments,03/11/2010,3301139216,563,REDACTED PERSONAL DATA
http://statistics.data.gov.uk/id/local-authority/38,Oxfordshire County Council,SCS Pooled Budgets,Community Support Budget - Henley,Other Agency and Contracted Services,57401,Direct Payments,03/11/2010,3301139217,1400,REDACTED PERSONAL DATA
http://statistics.data.gov.uk/id/local-authority/38,Oxfordshire County Council,SCS Pooled Budgets,Community Support Budget - Banbury,Other Agency and Contracted Services,57401,Direct Payments,03/11/2010,3301139219,2207.28,REDACTED PERSONAL DATA
http://statistics.data.gov.uk/id/local-authority/38,Oxfordshire County Council,SCS Pooled Budgets,Direct Payments South Team,Other Agency and Contracted Services,57401,Direct Payments,03/11/2010,3301139220,3734.68,REDACTED PERSONAL DATA
http://statistics.data.gov.uk/id/local-authority/38,Oxfordshire County Council,SCS Pooled Budgets,Community Support Budget - Bicester,Other Agency and Contracted Services,57401,Direct Payments,03/11/2010,3301139221,651,REDACTED PERSONAL DATA
http://statistics.data.gov.uk/id/local-authority/38,Oxfordshire County Council,SCS Pooled Budgets,PD Comm Supp Purchasg Budget - Thame,Other Agency and Contracted Services,57401,Direct Payments,03/11/2010,3301139222,561.91,REDACTED PERSONAL DATA
http://statistics.data.gov.uk/id/local-authority/38,Oxfordshire County Council,SCS Pooled Budgets,Direct Payments South Team,Other Agency and Contracted Services,57401,Direct Payments,03/11/2010,3301139223,4629.92,REDACTED PERSONAL DATA
http://statistics.data.gov.uk/id/local-authority/38,Oxfordshire County Council,SCS Pooled Budgets,PD Comm Supp Purchasg Budget - Abingdon,Other Agency and Contracted Services,57401,Direct Payments,03/11/2010,3301139225,1107.35,REDACTED PERSONAL DATA
http://statistics.data.gov.uk/id/local-authority/38,Oxfordshire County Council,SCS Pooled Budgets,Community Support Budget - Witney,Other Agency and Contracted Services,57401,Direct Payments,03/11/2010,3301139228,583.05,A4e Management Ltd Week 1
http://statistics.data.gov.uk/id/local-authority/38,Oxfordshire County Council,SCS Pooled Budgets,PD Comm Supp Budget - Banbury,Other Agency and Contracted Services,57401,Direct Payments,03/11/2010,3301139237,993.3,A4e Management Ltd Week 1
http://statistics.data.gov.uk/id/local-authority/38,Oxfordshire County Council,Social & Community Services,Community Support Budget - City East,Other Agency and Contracted Services,57401,Direct Payments,03/11/2010,3301139239,942,A4e Management Ltd Week 1
http://statistics.data.gov.uk/id/local-authority/38,Oxfordshire County Council,SCS Pooled Budgets,PD Comm Supp Purchasg Budget - City,Other Agency and Contracted Services,57401,Direct Payments,03/11/2010,3301139241,631.56,A4e Management Ltd Week 1
http://statistics.data.gov.uk/id/local-authority/38,Oxfordshire County Council,SCS Pooled Budgets,PD Comm Supp Budgt - Bicester/Kidlington,Other Agency and Contracted Services,57401,Direct Payments,03/11/2010,3301139242,1350,A4e Management Ltd Week 1
http://statistics.data.gov.uk/id/local-authority/38,Oxfordshire County Council,SCS Pooled Budgets,Community Support Budget - Abingdon,Other Agency and Contracted Services,57401,Direct Payments,03/11/2010,3301139244,543.3,A4e Management Ltd Week 1
http://statistics.data.gov.uk/id/local-authority/38,Oxfordshire County Council,SCS Pooled Budgets,PD Comm Supp Budget - Banbury,Other Agency and Contracted Services,57401,Direct Payments,03/11/2010,3301139247,1521.24,A4e Management Ltd Week 1
http://statistics.data.gov.uk/id/local-authority/38,Oxfordshire County Council,SCS Pooled Budgets,PD Comm Supp Budget - Banbury,Other Agency and Contracted Services,57401,Direct Payments,03/11/2010,3301139252,507.08,A4e Management Ltd Week 1
http://statistics.data.gov.uk/id/local-authority/38,Oxfordshire County Council,SCS Pooled Budgets,PD Comm Supp Budget - Banbury,Other Agency and Contracted Services,57401,Direct Payments,03/11/2010,3301139253,1692.63,A4e Management Ltd Week 1
http://statistics.data.gov.uk/id/local-authority/38,Oxfordshire County Council,SCS Pooled Budgets,Community Support Budget - Witney,Other Agency and Contracted Services,57401,Direct Payments,03/11/2010,3301139254,520.8,A4e Management Ltd Week 1
http://statistics.data.gov.uk/id/local-authority/38,Oxfordshire County Council,SCS Pooled Budgets,Direct Payments North Team,Other Agency and Contracted Services,57401,Direct Payments,03/11/2010,3301139255,1492.56,A4e Management Ltd Week 1
http://statistics.data.gov.uk/id/local-authority/38,Oxfordshire County Council,SCS Pooled Budgets,PD Comm Supp Budget - Banbury,Other Agency and Contracted Services,57401,Direct Payments,03/11/2010,3301139257,500.34,A4e Management Ltd Week 1
http://statistics.data.gov.uk/id/local-authority/38,Oxfordshire County Council,SCS Pooled Budgets,Direct Payments South Team,Other Agency and Contracted Services,57401,Direct Payments,03/11/2010,3301139259,760.74,A4e Management Ltd Week 1
http://statistics.data.gov.uk/id/local-authority/38,Oxfordshire County Council,SCS Pooled Budgets,PD Comm Supp Purchasg Budget - Witney,Other Agency and Contracted Services,57401,Direct Payments,03/11/2010,3301139264,790.35,A4e Management Ltd Week 1
http://statistics.data.gov.uk/id/local-authority/38,Oxfordshire County Council,SCS Pooled Budgets,Community Support Budget - Chipping Nort,Other Agency and Contracted Services,57401,Direct Payments,03/11/2010,3301139265,569.58,A4e Management Ltd Week 1
http://statistics.data.gov.uk/id/local-authority/38,Oxfordshire County Council,SCS Pooled Budgets,Community Support Budget - Banbury,Other Agency and Contracted Services,57401,Direct Payments,03/11/2010,3301139266,1129.2,A4e Management Ltd Week 1
http://statistics.data.gov.uk/id/local-authority/38,Oxfordshire County Council,SCS Pooled Budgets,PD Comm Supp Purchasg Budget - Didcot,Other Agency and Contracted Services,57401,Direct Payments,03/11/2010,3301139271,618.39,A4e Management Ltd Week 1
http://statistics.data.gov.uk/id/local-authority/38,Oxfordshire County Council,SCS Pooled Budgets,Community Support Budget - Banbury,Other Agency and Contracted Services,57401,Direct Payments,03/11/2010,3301139273,760.62,A4e Management Ltd Week 1
http://statistics.data.gov.uk/id/local-authority/38,Oxfordshire County Council,SCS Pooled Budgets,PD Comm Supp Budget - Banbury,Other Agency and Contracted Services,57401,Direct Payments,03/11/2010,3301139274,564.21,A4e Management Ltd Week 1
http://statistics.data.gov.uk/id/local-authority/38,Oxfordshire County Council,SCS Pooled Budgets,PD Comm Supp Budget - Banbury,Other Agency and Contracted Services,57401,Direct Payments,03/11/2010,3301139276,2979.9,A4e Management Ltd Week 1
http://statistics.data.gov.uk/id/local-authority/38,Oxfordshire County Council,SCS Pooled Budgets,PD CS Purch Budget - Health S28a JC,Other Agency and Contracted Services,57401,Direct Payments,03/11/2010,3301139276,983.47,A4e Management Ltd Week 1
http://statistics.data.gov.uk/id/local-authority/38,Oxfordshire County Council,SCS Pooled Budgets,PD Comm Supp Budget - Banbury,Other Agency and Contracted Services,57401,Direct Payments,03/11/2010,3301139277,763.56,A4e Management Ltd Week 1
http://statistics.data.gov.uk/id/local-authority/38,Oxfordshire County Council,SCS Pooled Budgets,PD Comm Supp Budget - Banbury,Other Agency and Contracted Services,57401,Direct Payments,03/11/2010,3301139280,1341.75,A4e Management Ltd Week 1
http://statistics.data.gov.uk/id/local-authority/38,Oxfordshire County Council,SCS Pooled Budgets,Community Support Budget - Bicester,Other Agency and Contracted Services,57401,Direct Payments,03/11/2010,3301139287,655.97,A4e Management Ltd Week 1
http://statistics.data.gov.uk/id/local-authority/38,Oxfordshire County Council,SCS Pooled Budgets,OP Pool Continuing Care Delegated Health,Other Agency and Contracted Services,57401,Direct Payments,03/11/2010,3301139290,993.06,A4e Management Ltd Week 1
http://statistics.data.gov.uk/id/local-authority/38,Oxfordshire County Council,SCS Pooled Budgets,Community Support Budget - Bicester,Other Agency and Contracted Services,57401,Direct Payments,03/11/2010,3301139290,1967.91,A4e Management Ltd Week 1
http://statistics.data.gov.uk/id/local-authority/38,Oxfordshire County Council,SCS Pooled Budgets,Community Support Budget - Banbury,Other Agency and Contracted Services,57401,Direct Payments,03/11/2010,3301139295,569.63,A4e Management Ltd Week 1
http://statistics.data.gov.uk/id/local-authority/38,Oxfordshire County Council,SCS Pooled Budgets,PD CS Purch Budget - Health S28a JC,Other Agency and Contracted Services,57401,Direct Payments,03/11/2010,3301139297,765.59,A4e Management Ltd Week 1
http://statistics.data.gov.uk/id/local-authority/38,Oxfordshire County Council,SCS Pooled Budgets,PD Comm Supp Budget - Banbury,Other Agency and Contracted Services,57401,Direct Payments,03/11/2010,3301139297,1501.02,A4e Management Ltd Week 1
http://statistics.data.gov.uk/id/local-authority/38,Oxfordshire County Council,SCS Pooled Budgets,Community Support Budget - City,Other Agency and Contracted Services,57401,Direct Payments,03/11/2010,3301139301,1200,A4e Management Ltd Week 1
http://statistics.data.gov.uk/id/local-authority/38,Oxfordshire County Council,SCS Pooled Budgets,Community Support Budget - County Carers,Other Agency and Contracted Services,57401,Direct Payments,03/11/2010,3301139304,600,REDACTED PERSONAL DATA
http://statistics.data.gov.uk/id/local-authority/38,Oxfordshire County Council,SCS Pooled Budgets,Carers Break / Respite Project,Other Agency and Contracted Services,57401,Direct Payments,03/11/2010,3301139305,750,REDACTED PERSONAL DATA
http://statistics.data.gov.uk/id/local-authority/38,Oxfordshire County Council,SCS Pooled Budgets,Carers Break / Respite Project,Other Agency and Contracted Services,57401,Direct Payments,03/11/2010,3301139306,750,REDACTED PERSONAL DATA
http://statistics.data.gov.uk/id/local-authority/38,Oxfordshire County Council,SCS Pooled Budgets,Carers Break / Respite Project,Other Agency and Contracted Services,57401,Direct Payments,03/11/2010,3301139307,750,REDACTED PERSONAL DATA
http://statistics.data.gov.uk/id/local-authority/38,Oxfordshire County Council,SCS Pooled Budgets,Carers Break / Respite Project,Other Agency and Contracted Services,57401,Direct Payments,03/11/2010,3301139308,750,REDACTED PERSONAL DATA
http://statistics.data.gov.uk/id/local-authority/38,Oxfordshire County Council,SCS Pooled Budgets,Carers Break / Respite Project,Other Agency and Contracted Services,57401,Direct Payments,03/11/2010,3301139310,750,REDACTED PERSONAL DATA
http://statistics.data.gov.uk/id/local-authority/38,Oxfordshire County Council,SCS Pooled Budgets,Carers Break / Respite Project,Other Agency and Contracted Services,57401,Direct Payments,03/11/2010,3301139311,750,REDACTED PERSONAL DATA
http://statistics.data.gov.uk/id/local-authority/38,Oxfordshire County Council,SCS Pooled Budgets,Carers Break / Respite Project,Other Agency and Contracted Services,57401,Direct Payments,03/11/2010,3301139312,750,REDACTED PERSONAL DATA
http://statistics.data.gov.uk/id/local-authority/38,Oxfordshire County Council,SCS Pooled Budgets,OP Pool Respite Care,Other Agency and Contracted Services,57401,Direct Payments,03/11/2010,3301139313,500,REDACTED PERSONAL DATA
http://statistics.data.gov.uk/id/local-authority/38,Oxfordshire County Council,Social & Community Services,PD Comm Supp Purchasg County Carers Grt,Other Agency and Contracted Services,57401,Direct Payments,03/11/2010,3301139314,600,REDACTED PERSONAL DATA
http://statistics.data.gov.uk/id/local-authority/38,Oxfordshire County Council,SCS Pooled Budgets,Carers Break / Respite Project,Other Agency and Contracted Services,57401,Direct Payments,03/11/2010,3301139315,750,REDACTED PERSONAL DATA
http://statistics.data.gov.uk/id/local-authority/38,Oxfordshire County Council,SCS Pooled Budgets,Community Support Budget - County Carers,Other Agency and Contracted Services,57401,Direct Payments,03/11/2010,3301139316,600,REDACTED PERSONAL DATA
http://statistics.data.gov.uk/id/local-authority/38,Oxfordshire County Council,SCS Pooled Budgets,Community Support Budget - City,Other Agency and Contracted Services,57401,Direct Payments,03/11/2010,3301139317,5250,REDACTED PERSONAL DATA
http://statistics.data.gov.uk/id/local-authority/38,Oxfordshire County Council,"Commissioning, Performance & Quality Ass",Zone 2 - East,Contract Hire/Leasing,33101,Home to School Trans,03/11/2010,3301139339,2100,AKR LTD
http://statistics.data.gov.uk/id/local-authority/38,Oxfordshire County Council,"Commissioning, Performance & Quality Ass",Zone 3 - West,Contract Hire/Leasing,33101,Home to School Trans,03/11/2010,3301139340,2190.6,AKR LTD
http://statistics.data.gov.uk/id/local-authority/38,Oxfordshire County Council,"Commissioning, Performance & Quality Ass",Zone 4 - Vale,Contract Hire/Leasing,33101,Home to School Trans,03/11/2010,3301139341,1502.08,AKR LTD
http://statistics.data.gov.uk/id/local-authority/38,Oxfordshire County Council,"Commissioning, Performance & Quality Ass",Oxford Nth SEN Trans,Contract Hire/Leasing,33101,Home to School Trans,03/11/2010,3301139342,1191.6,AKR LTD
http://statistics.data.gov.uk/id/local-authority/38,Oxfordshire County Council,"Commissioning, Performance & Quality Ass",Oxford Nth SEN Trans,Contract Hire/Leasing,33101,Home to School Trans,03/11/2010,3301139345,1173.45,AKR LTD
http://statistics.data.gov.uk/id/local-authority/38,Oxfordshire County Council,"Commissioning, Performance & Quality Ass",Oxford Sth SEN Trans,Contract Hire/Leasing,33101,Home to School Trans,03/11/2010,3301139347,900,AKR LTD
http://statistics.data.gov.uk/id/local-authority/38,Oxfordshire County Council,"Commissioning, Performance & Quality Ass",Abingdon SEN Trans,Contract Hire/Leasing,33101,Home to School Trans,03/11/2010,3301139351,849.15,AKR LTD
http://statistics.data.gov.uk/id/local-authority/38,Oxfordshire County Council,"Commissioning, Performance & Quality Ass",Oxford Sth SEN Trans,Contract Hire/Leasing,33101,Home to School Trans,03/11/2010,3301139353,1072,AKR LTD
http://statistics.data.gov.uk/id/local-authority/38,Oxfordshire County Council,"Commissioning, Performance & Quality Ass",Oxford Sth SEN Trans,Contract Hire/Leasing,33101,Home to School Trans,03/11/2010,3301139356,1280,AKR LTD
http://statistics.data.gov.uk/id/local-authority/38,Oxfordshire County Council,"Commissioning, Performance & Quality Ass",Wantage SEN Trans,Contract Hire/Leasing,33101,Home to School Trans,03/11/2010,3301139358,1320,Grove Taxis
http://statistics.data.gov.uk/id/local-authority/38,Oxfordshire County Council,"Commissioning, Performance & Quality Ass",Wantage SEN Trans,Contract Hire/Leasing,33101,Home to School Trans,03/11/2010,3301139360,960,P C Reeder
http://statistics.data.gov.uk/id/local-authority/38,Oxfordshire County Council,"Commissioning, Performance & Quality Ass",Wantage SEN Trans,Contract Hire/Leasing,33101,Home to School Trans,03/11/2010,3301139362,1280,P C Reeder
http://statistics.data.gov.uk/id/local-authority/38,Oxfordshire County Council,SCS Pooled Budgets,LD CMPB - South Transport,Public Transport,34200,Client Journeys,03/11/2010,3301139364,1120,P C Reeder
http://statistics.data.gov.uk/id/local-authority/38,Oxfordshire County Council,"Commissioning, Performance & Quality Ass",Abingdon SEN Trans,Contract Hire/Leasing,33101,Home to School Trans,03/11/2010,3301139373,1200,S S Taxi
http://statistics.data.gov.uk/id/local-authority/38,Oxfordshire County Council,"Commissioning, Performance & Quality Ass",Meadowbrook Transprt,Contract Hire/Leasing,33101,Home to School Trans,03/11/2010,3301139375,600,SJB Cars
http://statistics.data.gov.uk/id/local-authority/38,Oxfordshire County Council,"Commissioning, Performance & Quality Ass",Meadowbrook Transprt,Contract Hire/Leasing,33101,Home to School Trans,03/11/2010,3301139376,565,SJB Cars
http://statistics.data.gov.uk/id/local-authority/38,Oxfordshire County Council,"Commissioning, Performance & Quality Ass",Oxford Sth SEN Trans,Contract Hire/Leasing,33101,Home to School Trans,03/11/2010,3301139378,665,SJB Cars
http://statistics.data.gov.uk/id/local-authority/38,Oxfordshire County Council,"Commissioning, Performance & Quality Ass",Banbury SEN Trans,Contract Hire/Leasing,33101,Home to School Trans,03/11/2010,3301139380,3143.18,Pages Taxis
http://statistics.data.gov.uk/id/local-authority/38,Oxfordshire County Council,"Commissioning, Performance & Quality Ass",Banbury SEN Trans,Contract Hire/Leasing,33300,Transport (General),03/11/2010,3301139381,564.3,Pages Taxis
http://statistics.data.gov.uk/id/local-authority/38,Oxfordshire County Council,"Commissioning, Performance & Quality Ass",Bicester SEN Trans,Contract Hire/Leasing,33101,Home to School Trans,03/11/2010,3301139382,2417.12,Pages Taxis
http://statistics.data.gov.uk/id/local-authority/38,Oxfordshire County Council,"Commissioning, Performance & Quality Ass",Bicester SEN Trans,Contract Hire/Leasing,33300,Transport (General),03/11/2010,3301139383,586.72,Pages Taxis
http://statistics.data.gov.uk/id/local-authority/38,Oxfordshire County Council,"Commissioning, Performance & Quality Ass",Oxford Nth SEN Trans,Contract Hire/Leasing,33101,Home to School Trans,03/11/2010,3301139384,2443.65,Pages Taxis
http://statistics.data.gov.uk/id/local-authority/38,Oxfordshire County Council,"Commissioning, Performance & Quality Ass",Oxford Nth SEN Trans,Contract Hire/Leasing,33300,Transport (General),03/11/2010,3301139385,606.9,Pages Taxis
http://statistics.data.gov.uk/id/local-authority/38,Oxfordshire County Council,"Commissioning, Performance & Quality Ass",Zone 5 - South,Contract Hire/Leasing,33101,Home to School Trans,03/11/2010,3301139386,3271.05,Carousel Buses Limited
http://statistics.data.gov.uk/id/local-authority/38,Oxfordshire County Council,"Commissioning, Performance & Quality Ass",Zone 5 - South,Contract Hire/Leasing,33101,Home to School Trans,03/11/2010,3301139387,3271.05,Carousel Buses Limited
http://statistics.data.gov.uk/id/local-authority/38,Oxfordshire County Council,"Commissioning, Performance & Quality Ass",FE Special Trans,Contract Hire/Leasing,33101,Home to School Trans,03/11/2010,3301139389,500,Monarch Oxford
http://statistics.data.gov.uk/id/local-authority/38,Oxfordshire County Council,"Commissioning, Performance & Quality Ass",Oxford Sth SEN Trans,Contract Hire/Leasing,33101,Home to School Trans,03/11/2010,3301139390,900,Monarch Oxford
http://statistics.data.gov.uk/id/local-authority/38,Oxfordshire County Council,"Commissioning, Performance & Quality Ass",Out of County,Contract Hire/Leasing,33101,Home to School Trans,03/11/2010,3301139392,1430,AD Taxi
http://statistics.data.gov.uk/id/local-authority/38,Oxfordshire County Council,"Commissioning, Performance & Quality Ass",Zone 3 - West,Contract Hire/Leasing,33101,Home to School Trans,03/11/2010,3301139393,2560.65,Charlbury Travel
http://statistics.data.gov.uk/id/local-authority/38,Oxfordshire County Council,"Commissioning, Performance & Quality Ass",Zone 5 - South,Contract Hire/Leasing,33101,Home to School Trans,03/11/2010,3301139394,3633.52,Woottens
http://statistics.data.gov.uk/id/local-authority/38,Oxfordshire County Council,"Commissioning, Performance & Quality Ass",Zone 5 - South,Contract Hire/Leasing,33101,Home to School Trans,03/11/2010,3301139395,3633.74,Woottens
http://statistics.data.gov.uk/id/local-authority/38,Oxfordshire County Council,"Commissioning, Performance & Quality Ass",Zone 2 - East,Contract Hire/Leasing,33101,Home to School Trans,03/11/2010,3301139396,2937.9,Woottens
http://statistics.data.gov.uk/id/local-authority/38,Oxfordshire County Council,"Commissioning, Performance & Quality Ass",Zone 5 - South,Contract Hire/Leasing,33101,Home to School Trans,03/11/2010,3301139397,2614.65,Express Taxis
http://statistics.data.gov.uk/id/local-authority/38,Oxfordshire County Council,"Commissioning, Performance & Quality Ass",Zone 5 - South,Contract Hire/Leasing,33101,Home to School Trans,03/11/2010,3301139398,1209.75,Express Taxis
http://statistics.data.gov.uk/id/local-authority/38,Oxfordshire County Council,"Commissioning, Performance & Quality Ass",Zone 5 - South,Contract Hire/Leasing,33101,Home to School Trans,03/11/2010,3301139399,1221.75,Express Taxis
http://statistics.data.gov.uk/id/local-authority/38,Oxfordshire County Council,"Commissioning, Performance & Quality Ass",Zone 5 - South,Contract Hire/Leasing,33101,Home to School Trans,03/11/2010,3301139400,1684.2,Express Taxis
http://statistics.data.gov.uk/id/local-authority/38,Oxfordshire County Council,"Commissioning, Performance & Quality Ass",Zone 5 - South,Contract Hire/Leasing,33101,Home to School Trans,03/11/2010,3301139401,1974,Express Taxis
http://statistics.data.gov.uk/id/local-authority/38,Oxfordshire County Council,"Commissioning, Performance & Quality Ass",Zone 4 - Vale,Contract Hire/Leasing,33101,Home to School Trans,03/11/2010,3301139402,2216.16,Express Taxis
http://statistics.data.gov.uk/id/local-authority/38,Oxfordshire County Council,"Commissioning, Performance & Quality Ass",Zone 2 - East,Contract Hire/Leasing,33101,Home to School Trans,03/11/2010,3301139403,960,Express Taxis
http://statistics.data.gov.uk/id/local-authority/38,Oxfordshire County Council,"Commissioning, Performance & Quality Ass",Zone 2 - East,Contract Hire/Leasing,33101,Home to School Trans,03/11/2010,3301139404,1120,Express Taxis
http://statistics.data.gov.uk/id/local-authority/38,Oxfordshire County Council,"Commissioning, Performance & Quality Ass",Zone 2 - East,Contract Hire/Leasing,33101,Home to School Trans,03/11/2010,3301139405,1760,Express Taxis
http://statistics.data.gov.uk/id/local-authority/38,Oxfordshire County Council,"Commissioning, Performance & Quality Ass",Oxford Sth SEN Trans,Contract Hire/Leasing,33101,Home to School Trans,03/11/2010,3301139406,1797.44,Mills Transport Ltd
http://statistics.data.gov.uk/id/local-authority/38,Oxfordshire County Council,"Commissioning, Performance & Quality Ass",Oxford Sth SEN Trans,Contract Hire/Leasing,33101,Home to School Trans,03/11/2010,3301139408,1280,Mills Transport Ltd
http://statistics.data.gov.uk/id/local-authority/38,Oxfordshire County Council,"Commissioning, Performance & Quality Ass",Oxford Sth SEN Trans,Contract Hire/Leasing,33101,Home to School Trans,03/11/2010,3301139410,1200,Mills Transport Ltd
http://statistics.data.gov.uk/id/local-authority/38,Oxfordshire County Council,"Commissioning, Performance & Quality Ass",Oxford Sth SEN Trans,Contract Hire/Leasing,33101,Home to School Trans,03/11/2010,3301139412,1760,Mills Transport Ltd
http://statistics.data.gov.uk/id/local-authority/38,Oxfordshire County Council,"Commissioning, Performance & Quality Ass",Oxford Sth SEN Trans,Contract Hire/Leasing,33101,Home to School Trans,03/11/2010,3301139414,1440,Mills Transport Ltd
http://statistics.data.gov.uk/id/local-authority/38,Oxfordshire County Council,"Commissioning, Performance & Quality Ass",Oxford Sth SEN Trans,Contract Hire/Leasing,33101,Home to School Trans,03/11/2010,3301139416,1280,Mills Transport Ltd
http://statistics.data.gov.uk/id/local-authority/38,Oxfordshire County Council,"Commissioning, Performance & Quality Ass",Zone 2 - East,Contract Hire/Leasing,33101,Home to School Trans,03/11/2010,3301139418,1305,Charlton-On-Otmoor Services
http://statistics.data.gov.uk/id/local-authority/38,Oxfordshire County Council,"Commissioning, Performance & Quality Ass",Zone 3 - West,Contract Hire/Leasing,33101,Home to School Trans,03/11/2010,3301139419,2478.15,Charlton-On-Otmoor Services
http://statistics.data.gov.uk/id/local-authority/38,Oxfordshire County Council,"Commissioning, Performance & Quality Ass",Zone 2 - East,Contract Hire/Leasing,33101,Home to School Trans,03/11/2010,3301139420,2085,Charlton-On-Otmoor Services
http://statistics.data.gov.uk/id/local-authority/38,Oxfordshire County Council,"Commissioning, Performance & Quality Ass",Zone 5 - South,Contract Hire/Leasing,33101,Home to School Trans,03/11/2010,3301139421,2312.85,Charlton-On-Otmoor Services
http://statistics.data.gov.uk/id/local-authority/38,Oxfordshire County Council,"Commissioning, Performance & Quality Ass",Zone 5 - South,Contract Hire/Leasing,33101,Home to School Trans,03/11/2010,3301139422,2069.6,Charlton-On-Otmoor Services
http://statistics.data.gov.uk/id/local-authority/38,Oxfordshire County Council,"Commissioning, Performance & Quality Ass",Zone 5 - South,Contract Hire/Leasing,33101,Home to School Trans,03/11/2010,3301139423,2069.6,Charlton-On-Otmoor Services
http://statistics.data.gov.uk/id/local-authority/38,Oxfordshire County Council,"Commissioning, Performance & Quality Ass",Zone 5 - South,Contract Hire/Leasing,33101,Home to School Trans,03/11/2010,3301139424,2312.85,Charlton-On-Otmoor Services
http://statistics.data.gov.uk/id/local-authority/38,Oxfordshire County Council,"Commissioning, Performance & Quality Ass",Zone 5 - South,Contract Hire/Leasing,33101,Home to School Trans,03/11/2010,3301139425,2395.35,Charlton-On-Otmoor Services
http://statistics.data.gov.uk/id/local-authority/38,Oxfordshire County Council,"Commissioning, Performance & Quality Ass",Zone 2 - East,Contract Hire/Leasing,33101,Home to School Trans,03/11/2010,3301139426,1860,Charlton-On-Otmoor Services
http://statistics.data.gov.uk/id/local-authority/38,Oxfordshire County Council,"Commissioning, Performance & Quality Ass",Zone 2 - East,Contract Hire/Leasing,33101,Home to School Trans,03/11/2010,3301139427,1860,Charlton-On-Otmoor Services
http://statistics.data.gov.uk/id/local-authority/38,Oxfordshire County Council,"Commissioning, Performance & Quality Ass",Zone 2 - East,Contract Hire/Leasing,33101,Home to School Trans,03/11/2010,3301139428,1350,Charlton-On-Otmoor Services
http://statistics.data.gov.uk/id/local-authority/38,Oxfordshire County Council,"Commissioning, Performance & Quality Ass",Oxford Sth SEN Trans,Contract Hire/Leasing,33101,Home to School Trans,03/11/2010,3301139429,1335.2,J.Dhanjal Transport Ltd
http://statistics.data.gov.uk/id/local-authority/38,Oxfordshire County Council,"Commissioning, Performance & Quality Ass",Zone 5 - South,Contract Hire/Leasing,33101,Home to School Trans,03/11/2010,3301139431,2636.96,J.Dhanjal Transport Ltd
http://statistics.data.gov.uk/id/local-authority/38,Oxfordshire County Council,"Commissioning, Performance & Quality Ass",Zone 5 - South,Contract Hire/Leasing,33101,Home to School Trans,03/11/2010,3301139432,2769.45,J.Dhanjal Transport Ltd
http://statistics.data.gov.uk/id/local-authority/38,Oxfordshire County Council,"Commissioning, Performance & Quality Ass",Zone 3 - West,Contract Hire/Leasing,33101,Home to School Trans,03/11/2010,3301139433,2362.5,J.Dhanjal Transport Ltd
http://statistics.data.gov.uk/id/local-authority/38,Oxfordshire County Council,"Commissioning, Performance & Quality Ass",Oxford Nth SEN Trans,Contract Hire/Leasing,33101,Home to School Trans,03/11/2010,3301139434,1170,C A Pittaway Transport
http://statistics.data.gov.uk/id/local-authority/38,Oxfordshire County Council,"Commissioning, Performance & Quality Ass",Oxford Sth SEN Trans,Contract Hire/Leasing,33101,Home to School Trans,03/11/2010,3301139436,1200,C A Pittaway Transport
http://statistics.data.gov.uk/id/local-authority/38,Oxfordshire County Council,"Commissioning, Performance & Quality Ass",Oxford Sth SEN Trans,Contract Hire/Leasing,33101,Home to School Trans,03/11/2010,3301139438,2215.84,Transpiration Limited
http://statistics.data.gov.uk/id/local-authority/38,Oxfordshire County Council,"Commissioning, Performance & Quality Ass",Oxford Sth SEN Trans,Contract Hire/Leasing,33300,Transport (General),03/11/2010,3301139439,630.88,Transpiration Limited
http://statistics.data.gov.uk/id/local-authority/38,Oxfordshire County Council,"Commissioning, Performance & Quality Ass",Oxford Sth SEN Trans,Contract Hire/Leasing,33101,Home to School Trans,03/11/2010,3301139440,1670.4,Transpiration Limited
http://statistics.data.gov.uk/id/local-authority/38,Oxfordshire County Council,"Commissioning, Performance & Quality Ass",Oxford Sth SEN Trans,Contract Hire/Leasing,33101,Home to School Trans,03/11/2010,3301139441,2160.8,Transpiration Limited
http://statistics.data.gov.uk/id/local-authority/38,Oxfordshire County Council,"Commissioning, Performance & Quality Ass",Oxford Sth SEN Trans,Contract Hire/Leasing,33300,Transport (General),03/11/2010,3301139442,612.48,Transpiration Limited
http://statistics.data.gov.uk/id/local-authority/38,Oxfordshire County Council,"Commissioning, Performance & Quality Ass",Oxford Sth SEN Trans,Contract Hire/Leasing,33101,Home to School Trans,03/11/2010,3301139444,1685.6,Transpiration Limited
http://statistics.data.gov.uk/id/local-authority/38,Oxfordshire County Council,"Commissioning, Performance & Quality Ass",Oxford Sth SEN Trans,Contract Hire/Leasing,33300,Transport (General),03/11/2010,3301139445,582.24,Transpiration Limited
http://statistics.data.gov.uk/id/local-authority/38,Oxfordshire County Council,"Commissioning, Performance & Quality Ass",S'Common SEN Trans,Contract Hire/Leasing,33101,Home to School Trans,03/11/2010,3301139447,1670.4,Transpiration Limited
http://statistics.data.gov.uk/id/local-authority/38,Oxfordshire County Council,"Commissioning, Performance & Quality Ass",S'Common SEN Trans,Contract Hire/Leasing,33101,Home to School Trans,03/11/2010,3301139448,1517.6,Transpiration Limited
http://statistics.data.gov.uk/id/local-authority/38,Oxfordshire County Council,"Commissioning, Performance & Quality Ass",S'Common SEN Trans,Contract Hire/Leasing,33300,Transport (General),03/11/2010,3301139449,484.96,Transpiration Limited
http://statistics.data.gov.uk/id/local-authority/38,Oxfordshire County Council,"Commissioning, Performance & Quality Ass",FE Special Trans,Contract Hire/Leasing,33101,Home to School Trans,03/11/2010,3301139451,1980,Transpiration Limited
http://statistics.data.gov.uk/id/local-authority/38,Oxfordshire County Council,"Commissioning, Performance & Quality Ass",FE Special Trans,Contract Hire/Leasing,33300,Transport (General),03/11/2010,3301139452,510,Transpiration Limited
http://statistics.data.gov.uk/id/local-authority/38,Oxfordshire County Council,"Commissioning, Performance & Quality Ass",FE Special Trans,Contract Hire/Leasing,33101,Home to School Trans,03/11/2010,3301139453,1699.08,Transpiration Limited
http://statistics.data.gov.uk/id/local-authority/38,Oxfordshire County Council,"Commissioning, Performance & Quality Ass",FE Special Trans,Contract Hire/Leasing,33300,Transport (General),03/11/2010,3301139454,585,Transpiration Limited
http://statistics.data.gov.uk/id/local-authority/38,Oxfordshire County Council,SCS Pooled Budgets,LD CMPB - South Transport,Public Transport,34200,Client Journeys,03/11/2010,3301139455,505.92,Transpiration Limited
http://statistics.data.gov.uk/id/local-authority/38,Oxfordshire County Council,"Commissioning, Performance & Quality Ass",Zone 2 - East,Contract Hire/Leasing,33101,Home to School Trans,03/11/2010,3301139456,720,L. Sarbatta
http://statistics.data.gov.uk/id/local-authority/38,Oxfordshire County Council,"Commissioning, Performance & Quality Ass",Banbury SEN Trans,Contract Hire/Leasing,33101,Home to School Trans,03/11/2010,3301139457,832.5,M J Cars
http://statistics.data.gov.uk/id/local-authority/38,Oxfordshire County Council,"Commissioning, Performance & Quality Ass",Oxford Sth SEN Trans,Contract Hire/Leasing,33101,Home to School Trans,03/11/2010,3301139459,1840,M J Cars
http://statistics.data.gov.uk/id/local-authority/38,Oxfordshire County Council,"Commissioning, Performance & Quality Ass",Zone 5 - South,Contract Hire/Leasing,33101,Home to School Trans,03/11/2010,3301139462,3279.97,W Zaman T/A Vale Travel.
http://statistics.data.gov.uk/id/local-authority/38,Oxfordshire County Council,"Commissioning, Performance & Quality Ass",Zone 5 - South,Contract Hire/Leasing,33101,Home to School Trans,03/11/2010,3301139463,3410.8,W Zaman T/A Vale Travel.
http://statistics.data.gov.uk/id/local-authority/38,Oxfordshire County Council,"Commissioning, Performance & Quality Ass",Zone 5 - South,Contract Hire/Leasing,33101,Home to School Trans,03/11/2010,3301139464,615,Henley Taxis Ltd T/A Talbot Select
http://statistics.data.gov.uk/id/local-authority/38,Oxfordshire County Council,"Commissioning, Performance & Quality Ass",Zone 5 - South,Contract Hire/Leasing,33101,Home to School Trans,03/11/2010,3301139465,600,Henley Taxis Ltd T/A Talbot Select
http://statistics.data.gov.uk/id/local-authority/38,Oxfordshire County Council,"Commissioning, Performance & Quality Ass",Zone 5 - South,Contract Hire/Leasing,33101,Home to School Trans,03/11/2010,3301139466,522.6,Henley Taxis Ltd T/A Talbot Select
http://statistics.data.gov.uk/id/local-authority/38,Oxfordshire County Council,"Commissioning, Performance & Quality Ass",Zone 5 - South,Contract Hire/Leasing,33101,Home to School Trans,03/11/2010,3301139468,1702.5,Henley Taxis Ltd T/A Talbot Select
http://statistics.data.gov.uk/id/local-authority/38,Oxfordshire County Council,Raising Achievement Service,Kilvrough Manor,Contract Hire/Leasing,33103,Transport to Centres,03/11/2010,3301139470,1130,Tappins Coaches
http://statistics.data.gov.uk/id/local-authority/38,Oxfordshire County Council,Raising Achievement Service,Woodlands Centre,Contract Hire/Leasing,33103,Transport to Centres,03/11/2010,3301139471,920,Tappins Coaches
http://statistics.data.gov.uk/id/local-authority/38,Oxfordshire County Council,Raising Achievement Service,Yenworthy Lodge,Contract Hire/Leasing,33103,Transport to Centres,03/11/2010,3301139472,1100,Tappins Coaches
http://statistics.data.gov.uk/id/local-authority/38,Oxfordshire County Council,"Commissioning, Performance & Quality Ass",Zone 3 - West,Contract Hire/Leasing,33101,Home to School Trans,03/11/2010,3301139473,542.08,Topcars Witney
http://statistics.data.gov.uk/id/local-authority/38,Oxfordshire County Council,"Commissioning, Performance & Quality Ass",FE Special Trans,Contract Hire/Leasing,33101,Home to School Trans,03/11/2010,3301139474,1095,Reading Wheelchair Travel Ltd
http://statistics.data.gov.uk/id/local-authority/38,Oxfordshire County Council,"Commissioning, Performance & Quality Ass",Zone 5 - South,Contract Hire/Leasing,33101,Home to School Trans,03/11/2010,3301139476,1537.5,Reading Wheelchair Travel Ltd
http://statistics.data.gov.uk/id/local-authority/38,Oxfordshire County Council,"Commissioning, Performance & Quality Ass",Zone 5 - South,Contract Hire/Leasing,33101,Home to School Trans,03/11/2010,3301139477,1480,Reading Wheelchair Travel Ltd
http://statistics.data.gov.uk/id/local-authority/38,Oxfordshire County Council,"Commissioning, Performance & Quality Ass",Zone 5 - South,Contract Hire/Leasing,33101,Home to School Trans,03/11/2010,3301139478,1605,Reading Wheelchair Travel Ltd
http://statistics.data.gov.uk/id/local-authority/38,Oxfordshire County Council,"Commissioning, Performance & Quality Ass",Abingdon SEN Trans,Contract Hire/Leasing,33101,Home to School Trans,03/11/2010,3301139479,850,Reading Wheelchair Travel Ltd
http://statistics.data.gov.uk/id/local-authority/38,Oxfordshire County Council,"Commissioning, Performance & Quality Ass",Abingdon SEN Trans,Contract Hire/Leasing,33101,Home to School Trans,03/11/2010,3301139481,650,Reading Wheelchair Travel Ltd
http://statistics.data.gov.uk/id/local-authority/38,Oxfordshire County Council,"Commissioning, Performance & Quality Ass",Zone 2 - East,Contract Hire/Leasing,33101,Home to School Trans,03/11/2010,3301139483,784,Premier Cars
http://statistics.data.gov.uk/id/local-authority/38,Oxfordshire County Council,"Commissioning, Performance & Quality Ass",Zone 2 - East,Contract Hire/Leasing,33101,Home to School Trans,03/11/2010,3301139484,784,Premier Cars
http://statistics.data.gov.uk/id/local-authority/38,Oxfordshire County Council,"Commissioning, Performance & Quality Ass",Zone 2 - East,Contract Hire/Leasing,33101,Home to School Trans,03/11/2010,3301139485,672,Premier Cars
http://statistics.data.gov.uk/id/local-authority/38,Oxfordshire County Council,"Commissioning, Performance & Quality Ass",Zone 1 - North,Contract Hire/Leasing,33101,Home to School Trans,03/11/2010,3301139486,1568,Premier Cars
http://statistics.data.gov.uk/id/local-authority/38,Oxfordshire County Council,"Commissioning, Performance & Quality Ass",Oxford Sth SEN Trans,Contract Hire/Leasing,33101,Home to School Trans,03/11/2010,3301139487,1200,John Cleaton Airport Cars Oxford
http://statistics.data.gov.uk/id/local-authority/38,Oxfordshire County Council,"Commissioning, Performance & Quality Ass",Zone 2 - East,Contract Hire/Leasing,33101,Home to School Trans,03/11/2010,3301139489,755,D James
http://statistics.data.gov.uk/id/local-authority/38,Oxfordshire County Council,"Commissioning, Performance & Quality Ass",Zone 5 - South,Contract Hire/Leasing,33101,Home to School Trans,03/11/2010,3301139490,2804.34,Horseman Coaches Ltd
http://statistics.data.gov.uk/id/local-authority/38,Oxfordshire County Council,"Commissioning, Performance & Quality Ass",Zone 5 - South,Contract Hire/Leasing,33101,Home to School Trans,03/11/2010,3301139491,2003.1,Horseman Coaches Ltd
http://statistics.data.gov.uk/id/local-authority/38,Oxfordshire County Council,"Commissioning, Performance & Quality Ass",Zone 4 - Vale,Contract Hire/Leasing,33101,Home to School Trans,03/11/2010,3301139492,3065.55,Pearces Private Hire Ltd
http://statistics.data.gov.uk/id/local-authority/38,Oxfordshire County Council,"Commissioning, Performance & Quality Ass",Zone 5 - South,Contract Hire/Leasing,33101,Home to School Trans,03/11/2010,3301139493,1877.7,Destinations Luxury Travel
http://statistics.data.gov.uk/id/local-authority/38,Oxfordshire County Council,"Commissioning, Performance & Quality Ass",Oxford Nth SEN Trans,Contract Hire/Leasing,33101,Home to School Trans,03/11/2010,3301139495,1163.04,Angela's Travel
http://statistics.data.gov.uk/id/local-authority/38,Oxfordshire County Council,"Commissioning, Performance & Quality Ass",Oxford Nth SEN Trans,Contract Hire/Leasing,33300,Transport (General),03/11/2010,3301139496,500.96,Angela's Travel
http://statistics.data.gov.uk/id/local-authority/38,Oxfordshire County Council,"Commissioning, Performance & Quality Ass",Oxford Nth SEN Trans,Contract Hire/Leasing,33101,Home to School Trans,03/11/2010,3301139497,1404.91,Angela's Travel
http://statistics.data.gov.uk/id/local-authority/38,Oxfordshire County Council,"Commissioning, Performance & Quality Ass",Zone 3 - West,Contract Hire/Leasing,33101,Home to School Trans,03/11/2010,3301139500,1627.5,Angela's Travel
http://statistics.data.gov.uk/id/local-authority/38,Oxfordshire County Council,"Commissioning, Performance & Quality Ass",Zone 3 - West,Contract Hire/Leasing,33101,Home to School Trans,03/11/2010,3301139501,520,Angela's Travel
http://statistics.data.gov.uk/id/local-authority/38,Oxfordshire County Council,"Commissioning, Performance & Quality Ass",Zone 3 - West,Contract Hire/Leasing,33101,Home to School Trans,03/11/2010,3301139502,750.9,Angela's Travel
http://statistics.data.gov.uk/id/local-authority/38,Oxfordshire County Council,"Commissioning, Performance & Quality Ass",Oxford Nth SEN Trans,Contract Hire/Leasing,33101,Home to School Trans,03/11/2010,3301139503,1125,Angela's Travel
http://statistics.data.gov.uk/id/local-authority/38,Oxfordshire County Council,"Commissioning, Performance & Quality Ass",Abingdon SEN Trans,Contract Hire/Leasing,33101,Home to School Trans,03/11/2010,3301139509,544.5,Ken's Taxis
http://statistics.data.gov.uk/id/local-authority/38,Oxfordshire County Council,"Commissioning, Performance & Quality Ass",Out of County,Contract Hire/Leasing,33101,Home to School Trans,03/11/2010,3301139511,693.63,Ken's Taxis
http://statistics.data.gov.uk/id/local-authority/38,Oxfordshire County Council,SCS Pooled Budgets,Community Support Budget - City,Other Agency and Contracted Services,57300,Home Support (Ext) OS&HCD,03/11/2010,3301139546,6093.83,Home Choice Care
http://statistics.data.gov.uk/id/local-authority/38,Oxfordshire County Council,SCS Pooled Budgets,OP Pool Continuing Care Medication Only,Other Agency and Contracted Services,57306,Home Support (Ext) Medication Only,03/11/2010,3301139549,527.14,Home Choice Care
http://statistics.data.gov.uk/id/local-authority/38,Oxfordshire County Council,SCS Pooled Budgets,PD CS Purch Budget - Health S28a JC,Other Agency and Contracted Services,57300,Home Support (Ext) OS&HCD,03/11/2010,3301139555,683.91,Cherwell Care Services
http://statistics.data.gov.uk/id/local-authority/38,Oxfordshire County Council,SCS Pooled Budgets,PD Comm Supp Purchasg Budget - City,Other Agency and Contracted Services,57300,Home Support (Ext) OS&HCD,03/11/2010,3301139559,2184.17,Day & Night Care Assistance
http://statistics.data.gov.uk/id/local-authority/38,Oxfordshire County Council,SCS Pooled Budgets,OP Pool Continuing Care Medication Only,Other Agency and Contracted Services,57306,Home Support (Ext) Medication Only,03/11/2010,3301139561,535.31,Day & Night Care Assistance
http://statistics.data.gov.uk/id/local-authority/38,Oxfordshire County Council,SCS Pooled Budgets,PD Comm Supp Purchasg Budget - City,Other Agency and Contracted Services,57300,Home Support (Ext) OS&HCD,03/11/2010,3301139565,2417.56,Day & Night Care Assistance
http://statistics.data.gov.uk/id/local-authority/38,Oxfordshire County Council,SCS Pooled Budgets,OP Pool Continuing Care Medication Only,Other Agency and Contracted Services,57306,Home Support (Ext) Medication Only,03/11/2010,3301139567,1436.08,Greigcare Home Service
http://statistics.data.gov.uk/id/local-authority/38,Oxfordshire County Council,SCS Pooled Budgets,OP Pool Continuing Care Delegated Health,Other Agency and Contracted Services,57300,Home Support (Ext) OS&HCD,03/11/2010,3301139568,3916.61,Greigcare Home Service
http://statistics.data.gov.uk/id/local-authority/38,Oxfordshire County Council,SCS Pooled Budgets,Community Support Budget - Banbury,Other Agency and Contracted Services,57300,Home Support (Ext) OS&HCD,03/11/2010,3301139569,6831.74,Greigcare Home Service
http://statistics.data.gov.uk/id/local-authority/38,Oxfordshire County Council,SCS Pooled Budgets,Community Support Budget - City,Other Agency and Contracted Services,57300,Home Support (Ext) OS&HCD,03/11/2010,3301139575,1150.42,Oxfordshire Crossroads
http://statistics.data.gov.uk/id/local-authority/38,Oxfordshire County Council,SCS Pooled Budgets,Community Support Budget - Henley,Other Agency and Contracted Services,57300,Home Support (Ext) OS&HCD,03/11/2010,3301139578,7978.15,Premier Personal Care
http://statistics.data.gov.uk/id/local-authority/38,Oxfordshire County Council,SCS Pooled Budgets,Community Support Budget - Abingdon,Other Agency and Contracted Services,57300,Home Support (Ext) OS&HCD,03/11/2010,3301139592,627.19,1 to 1 Care
http://statistics.data.gov.uk/id/local-authority/38,Oxfordshire County Council,SCS Pooled Budgets,OP Pool Continuing Care Delegated Health,Other Agency and Contracted Services,57300,Home Support (Ext) OS&HCD,03/11/2010,3301139593,765.78,1 to 1 Care
http://statistics.data.gov.uk/id/local-authority/38,Oxfordshire County Council,SCS Pooled Budgets,Community Support Budget - City,Other Agency and Contracted Services,57300,Home Support (Ext) OS&HCD,03/11/2010,3301139594,3295.97,1 to 1 Care
http://statistics.data.gov.uk/id/local-authority/38,Oxfordshire County Council,SCS Pooled Budgets,OP Pool Continuing Care Medication Only,Other Agency and Contracted Services,57306,Home Support (Ext) Medication Only,03/11/2010,3301139597,560.55,Leonard Cheshire FOR PAYMENTS ONLY
http://statistics.data.gov.uk/id/local-authority/38,Oxfordshire County Council,SCS Pooled Budgets,Community Support Budget - City,Other Agency and Contracted Services,57300,Home Support (Ext) OS&HCD,03/11/2010,3301139608,893.92,Total Home Care Solutions
http://statistics.data.gov.uk/id/local-authority/38,Oxfordshire County Council,SCS Pooled Budgets,OP Pool Continuing Care Delegated Health,Other Agency and Contracted Services,57300,Home Support (Ext) OS&HCD,03/11/2010,3301139609,1203.2,Total Home Care Solutions
http://statistics.data.gov.uk/id/local-authority/38,Oxfordshire County Council,SCS Pooled Budgets,Community Support Budget - Faringdon,Other Agency and Contracted Services,57300,Home Support (Ext) OS&HCD,03/11/2010,3301139610,548.61,Total Home Care Solutions
http://statistics.data.gov.uk/id/local-authority/38,Oxfordshire County Council,SCS Pooled Budgets,Community Support Budget - Banbury,Other Agency and Contracted Services,57401,Direct Payments,03/11/2010,3301139641,1738.56,A4e Management Ltd Week 1
http://statistics.data.gov.uk/id/local-authority/38,Oxfordshire County Council,STD Business Support Directorate,MIS Payroll Workflow,Balance Sheet General,B7101,Teachers Pension Fund Scheme,03/11/2010,3301139710,3137686.58,Teachers Pensions
http://statistics.data.gov.uk/id/local-authority/38,Oxfordshire County Council,STD Business Support Directorate,MIS Payroll Workflow,Balance Sheet General,B7102,Local Government AVC,03/11/2010,3301139712,60393.9,Prudential Assurance Co. Ltd
http://statistics.data.gov.uk/id/local-authority/38,Oxfordshire County Council,STD Business Support Directorate,MIS Payroll Workflow,Balance Sheet General,B7103,Teachers AVC,03/11/2010,3301139715,56946.08,Prudential Assurance
http://statistics.data.gov.uk/id/local-authority/38,Oxfordshire County Council,Early Years & Family Support,Childrens Home Support,Other Agency and Contracted Services,57401,Direct Payments,03/11/2010,3350211451,613.8,REDACTED PERSONAL DATA
http://statistics.data.gov.uk/id/local-authority/38,Oxfordshire County Council,SCS Other Cost Centres,Control Account Trojan Residential Care,Balance Sheet General,B2040,ABACUS Accounts Payable Control A/c,03/11/2010,3350211453,17660.33,REDACTED PERSONAL DATA
http://statistics.data.gov.uk/id/local-authority/38,Oxfordshire County Council,SCS Other Cost Centres,Social Services Balance Sheet Default,Balance Sheet Banking,B1683,SS Payments A/C No 0165471,03/11/2010,3350211455,2000,REDACTED PERSONAL DATA
http://statistics.data.gov.uk/id/local-authority/38,Oxfordshire County Council,SCS Other Cost Centres,Social Services Balance Sheet Default,Balance Sheet Banking,B1683,SS Payments A/C No 0165471,03/11/2010,3350211456,1347.54,REDACTED PERSONAL DATA
http://statistics.data.gov.uk/id/local-authority/38,Oxfordshire County Council,Highways & Transport,Transport  Management Support,Services,44500,Other Hired & Contra,03/11/2010,3350211465,5000,REDACTED PERSONAL DATA
http://statistics.data.gov.uk/id/local-authority/38,Oxfordshire County Council,Transport,Area Cyclic,Private Contractors,56400,Major Contracts,03/11/2010,3350211466,2243.4,BERINSFIELD COMMUNITY
http://statistics.data.gov.uk/id/local-authority/38,Oxfordshire County Council,Social & Community Services,A@R Asylum,Other Agency and Contracted Services,57850,Rented Accomodation,03/11/2010,3350211468,700,Letting and Property Management
http://statistics.data.gov.uk/id/local-authority/38,Oxfordshire County Council,Social & Community Services,A@R Asylum,Other Agency and Contracted Services,57850,Rented Accomodation,03/11/2010,3350211469,980,Letting and Property Management
http://statistics.data.gov.uk/id/local-authority/38,Oxfordshire County Council,Social & Community Services,A@R Asylum,Other Agency and Contracted Services,57850,Rented Accomodation,03/11/2010,3350211471,980,Letting and Property Management
http://statistics.data.gov.uk/id/local-authority/38,Oxfordshire County Council,SCS Pooled Budgets,PD Comm Supp Purchasg Budget - Witney,Other Agency and Contracted Services,57401,Direct Payments,03/11/2010,3350211473,1777.6,A4e Management Ltd Week 1
http://statistics.data.gov.uk/id/local-authority/38,Oxfordshire County Council,SCS Pooled Budgets,Direct Payments North Team,Other Agency and Contracted Services,57401,Direct Payments,03/11/2010,3350211474,5779.28,REDACTED PERSONAL DATA
http://statistics.data.gov.uk/id/local-authority/38,Oxfordshire County Council,SCS Pooled Budgets,OP Pool Continuing Care Home Support,Other Agency and Contracted Services,57300,Home Support (Ext) OS&HCD,03/11/2010,3350211477,677.52,REDACTED PERSONAL DATA
http://statistics.data.gov.uk/id/local-authority/38,Oxfordshire County Council,SCS Pooled Budgets,OP Pool Continuing Care Home Support,Other Agency and Contracted Services,57302,Home Support (Ext) Continuing Care,03/11/2010,3350211478,9996.8,REDACTED PERSONAL DATA
http://statistics.data.gov.uk/id/local-authority/38,Oxfordshire County Council,SCS Other Cost Centres,Social Services Balance Sheet Default,Balance Sheet Banking,B1683,SS Payments A/C No 0165471,03/11/2010,3350211479,3986.35,REDACTED PERSONAL DATA
http://statistics.data.gov.uk/id/local-authority/38,Oxfordshire County Council,SCS Pooled Budgets,OP Pool Continuing Care Home Support,Other Agency and Contracted Services,57302,Home Support (Ext) Continuing Care,03/11/2010,3350211480,862.8,Care Unlimited
http://statistics.data.gov.uk/id/local-authority/38,Oxfordshire County Council,SCS Pooled Budgets,PD Pool Continuing Care Home Support,Other Agency and Contracted Services,57302,Home Support (Ext) Continuing Care,03/11/2010,3350211487,3218.8,AMBER HEALTHCARE
http://statistics.data.gov.uk/id/local-authority/38,Oxfordshire County Council,Shared Service Centre,"All Saints, Didcot",Cleaning & Domestic Supplies,27100,Cleaning Materials &,03/11/2010,4100376513,2161,Whitco Catering & Bakery Equipment
http://statistics.data.gov.uk/id/local-authority/38,Oxfordshire County Council,Early Years & Family Support,Supp Graduate Leader,"Equipment, Furniture and Materials",41100,Educational Supplies,03/11/2010,4100377939,1125,Tiny Toes Day Nursery
http://statistics.data.gov.uk/id/local-authority/38,Oxfordshire County Council,Social & Community Services,Music Unallocable,"Equipment, Furniture and Materials",41619,Musical Instruments,03/11/2010,4100378764,2397,Heritage Music
http://statistics.data.gov.uk/id/local-authority/38,Oxfordshire County Council,Social & Community Services,Music Unallocable,"Equipment, Furniture and Materials",41619,Musical Instruments,03/11/2010,4100380008,2690.1,Heritage Music
http://statistics.data.gov.uk/id/local-authority/38,Oxfordshire County Council,Social & Community Services,Music Unallocable,"Equipment, Furniture and Materials",41619,Musical Instruments,03/11/2010,4100380011,768.6,Heritage Music
http://statistics.data.gov.uk/id/local-authority/38,Oxfordshire County Council,Social & Community Services,Music Unallocable,"Equipment, Furniture and Materials",41619,Musical Instruments,03/11/2010,4100380020,3074.4,Heritage Music
http://statistics.data.gov.uk/id/local-authority/38,Oxfordshire County Council,Social & Community Services,Music Unallocable,"Equipment, Furniture and Materials",41619,Musical Instruments,03/11/2010,4100380022,2690.1,Heritage Music
http://statistics.data.gov.uk/id/local-authority/38,Oxfordshire County Council,Shared Service Centre,Adult Social Care & Children's Services,Training Expenses,19990,Other Training Expenses,03/11/2010,4100380368,1023.72,Positive Practice
http://statistics.data.gov.uk/id/local-authority/38,Oxfordshire County Council,Social & Community Services,Aids & Adpt South Non Pool,Social Services Client Expenditure,44608,Overhead Hoists,03/11/2010,4100380601,1565,Domestic Lift Services
http://statistics.data.gov.uk/id/local-authority/38,Oxfordshire County Council,Shared Service Centre,Programme Budget Customer Service Centre,Communications and Computing,45800,IT Hardware,03/11/2010,4100380829,1316.2,Misco
http://statistics.data.gov.uk/id/local-authority/38,Oxfordshire County Council,Social & Community Services,Library Collections Management,"Equipment, Furniture and Materials",41601,Library & Curriculum Books,03/11/2010,4100381457,534.2,The Holt Jackson Book Co. Ltd.
http://statistics.data.gov.uk/id/local-authority/38,Oxfordshire County Council,Sustainable Development,Lower Windrush Project,Services,44500,Other Hired & Contra,03/11/2010,4100381919,1573,Centrewire Limited
http://statistics.data.gov.uk/id/local-authority/38,Oxfordshire County Council,Raising Achievement Service,OEBP,Services,44500,Other Hired & Contra,03/11/2010,4100382643,692.45,Firoka (Oxford United Stadium) Ltd
http://statistics.data.gov.uk/id/local-authority/38,Oxfordshire County Council,Corporate Core Strategy,Media & Communications,Miscellaneous Expenses,48300,Publicity and Advert,03/11/2010,4100383110,437.5,Penna Barkers
http://statistics.data.gov.uk/id/local-authority/38,Oxfordshire County Council,Social & Community Services,Alert Contract,"Equipment, Furniture and Materials",41613,Equipment Maintenanc,03/11/2010,4100383685,749.4,Tunstall Telecom Limited
http://statistics.data.gov.uk/id/local-authority/38,Oxfordshire County Council,Shared Service Centre,QUEST,Expenses,46510,Professional Fees,03/11/2010,4100385198,731.25,Machinery Safety Services Ltd
http://statistics.data.gov.uk/id/local-authority/38,Oxfordshire County Council,Shared Service Centre,Desktop,Communications and Computing,45900,ICT Projects,03/11/2010,4100385457,4304.45,Remploy Ltd
http://statistics.data.gov.uk/id/local-authority/38,Oxfordshire County Council,Social & Community Services,Library Collections Management,"Equipment, Furniture and Materials",41601,Library & Curriculum Books,03/11/2010,4100386343,596.65,The Holt Jackson Book Co. Ltd.
http://statistics.data.gov.uk/id/local-authority/38,Oxfordshire County Council,Social & Community Services,Library Collections Management,"Equipment, Furniture and Materials",41601,Library & Curriculum Books,03/11/2010,4100386346,517.2,Peters Bookselling Services
http://statistics.data.gov.uk/id/local-authority/38,Oxfordshire County Council,Shared Service Centre,Exams & Accreditation ER,Expenses,46401,Exam Fees,03/11/2010,4100386484,1245,City & Guilds
http://statistics.data.gov.uk/id/local-authority/38,Oxfordshire County Council,Raising Achievement Service,KS3 - Admin Support,Expenses,46403,Course / Tuition Fee,03/11/2010,4100386593,950,Angela Knight trading as Sum Total
http://statistics.data.gov.uk/id/local-authority/38,Oxfordshire County Council,Shared Service Centre,AL Premises,Services,44500,Other Hired & Contra,03/11/2010,4100386607,6189.16,"Fennell,Blake & Co Ltd"
http://statistics.data.gov.uk/id/local-authority/38,Oxfordshire County Council,Raising Achievement Service,Literacy:inc AFL/APP,Rent and Rates,24200,Hire of Facilities,03/11/2010,4100386646,814.47,Hawkwell House Hotel
http://statistics.data.gov.uk/id/local-authority/38,Oxfordshire County Council,Raising Achievement Service,Maths:inc AFL/APP,Rent and Rates,24200,Hire of Facilities,03/11/2010,4100386647,2805.11,Hawkwell House Hotel
http://statistics.data.gov.uk/id/local-authority/38,Oxfordshire County Council,Raising Achievement Service,Maths:inc AFL/APP,Rent and Rates,24200,Hire of Facilities,03/11/2010,4100386648,1039.15,Hawkwell House Hotel
http://statistics.data.gov.uk/id/local-authority/38,Oxfordshire County Council,Highways & Transport,Bus Subsidy budget,Private Contractors,56100,Public Transport Rev,03/11/2010,4100386658,690,Thames Travel
http://statistics.data.gov.uk/id/local-authority/38,Oxfordshire County Council,Social & Community Services,Reprographics Unit,"Printing,Stationery and Gen Office Exp",43500,Printing & Duplicating,03/11/2010,4100386772,750,Banbury Litho Limited
http://statistics.data.gov.uk/id/local-authority/38,Oxfordshire County Council,Social & Community Services,Instrument Purchase Scheme,"Equipment, Furniture and Materials",41619,Musical Instruments,03/11/2010,4100387120,956.6,John Packer Ltd
http://statistics.data.gov.uk/id/local-authority/38,Oxfordshire County Council,Shared Service Centre,Cleaning Overheads,Temporary Staff (NJC Green Book),16717,Tempry Staff (NJC) Agency Staff,03/11/2010,4100387179,507,Secondsite Recruitment
http://statistics.data.gov.uk/id/local-authority/38,Oxfordshire County Council,SCS Pooled Budgets,Community Support Budget - Kidlington,Other Agency and Contracted Services,57300,Home Support (Ext) OS&HCD,03/11/2010,4100387266,591.9,PLL CARE
http://statistics.data.gov.uk/id/local-authority/38,Oxfordshire County Council,Early Years & Family Support,Southwark - Section 20,Social Services Client Expenditure,44634,Emergency Temporary Accomodation,03/11/2010,4100387281,550,Calthorpe Lodge Guest House
http://statistics.data.gov.uk/id/local-authority/38,Oxfordshire County Council,Early Years & Family Support,Southwark - Section 20,Social Services Client Expenditure,44634,Emergency Temporary Accomodation,03/11/2010,4100387282,910,Calthorpe Lodge Guest House
http://statistics.data.gov.uk/id/local-authority/38,Oxfordshire County Council,Highways & Transport,Area Traffic,Private Contractors,56400,Major Contracts,03/11/2010,4100387288,54758.34,ATKINS LIMITED
http://statistics.data.gov.uk/id/local-authority/38,Oxfordshire County Council,Early Years & Family Support,2 Year Old Funding,"Equipment, Furniture and Materials",41100,Educational Supplies,03/11/2010,4100387290,2037,Magpies Kidlington
http://statistics.data.gov.uk/id/local-authority/38,Oxfordshire County Council,Early Years & Family Support,EY Support Scheme,"Equipment, Furniture and Materials",41100,Educational Supplies,03/11/2010,4100387290,679,Magpies Kidlington
http://statistics.data.gov.uk/id/local-authority/38,Oxfordshire County Council,Highways & Transport,Area Traffic,Private Contractors,56400,Major Contracts,03/11/2010,4100387314,114075.02,ATKINS LIMITED
http://statistics.data.gov.uk/id/local-authority/38,Oxfordshire County Council,Social & Community Services,Library Collections Management,"Equipment, Furniture and Materials",41601,Library & Curriculum Books,03/11/2010,4100387343,578.89,Peters Bookselling Services
http://statistics.data.gov.uk/id/local-authority/38,Oxfordshire County Council,Highways Management,Error Suspense,Capital Expenditure,CCAA1,Main Contract - General,03/11/2010,4100387379,2586.84,ATKINS LIMITED
http://statistics.data.gov.uk/id/local-authority/38,Oxfordshire County Council,Highways & Transport,Oxon Highways Management Staff,Private Contractors,56404,Fixed Fee Charges,03/11/2010,4100387388,87025,ATKINS LIMITED
http://statistics.data.gov.uk/id/local-authority/38,Oxfordshire County Council,SCS Other Cost Centres,Capital Creditors for Closedown,Capital Expenditure,CCAA1,Main Contract - General,03/11/2010,4100387425,510,Alternative Communication Systems
http://statistics.data.gov.uk/id/local-authority/38,Oxfordshire County Council,SCS Other Cost Centres,Capital Creditors for Closedown,Capital Expenditure,CCAA1,Main Contract - General,03/11/2010,4100387425,476,Alternative Communication Systems
http://statistics.data.gov.uk/id/local-authority/38,Oxfordshire County Council,Sustainable Development,Landfill Non-Household,Private Contractors,56602,Residual Waste,03/11/2010,4100387436,3174.16,Viridor Waste Management Ltd
http://statistics.data.gov.uk/id/local-authority/38,Oxfordshire County Council,Sustainable Development,Other Household,Private Contractors,56602,Residual Waste,03/11/2010,4100387436,4097.91,Viridor Waste Management Ltd
http://statistics.data.gov.uk/id/local-authority/38,Oxfordshire County Council,Sustainable Development,Other Household,Other Agency and Contracted Services,59100,Landfill Tax,03/11/2010,4100387436,7931.52,Viridor Waste Management Ltd
http://statistics.data.gov.uk/id/local-authority/38,Oxfordshire County Council,Social & Community Services,Library Collections Management,"Equipment, Furniture and Materials",41601,Library & Curriculum Books,03/11/2010,4100387685,684.42,The Holt Jackson Book Co. Ltd.
http://statistics.data.gov.uk/id/local-authority/38,Oxfordshire County Council,Social & Community Services,Library Collections Management,"Equipment, Furniture and Materials",41601,Library & Curriculum Books,03/11/2010,4100387690,580.04,The Holt Jackson Book Co. Ltd.
http://statistics.data.gov.uk/id/local-authority/38,Oxfordshire County Council,Social & Community Services,Library Collections Management,"Equipment, Furniture and Materials",41601,Library & Curriculum Books,03/11/2010,4100387692,684.42,The Holt Jackson Book Co. Ltd.
http://statistics.data.gov.uk/id/local-authority/38,Oxfordshire County Council,Social & Community Services,Library Collections Management,"Equipment, Furniture and Materials",41680,DVD Purchase,03/11/2010,4100387725,1758.35,Bertram Library Services
http://statistics.data.gov.uk/id/local-authority/38,Oxfordshire County Council,Shared Service Centre,"All Saints, Didcot",Cleaning & Domestic Supplies,27100,Cleaning Materials &,03/11/2010,4100387994,1276,Whitco Catering & Bakery Equipment
http://statistics.data.gov.uk/id/local-authority/38,Oxfordshire County Council,Social & Community Services,Abingdon Library,Capital Expenditure,CEBA1,"Fixtures, Furniture & Equipment - Gen",03/11/2010,4100388016,998,Axiell Ltd
http://statistics.data.gov.uk/id/local-authority/38,Oxfordshire County Council,Early Years & Family Support,Maltfield House,Care Staff - Monthly Paid,15217,Care Staff Monthly Agency Staff,03/11/2010,4100388035,1794.25,Completely Care Recruitment
http://statistics.data.gov.uk/id/local-authority/38,Oxfordshire County Council,Social & Community Services,Abingdon Library,Capital Expenditure,CEBA1,"Fixtures, Furniture & Equipment - Gen",03/11/2010,4100388102,3992,Axiell Ltd
http://statistics.data.gov.uk/id/local-authority/38,Oxfordshire County Council,Early Years & Family Support,Aim Higher Funding,Rent and Rates,24200,Hire of Facilities,03/11/2010,4100388150,1500,Oxford & District Mencap
http://statistics.data.gov.uk/id/local-authority/38,Oxfordshire County Council,Children & Young People,Recoupment Special,Other Agency and Contracted Services,57800,Other Agency Payment,03/11/2010,4100388314,3787,Gloucestershire County Council
http://statistics.data.gov.uk/id/local-authority/38,Oxfordshire County Council,Children & Young People,Recoupment Special,Voluntary Associations,55100,Fees to Non Maintain,03/11/2010,4100388316,9319,Penn School
http://statistics.data.gov.uk/id/local-authority/38,Oxfordshire County Council,Children & Young People,Recoupment Special,Voluntary Associations,55100,Fees to Non Maintain,03/11/2010,4100388317,17609,Penn School
http://statistics.data.gov.uk/id/local-authority/38,Oxfordshire County Council,Highways & Transport,Peartree Park & Ride,"Equipment, Furniture and Materials",41613,Equipment Maintenanc,03/11/2010,4100389181,598,Portakabin Limited
http://statistics.data.gov.uk/id/local-authority/38,Oxfordshire County Council,Corporate Core Strategy,Media & Communications,Miscellaneous Expenses,48300,Publicity and Advert,03/11/2010,4100389714,-437.5,Penna Barkers
http://statistics.data.gov.uk/id/local-authority/38,Oxfordshire County Council,Early Years & Family Support,Relvnt 16&17 Lvg Ind,Other Agency and Contracted Services,57200,Supported Accommodat,03/11/2010,4100389814,548.85,Banbury Homes Housing Assc
http://statistics.data.gov.uk/id/local-authority/38,Oxfordshire County Council,Early Years & Family Support,East Street CC,Voluntary Associations,55402,Service Agreements - Family Support,03/11/2010,4100389857,42500,Grimsbury Family Association
http://statistics.data.gov.uk/id/local-authority/38,Oxfordshire County Council,Social & Community Services,The Garth Day Service,Contract Hire/Leasing,33600,Hire of vehicles,03/11/2010,4100389866,456.21,The Village Motor Company Limited
http://statistics.data.gov.uk/id/local-authority/38,Oxfordshire County Council,In-House,Pension Fund Admin Miscellaneous expense,Investment Expenses,PR315,Admin - Actuarial Fees,03/11/2010,4100389867,20175,Barnett Waddington LLP
http://statistics.data.gov.uk/id/local-authority/38,Oxfordshire County Council,Corporate Core Strategy,Legal Services,Expenses,46510,Professional Fees,03/11/2010,4100389870,2016,Robert Austin
http://statistics.data.gov.uk/id/local-authority/38,Oxfordshire County Council,Property Services,Speedwell House,"Printing,Stationery and Gen Office Exp",43800,Photocopier rental,03/11/2010,4100389879,2159.8,Canon (UK) Ltd
http://statistics.data.gov.uk/id/local-authority/38,Oxfordshire County Council,Children & Young People,Promoting Positive Activities,"Equipment, Furniture and Materials",41100,Educational Supplies,03/11/2010,4100389889,4600,Passion Radio Oxford Ltd
http://statistics.data.gov.uk/id/local-authority/38,Oxfordshire County Council,Early Years & Family Support,Supp Graduate Leader,"Equipment, Furniture and Materials",41100,Educational Supplies,03/11/2010,4100389891,1575,Westfield House Nursery
http://statistics.data.gov.uk/id/local-authority/38,Oxfordshire County Council,Early Years & Family Support,Supp Graduate Leader,"Equipment, Furniture and Materials",41100,Educational Supplies,03/11/2010,4100389892,1125,Kennington Playgroup
http://statistics.data.gov.uk/id/local-authority/38,Oxfordshire County Council,Early Years & Family Support,Supp Graduate Leader,"Equipment, Furniture and Materials",41100,Educational Supplies,03/11/2010,4100389893,1125,Oxford Brookes University Nursery
http://statistics.data.gov.uk/id/local-authority/38,Oxfordshire County Council,Property Services,Corporate Properties,Rent and Rates,24300,Landlord Service Cha,03/11/2010,4100389894,3594.4,Lothbury Investment Management Limi
http://statistics.data.gov.uk/id/local-authority/38,Oxfordshire County Council,Early Years & Family Support,Supp Graduate Leader,"Equipment, Furniture and Materials",41100,Educational Supplies,03/11/2010,4100389897,1575,Summertown Montessori Nursery
http://statistics.data.gov.uk/id/local-authority/38,Oxfordshire County Council,Property Services,Corporate Properties,Rent and Rates,24300,Landlord Service Cha,03/11/2010,4100390202,6639.62,West Oxfordshire District Council
http://statistics.data.gov.uk/id/local-authority/38,Oxfordshire County Council,Highways & Transport,Bus Subsidy budget,Private Contractors,56100,Public Transport Rev,03/11/2010,4100390217,-690,Thames Travel
http://statistics.data.gov.uk/id/local-authority/38,Oxfordshire County Council,Social & Community Services,Abingdon Library,Capital Expenditure,CEBA1,"Fixtures, Furniture & Equipment - Gen",03/11/2010,4100390218,-998,Axiell Ltd
http://statistics.data.gov.uk/id/local-authority/38,Oxfordshire County Council,Social & Community Services,Abingdon Library,Capital Expenditure,CEBA1,"Fixtures, Furniture & Equipment - Gen",03/11/2010,4100390219,-3992,Axiell Ltd
http://statistics.data.gov.uk/id/local-authority/38,Oxfordshire County Council,Sustainable Development,Landfill Non-Household,Private Contractors,56602,Residual Waste,03/11/2010,4100390223,-3174.16,Viridor Waste Management Ltd
http://statistics.data.gov.uk/id/local-authority/38,Oxfordshire County Council,Sustainable Development,Other Household,Private Contractors,56602,Residual Waste,03/11/2010,4100390223,-4097.91,Viridor Waste Management Ltd
http://statistics.data.gov.uk/id/local-authority/38,Oxfordshire County Council,Sustainable Development,Other Household,Other Agency and Contracted Services,59100,Landfill Tax,03/11/2010,4100390223,-7931.52,Viridor Waste Management Ltd
http://statistics.data.gov.uk/id/local-authority/38,Oxfordshire County Council,Shared Service Centre,"All Saints, Didcot",Cleaning & Domestic Supplies,27100,Cleaning Materials &,03/11/2010,4100390224,-2161,Whitco Catering & Bakery Equipment
http://statistics.data.gov.uk/id/local-authority/38,Oxfordshire County Council,Shared Service Centre,"All Saints, Didcot",Cleaning & Domestic Supplies,27100,Cleaning Materials &,03/11/2010,4100390226,-1276,Whitco Catering & Bakery Equipment
http://statistics.data.gov.uk/id/local-authority/38,Oxfordshire County Council,SCS Pooled Budgets,Community Support Budget - Kidlington,Other Agency and Contracted Services,57300,Home Support (Ext) OS&HCD,03/11/2010,4100390228,-561.3,PLL CARE
http://statistics.data.gov.uk/id/local-authority/38,Oxfordshire County Council,SCS Pooled Budgets,Community Support Budget - Kidlington,Other Agency and Contracted Services,57300,Home Support (Ext) OS&HCD,03/11/2010,4100390230,561.3,PLL CARE
http://statistics.data.gov.uk/id/local-authority/38,Oxfordshire County Council,Highways & Transport,Peartree Park & Ride,"Equipment, Furniture and Materials",41613,Equipment Maintenanc,03/11/2010,4100390231,-598,Portakabin Limited
http://statistics.data.gov.uk/id/local-authority/38,Oxfordshire County Council,Social & Community Services,Personnel,Other Employee Expenses,19997,Medical/Optical/Dental,03/11/2010,4100390237,1800,Dr J S Browne
http://statistics.data.gov.uk/id/local-authority/38,Oxfordshire County Council,Sustainable Development,Landfill Non-Household,Private Contractors,56602,Residual Waste,03/11/2010,4100390247,3174.16,Viridor Waste Management Ltd
http://statistics.data.gov.uk/id/local-authority/38,Oxfordshire County Council,Sustainable Development,Other Household,Private Contractors,56602,Residual Waste,03/11/2010,4100390247,4097.91,Viridor Waste Management Ltd
http://statistics.data.gov.uk/id/local-authority/38,Oxfordshire County Council,Sustainable Development,Other Household,Other Agency and Contracted Services,59100,Landfill Tax,03/11/2010,4100390247,7931.52,Viridor Waste Management Ltd
http://statistics.data.gov.uk/id/local-authority/38,Oxfordshire County Council,Highways Management,Error Suspense,Capital Expenditure,CCAA1,Main Contract - General,03/11/2010,4100390263,68305.68,ATKINS LIMITED
http://statistics.data.gov.uk/id/local-authority/38,Oxfordshire County Council,Highways Management,Error Suspense,Capital Expenditure,CCAA1,Main Contract - General,03/11/2010,4100390266,-68305.68,ATKINS LIMITED
http://statistics.data.gov.uk/id/local-authority/38,Oxfordshire County Council,Early Years & Family Support,Southwark - Section 20,Social Services Client Expenditure,44647,Other Misc. Child Related Expenditure,03/11/2010,4100390270,713.38,Key2 Futures Ltd
http://statistics.data.gov.uk/id/local-authority/38,Oxfordshire County Council,Early Years & Family Support,Southwark - Section 20,Social Services Client Expenditure,44647,Other Misc. Child Related Expenditure,03/11/2010,4100390270,7133.82,Key2 Futures Ltd
http://statistics.data.gov.uk/id/local-authority/38,Oxfordshire County Council,Early Years & Family Support,Southwark - Section 20,Social Services Client Expenditure,44647,Other Misc. Child Related Expenditure,03/11/2010,4100390276,1168.5,Key2 Futures Ltd
http://statistics.data.gov.uk/id/local-authority/38,Oxfordshire County Council,Early Years & Family Support,HoS - Early Years & Family Support,Temporary Staff (NJC Green Book),16717,Tempry Staff (NJC) Agency Staff,03/11/2010,4100390285,17124,Capita Resourcing limited
http://statistics.data.gov.uk/id/local-authority/38,Oxfordshire County Council,SCS Pooled Budgets,LD Team budget (CMPB) North,Other Agency and Contracted Services,57300,Home Support (Ext) OS&HCD,03/11/2010,4100390292,750,Holmleigh Care Homes Ltd
http://statistics.data.gov.uk/id/local-authority/38,Oxfordshire County Council,SCS Pooled Budgets,PD Comm Supp Purchasg Budget - City,Other Agency and Contracted Services,57300,Home Support (Ext) OS&HCD,03/11/2010,4100390320,1167.39,Oxfordshire Crossroads
http://statistics.data.gov.uk/id/local-authority/38,Oxfordshire County Council,SCS Pooled Budgets,LD External Day Care Spot,Voluntary Associations,55000,Voluntary Associatio,03/11/2010,4100390325,2531.6,Oxfordshire Learning Disability NHS
http://statistics.data.gov.uk/id/local-authority/38,Oxfordshire County Council,Early Years & Family Support,Agency Residential - Disabilities,Other Agency and Contracted Services,57790,Other Residential Placements,03/11/2010,4100390470,792,Advance Housing & Support Ltd
http://statistics.data.gov.uk/id/local-authority/38,Oxfordshire County Council,SCS Pooled Budgets,PD Comm Supp Purchasg Budget - City,Other Agency and Contracted Services,57300,Home Support (Ext) OS&HCD,03/11/2010,4100390486,1666.44,Oxfordshire Crossroads
http://statistics.data.gov.uk/id/local-authority/38,Oxfordshire County Council,Social & Community Services,Music Unallocable,"Equipment, Furniture and Materials",41619,Musical Instruments,03/11/2010,4100390536,-2397,Heritage Music
http://statistics.data.gov.uk/id/local-authority/38,Oxfordshire County Council,Social & Community Services,Music Unallocable,"Equipment, Furniture and Materials",41619,Musical Instruments,03/11/2010,4100390558,2397,Heritage Music
http://statistics.data.gov.uk/id/local-authority/38,Oxfordshire County Council,Early Years & Family Support,Fostering Main,Other Local Authorities,52000,Other Local Authorit,03/11/2010,7000364503,1181,REDACTED PERSONAL DATA
http://statistics.data.gov.uk/id/local-authority/38,Oxfordshire County Council,Property Services,Corporate Properties,Urgent R & M,21104,Windows & Doors (Urgent),03/11/2010,7000364830,695.39,Knowles and Son
http://statistics.data.gov.uk/id/local-authority/38,Oxfordshire County Council,Schools,Fitzharrys School  Abingdon,Urgent R & M,21115,Paving & Roads (Urgent),03/11/2010,7000364844,559.86,Knowles and Son
http://statistics.data.gov.uk/id/local-authority/38,Oxfordshire County Council,Property Services,"Woodeaton Manor, Smallholdings",Urgent R & M,21114,Walls & Fences (Urgent),03/11/2010,7000364854,828,Knowles and Son
http://statistics.data.gov.uk/id/local-authority/38,Oxfordshire County Council,Property Services,Corporate Properties,Urgent R & M,21109,Ventilation (Urgent),03/11/2010,7000364871,3991.69,Europa Nationwide Technical Service
http://statistics.data.gov.uk/id/local-authority/38,Oxfordshire County Council,Property Services,Corporate Properties,Urgent R & M,21111,Lighting (Urgent),03/11/2010,7000364894,658.66,Knowles and Son
http://statistics.data.gov.uk/id/local-authority/38,Oxfordshire County Council,Property Services,Corporate Properties,Urgent R & M,21112,H&C Water (Urg),03/11/2010,7000364897,556.57,Knowles and Son
http://statistics.data.gov.uk/id/local-authority/38,Oxfordshire County Council,Property Services,Corporate Properties,Urgent R & M,21104,Windows & Doors (Urgent),03/11/2010,7000364906,437.39,Knowles and Son
http://statistics.data.gov.uk/id/local-authority/38,Oxfordshire County Council,Property Services,Corporate Properties,Urgent R & M,21102,Flat Roofs (Urg),03/11/2010,7000364913,975,Westlake Asphalt Co Ltd
http://statistics.data.gov.uk/id/local-authority/38,Oxfordshire County Council,Property Services,R & M Health & Safety,Health & Safety R & M,22207,Health & Safety,03/11/2010,7000364938,1900,WADES Ltd
http://statistics.data.gov.uk/id/local-authority/38,Oxfordshire County Council,Property Services,Wallingford Radnor Road School Bungalow,Urgent R & M,21103,External Walls (Urgent),03/11/2010,7000364942,683.81,Knowles and Son
http://statistics.data.gov.uk/id/local-authority/38,Oxfordshire County Council,Social & Community Services,Service Agreements - Carers,Other Agency and Contracted Services,57401,Direct Payments,04/11/2010,3301140150,825.63,A4e Management Ltd-Emergency Carers
http://statistics.data.gov.uk/id/local-authority/38,Oxfordshire County Council,Social & Community Services,Service Agreements - Carers,Other Agency and Contracted Services,57401,Direct Payments,04/11/2010,3301140154,648.91,A4e Management Ltd-Emergency Carers
http://statistics.data.gov.uk/id/local-authority/38,Oxfordshire County Council,Social & Community Services,Service Agreements - Carers,Other Agency and Contracted Services,57401,Direct Payments,04/11/2010,3301140155,1431.5,A4e Management Ltd-Emergency Carers
http://statistics.data.gov.uk/id/local-authority/38,Oxfordshire County Council,Social & Community Services,Service Agreements - Carers,Other Agency and Contracted Services,57401,Direct Payments,04/11/2010,3301140156,1474.06,A4e Management Ltd-Emergency Carers
http://statistics.data.gov.uk/id/local-authority/38,Oxfordshire County Council,Social & Community Services,Service Agreements - Carers,Other Agency and Contracted Services,57401,Direct Payments,04/11/2010,3301140160,994.06,A4e Management Ltd-Emergency Carers
http://statistics.data.gov.uk/id/local-authority/38,Oxfordshire County Council,Social & Community Services,Service Agreements - Carers,Other Agency and Contracted Services,57401,Direct Payments,04/11/2010,3301140161,1058.65,A4e Management Ltd-Emergency Carers
http://statistics.data.gov.uk/id/local-authority/38,Oxfordshire County Council,Social & Community Services,Service Agreements - Carers,Other Agency and Contracted Services,57401,Direct Payments,04/11/2010,3301140162,506.72,A4e Management Ltd-Emergency Carers
http://statistics.data.gov.uk/id/local-authority/38,Oxfordshire County Council,Social & Community Services,Service Agreements - Carers,Other Agency and Contracted Services,57401,Direct Payments,04/11/2010,3301140165,572.81,A4e Management Ltd-Emergency Carers
http://statistics.data.gov.uk/id/local-authority/38,Oxfordshire County Council,Social & Community Services,Service Agreements - Carers,Other Agency and Contracted Services,57401,Direct Payments,04/11/2010,3301140167,1008,A4e Management Ltd-Emergency Carers
http://statistics.data.gov.uk/id/local-authority/38,Oxfordshire County Council,Early Years & Family Support,Services/Supplies,"Equipment, Furniture and Materials",41100,Educational Supplies,04/11/2010,3350210416,1200,Wheatley Primary School/Cool Kids C
http://statistics.data.gov.uk/id/local-authority/38,Oxfordshire County Council,Early Years & Family Support,Supp Graduate Leader,"Equipment, Furniture and Materials",41100,Educational Supplies,04/11/2010,3350211230,520,Paddocks Pre-School Playgroup
http://statistics.data.gov.uk/id/local-authority/38,Oxfordshire County Council,Social & Community Services,Older People  Service Agreements (Base),Other Agency and Contracted Services,57400,Day Care External Pr,04/11/2010,3350211508,1404.5,Age Concern Oxfordshire
http://statistics.data.gov.uk/id/local-authority/38,Oxfordshire County Council,Children & Young People,CHILL OUT FUND,Grants and Subscriptions,47100,Grants to Voluntary,04/11/2010,3350211514,2000,DIDCOT CRICKET CLUB
http://statistics.data.gov.uk/id/local-authority/38,Oxfordshire County Council,Early Years & Family Support,Nursery Education Funding,Voluntary Associations,55300,Fees to Centres Playgroups,04/11/2010,3350211518,692.25,St Clements Church Pre-S
http://statistics.data.gov.uk/id/local-authority/38,Oxfordshire County Council,Early Years & Family Support,Nursery Education Funding,Voluntary Associations,55300,Fees to Centres Playgroups,04/11/2010,3350211519,554.45,Launton Playgroup
http://statistics.data.gov.uk/id/local-authority/38,Oxfordshire County Council,Early Years & Family Support,Nursery Fixed Costs,Capital Expenditure,CCDA1,Third Party / Grant Payments,04/11/2010,3350211523,5000,SOUTH OXFORD ADVENTURE PLAYGROUND
http://statistics.data.gov.uk/id/local-authority/38,Oxfordshire County Council,Early Years & Family Support,Nursery Fixed Costs,Capital Expenditure,CCDA1,Third Party / Grant Payments,04/11/2010,3350211527,47000,Shipton u Wychwood Parish Council
http://statistics.data.gov.uk/id/local-authority/38,Oxfordshire County Council,Early Years & Family Support,Nursery Fixed Costs,Capital Expenditure,CCDA1,Third Party / Grant Payments,04/11/2010,3350211528,5000,BARTONS VICTORY MEMOR
http://statistics.data.gov.uk/id/local-authority/38,Oxfordshire County Council,Early Years & Family Support,Nursery Fixed Costs,Capital Expenditure,CCDA1,Third Party / Grant Payments,04/11/2010,3350211528,42000,BARTONS VICTORY MEMOR
http://statistics.data.gov.uk/id/local-authority/38,Oxfordshire County Council,Early Years & Family Support,Nursery Fixed Costs,Capital Expenditure,CCDA1,Third Party / Grant Payments,04/11/2010,3350211530,-564.89,Hook Norton Parish Council
http://statistics.data.gov.uk/id/local-authority/38,Oxfordshire County Council,Early Years & Family Support,Nursery Fixed Costs,Capital Expenditure,CCDA1,Third Party / Grant Payments,04/11/2010,3350211530,47000,Hook Norton Parish Council
http://statistics.data.gov.uk/id/local-authority/38,Oxfordshire County Council,Early Years & Family Support,Nursery Fixed Costs,Capital Expenditure,CCDA1,Third Party / Grant Payments,04/11/2010,3350211531,5000,BLEWBURY PARISH COUNCIL
http://statistics.data.gov.uk/id/local-authority/38,Oxfordshire County Council,Early Years & Family Support,Nursery Fixed Costs,Capital Expenditure,CCDA1,Third Party / Grant Payments,04/11/2010,3350211532,5000,APPLETON WITH EATON PA
http://statistics.data.gov.uk/id/local-authority/38,Oxfordshire County Council,SCS Pooled Budgets,OP Pool Continuing Care Delegated Health,Other Agency and Contracted Services,57300,Home Support (Ext) OS&HCD,04/11/2010,3350211537,1069.29,REDACTED PERSONAL DATA
http://statistics.data.gov.uk/id/local-authority/38,Oxfordshire County Council,SCS Pooled Budgets,PD Comm Supp Purchasg Budget - Thame,Contract Hire/Leasing,33300,Transport (General),04/11/2010,3350211582,450,School Travel
http://statistics.data.gov.uk/id/local-authority/38,Oxfordshire County Council,Property Services,Sustainability Operational Budgets,Scheduled R & M,21018,Servicing - Building (Planned),04/11/2010,4100377402,26437.1,SolarTech Ltd
http://statistics.data.gov.uk/id/local-authority/38,Oxfordshire County Council,Social & Community Services,Self Directed Support,Temporary Staff (NJC Green Book),16717,Tempry Staff (NJC) Agency Staff,04/11/2010,4100380350,560,Access Independent Limited
http://statistics.data.gov.uk/id/local-authority/38,Oxfordshire County Council,Shared Service Centre,Maintenance,Training Expenses,19980,Training Expenses (Budget Only),04/11/2010,4100381489,575,Socitm Limited
http://statistics.data.gov.uk/id/local-authority/38,Oxfordshire County Council,Shared Service Centre,"Bishop Loveday, Bodicote",Cleaning & Domestic Supplies,27100,Cleaning Materials &,04/11/2010,4100381922,5256,Whitco Catering & Bakery Equipment
http://statistics.data.gov.uk/id/local-authority/38,Oxfordshire County Council,Social & Community Services,Aids & Adpt Team Non Pool,Social Services Client Expenditure,44613,Repair & Maintenance Orders,04/11/2010,4100382032,626,The Chiltern Lift  Co
http://statistics.data.gov.uk/id/local-authority/38,Oxfordshire County Council,Social & Community Services,Aids & Adpt Team Non Pool,Social Services Client Expenditure,44613,Repair & Maintenance Orders,04/11/2010,4100382098,898.88,The Chiltern Lift  Co
http://statistics.data.gov.uk/id/local-authority/38,Oxfordshire County Council,Social & Community Services,Aids & Adpt Team Non Pool,Social Services Client Expenditure,44610,Service and maintenance hoists,04/11/2010,4100382265,456.06,The Chiltern Lift  Co
http://statistics.data.gov.uk/id/local-authority/38,Oxfordshire County Council,Social & Community Services,Operations,"Equipment, Furniture and Materials",41613,Equipment Maintenanc,04/11/2010,4100382581,1025,CMT FLEXIBLES
http://statistics.data.gov.uk/id/local-authority/38,Oxfordshire County Council,Social & Community Services,Operations,"Equipment, Furniture and Materials",41613,Equipment Maintenanc,04/11/2010,4100382581,1025,CMT FLEXIBLES
http://statistics.data.gov.uk/id/local-authority/38,Oxfordshire County Council,Highways & Transport,"Special Transport, Fleet Operations",Expenses,46403,Course / Tuition Fee,04/11/2010,4100382802,558,Andrew Leonard
http://statistics.data.gov.uk/id/local-authority/38,Oxfordshire County Council,Early Years & Family Support,Consultation&Partptn,Social Services Client Expenditure,44647,Other Misc. Child Related Expenditure,04/11/2010,4100383122,753.2,Ladybird Pre-School Limited
http://statistics.data.gov.uk/id/local-authority/38,Oxfordshire County Council,Early Years & Family Support,Mainstream Residential,Other Agency and Contracted Services,57710,Children's Homes,04/11/2010,4100383574,3085.68,BetterCare Keys Ltd
http://statistics.data.gov.uk/id/local-authority/38,Oxfordshire County Council,Corporate Core Strategy,Legal Services,Expenses,46500,Legal Fees & Exp,04/11/2010,4100383743,3075,Mr G Laurence Q.C
http://statistics.data.gov.uk/id/local-authority/38,Oxfordshire County Council,Sustainable Development,Procurement,Services,44200,Consultants Fees,04/11/2010,4100383943,9824.34,ENTEC UK LTD
http://statistics.data.gov.uk/id/local-authority/38,Oxfordshire County Council,Corporate Core Strategy,Legal Services,Expenses,46500,Legal Fees & Exp,04/11/2010,4100384780,2306.25,Mr Nicholas Goodwin
http://statistics.data.gov.uk/id/local-authority/38,Oxfordshire County Council,Shared Service Centre,Desktop,Communications and Computing,45900,ICT Projects,04/11/2010,4100385454,1377,Remploy Ltd
http://statistics.data.gov.uk/id/local-authority/38,Oxfordshire County Council,Highways & Transport,Area Arboriculture,Private Contractors,56400,Major Contracts,04/11/2010,4100386313,925,Goodwood Tree Care Ltd
http://statistics.data.gov.uk/id/local-authority/38,Oxfordshire County Council,Social & Community Services,Library Collections Management,"Equipment, Furniture and Materials",41601,Library & Curriculum Books,04/11/2010,4100386354,606.6,Askews Library Services Ltd
http://statistics.data.gov.uk/id/local-authority/38,Oxfordshire County Council,Raising Achievement Service,ICT Supplies/software,"Printing,Stationery and Gen Office Exp",43500,Printing & Duplicating,04/11/2010,4100386402,435.15,Canon (UK) Ltd
http://statistics.data.gov.uk/id/local-authority/38,Oxfordshire County Council,Shared Service Centre,Supplies & Equipment,"Equipment, Furniture and Materials",41613,Equipment Maintenanc,04/11/2010,4100386486,528.86,The Danwood Group Limited
http://statistics.data.gov.uk/id/local-authority/38,Oxfordshire County Council,Highways & Transport,Area Arboriculture,Private Contractors,56400,Major Contracts,04/11/2010,4100386659,1250,Jenks Oxford Ltd
http://statistics.data.gov.uk/id/local-authority/38,Oxfordshire County Council,Highways & Transport,Area Arboriculture,Private Contractors,56400,Major Contracts,04/11/2010,4100386659,500,Jenks Oxford Ltd
http://statistics.data.gov.uk/id/local-authority/38,Oxfordshire County Council,Early Years & Family Support,Thornbury - Open,Capital Expenditure,CFAA1,Consultant / Design Fees - General,04/11/2010,4100387132,3817.39,Jacobs Engineering UK Ltd
http://statistics.data.gov.uk/id/local-authority/38,Oxfordshire County Council,Social & Community Services,Reprographics Unit,"Printing,Stationery and Gen Office Exp",43500,Printing & Duplicating,04/11/2010,4100387159,948,Litho & Digital Impress
http://statistics.data.gov.uk/id/local-authority/38,Oxfordshire County Council,SCS Pooled Budgets,LD Team budget (CMPB) - City,Other Agency and Contracted Services,57300,Home Support (Ext) OS&HCD,04/11/2010,4100387253,1218.6,Ambition24Hours
http://statistics.data.gov.uk/id/local-authority/38,Oxfordshire County Council,SCS Pooled Budgets,Community Support Budget - Witney,Other Agency and Contracted Services,57300,Home Support (Ext) OS&HCD,04/11/2010,4100388032,696,Care with Care Ltd
http://statistics.data.gov.uk/id/local-authority/38,Oxfordshire County Council,Children & Young People,Recoupment Special,Other Agency and Contracted Services,57800,Other Agency Payment,04/11/2010,4100388313,900,FOSTERPLUS LTD
http://statistics.data.gov.uk/id/local-authority/38,Oxfordshire County Council,Early Years & Family Support,Sure Start Delivery Budget,"Equipment, Furniture and Materials",41100,Educational Supplies,04/11/2010,4100390398,600,Annie Whitcher
http://statistics.data.gov.uk/id/local-authority/38,Oxfordshire County Council,Shared Service Centre,"All Saints, Didcot",Cleaning & Domestic Supplies,27100,Cleaning Materials &,04/11/2010,4100390528,2161,Whitco Catering & Bakery Equipment
http://statistics.data.gov.uk/id/local-authority/38,Oxfordshire County Council,Property Services,Speedwell House,Communications and Computing,45100,Postage,04/11/2010,4100390623,2000,Postage By Phone-Pitney Bowes Ltd
http://statistics.data.gov.uk/id/local-authority/38,Oxfordshire County Council,Early Years & Family Support,Southwark - Section 17,Other Agency and Contracted Services,57850,Rented Accomodation,04/11/2010,4100390627,1140,E Morris
http://statistics.data.gov.uk/id/local-authority/38,Oxfordshire County Council,Sustainable Development,PIG Management,Training Expenses,19990,Other Training Expenses,04/11/2010,4100390634,2970,Oxford Brookes University
http://statistics.data.gov.uk/id/local-authority/38,Oxfordshire County Council,Highways & Transport,Major Projects,Communications and Computing,45700,Software,04/11/2010,4100390684,3495,CADline
http://statistics.data.gov.uk/id/local-authority/38,Oxfordshire County Council,Highways Management,Error Suspense,Capital Expenditure,CCAA1,Main Contract - General,04/11/2010,4100390698,54759.1,GREENFORD LTD
http://statistics.data.gov.uk/id/local-authority/38,Oxfordshire County Council,Raising Achievement Service,Literacy:inc AFL/APP,Rent and Rates,24200,Hire of Facilities,04/11/2010,4100390724,737.87,Mountweb 2000 t/a
http://statistics.data.gov.uk/id/local-authority/38,Oxfordshire County Council,Property Services,Knights Court,Fixtures and Fittings,26100,Security,04/11/2010,4100390743,877.55,Securipol Limited
http://statistics.data.gov.uk/id/local-authority/38,Oxfordshire County Council,Corporate Core Transformation,Future Jobs Fund,Services,44500,Other Hired & Contra,04/11/2010,4100390772,600,Beech Haven Care Home
http://statistics.data.gov.uk/id/local-authority/38,Oxfordshire County Council,Children & Young People,Recoupment Special,Voluntary Associations,55100,Fees to Non Maintain,04/11/2010,4100390773,42105.52,Tadley Horizon
http://statistics.data.gov.uk/id/local-authority/38,Oxfordshire County Council,Corporate Core Transformation,Future Jobs Fund,Services,44500,Other Hired & Contra,04/11/2010,4100390778,600,Beech Haven Care Home
http://statistics.data.gov.uk/id/local-authority/38,Oxfordshire County Council,Shared Service Centre,ICT Operations,Cleaning & Domestic Supplies,27200,Contracted Cleaning,04/11/2010,4100390991,906.4,Solo Cleaning Services Ltd (Oxford)
http://statistics.data.gov.uk/id/local-authority/38,Oxfordshire County Council,Shared Service Centre,ICT Operations,Cleaning & Domestic Supplies,27200,Contracted Cleaning,04/11/2010,4100390993,906.4,Solo Cleaning Services Ltd (Oxford)
http://statistics.data.gov.uk/id/local-authority/38,Oxfordshire County Council,SCS Pooled Budgets,Community Support Budget - Banbury,Other Agency and Contracted Services,57300,Home Support (Ext) OS&HCD,04/11/2010,4100391026,1365,Bluebelles Ltd
http://statistics.data.gov.uk/id/local-authority/38,Oxfordshire County Council,Raising Achievement Service,Hill End,Transport Insurance,36101,Vehicle & Plant Insu,04/11/2010,4100391029,6500,C C Millard
http://statistics.data.gov.uk/id/local-authority/38,Oxfordshire County Council,SCS Pooled Budgets,Community Support Budget - Banbury,Other Agency and Contracted Services,57300,Home Support (Ext) OS&HCD,04/11/2010,4100391035,1365,Bluebelles Ltd
http://statistics.data.gov.uk/id/local-authority/38,Oxfordshire County Council,SCS Pooled Budgets,Community Support Budget - Banbury,Other Agency and Contracted Services,57300,Home Support (Ext) OS&HCD,04/11/2010,4100391039,546,Bluebelles Ltd
http://statistics.data.gov.uk/id/local-authority/38,Oxfordshire County Council,SCS Pooled Budgets,Community Support Budget - Banbury,Other Agency and Contracted Services,57300,Home Support (Ext) OS&HCD,04/11/2010,4100391041,819,Bluebelles Ltd
http://statistics.data.gov.uk/id/local-authority/38,Oxfordshire County Council,SCS Pooled Budgets,Community Support Budget - Witney,Other Agency and Contracted Services,57300,Home Support (Ext) OS&HCD,04/11/2010,4100391055,715.65,Care with Care Ltd
http://statistics.data.gov.uk/id/local-authority/38,Oxfordshire County Council,SCS Pooled Budgets,Community Support Budget - Witney,Other Agency and Contracted Services,57300,Home Support (Ext) OS&HCD,04/11/2010,4100391058,2272.23,Care with Care Ltd
http://statistics.data.gov.uk/id/local-authority/38,Oxfordshire County Council,SCS Pooled Budgets,Community Support Budget - Witney,Other Agency and Contracted Services,57300,Home Support (Ext) OS&HCD,04/11/2010,4100391059,2473.2,Care with Care Ltd
http://statistics.data.gov.uk/id/local-authority/38,Oxfordshire County Council,SCS Pooled Budgets,Community Support Budget - Witney,Other Agency and Contracted Services,57300,Home Support (Ext) OS&HCD,04/11/2010,4100391064,1235.4,Care with Care Ltd
http://statistics.data.gov.uk/id/local-authority/38,Oxfordshire County Council,Property Services,Corporate Properties,Urgent R & M,21115,Paving & Roads (Urgent),04/11/2010,7000363334,925,Charmac Ltd
http://statistics.data.gov.uk/id/local-authority/38,Oxfordshire County Council,"Commissioning, Performance & Quality Ass",Henley SH & S Pool,Joint Authorities,53100,Joint Use Provision,04/11/2010,7000363805,662.68,CSS Pools and Leisure
http://statistics.data.gov.uk/id/local-authority/38,Oxfordshire County Council,Property Services,Corporate Properties,Urgent R & M,21109,Ventilation (Urgent),04/11/2010,7000364980,481.05,Scion Technical Services Limited
http://statistics.data.gov.uk/id/local-authority/38,Oxfordshire County Council,Property Services,Corporate Properties,Urgent R & M,21102,Flat Roofs (Urg),04/11/2010,7000364982,428.38,Knowles and Son
http://statistics.data.gov.uk/id/local-authority/38,Oxfordshire County Council,Property Services,Corporate Properties,Other Premises Costs,28000,Other Premises Costs,04/11/2010,7000364988,2283.21,Darke and Taylor Ltd
http://statistics.data.gov.uk/id/local-authority/38,Oxfordshire County Council,Property Services,Corporate Properties,Urgent R & M,21104,Windows & Doors (Urgent),04/11/2010,7000364995,2104.61,Knowles and Son
http://statistics.data.gov.uk/id/local-authority/38,Oxfordshire County Council,Property Services,Corporate Properties,Urgent R & M,21104,Windows & Doors (Urgent),04/11/2010,7000365003,507.33,Knowles and Son
http://statistics.data.gov.uk/id/local-authority/38,Oxfordshire County Council,Property Services,Corporate Properties,Urgent R & M,21109,Ventilation (Urgent),04/11/2010,7000365005,1310.33,Scion Technical Services Limited
http://statistics.data.gov.uk/id/local-authority/38,Oxfordshire County Council,Schools,Burford School & Community College,Urgent R & M,21113,Drainage (Urgent),04/11/2010,7000365017,644.2,SI Pumps Ltd
http://statistics.data.gov.uk/id/local-authority/38,Oxfordshire County Council,Schools,Berinsfield Community Primary School,"Equipment, Furniture and Materials",41613,Equipment Maintenanc,04/11/2010,7000365023,804.14,Scion Technical Services Limited
http://statistics.data.gov.uk/id/local-authority/38,Oxfordshire County Council,Property Services,Corporate Properties,Urgent R & M,21104,Windows & Doors (Urgent),04/11/2010,7000365027,974.2,Knowles and Son
http://statistics.data.gov.uk/id/local-authority/38,Oxfordshire County Council,Property Services,Didcot Lydalls Close C/T Bungalow,Urgent R & M,21109,Ventilation (Urgent),04/11/2010,7000365037,470.8,Scion Technical Services Limited
http://statistics.data.gov.uk/id/local-authority/38,Oxfordshire County Council,Schools,Faringdon Community College,Scheduled R & M,21008,Heating (Planned),04/11/2010,7000365042,29650.84,KINGERLEE LTD
http://statistics.data.gov.uk/id/local-authority/38,Oxfordshire County Council,"Commissioning, Performance & Quality Ass",Didcot Sports Hall,Joint Authorities,53100,Joint Use Provision,04/11/2010,7000365050,573.61,Knowles and Son
http://statistics.data.gov.uk/id/local-authority/38,Oxfordshire County Council,Property Services,1b Crawley Rd Witney,Scheduled R & M,21004,Windows & Doors Planned,04/11/2010,7000365057,3620,R. Knight Building
http://statistics.data.gov.uk/id/local-authority/38,Oxfordshire County Council,Property Services,Corporate Properties,Urgent R & M,21104,Windows & Doors (Urgent),04/11/2010,7000365061,1764.06,KNOWLES AND SON (OXFORD) LTD
http://statistics.data.gov.uk/id/local-authority/38,Oxfordshire County Council,Shared Service Centre,Kirtlington CE,Urgent R & M,21104,Windows & Doors (Urgent),04/11/2010,7000365065,1520,Windrush Door and Window Services
http://statistics.data.gov.uk/id/local-authority/38,Oxfordshire County Council,SCS Pooled Budgets,OP Pool Continuing Care Home Support,Other Agency and Contracted Services,57302,Home Support (Ext) Continuing Care,05/11/2010,3350211205,740,EUROPEAN NURSING AGENCY LTD
http://statistics.data.gov.uk/id/local-authority/38,Oxfordshire County Council,Early Years & Family Support,Supp Graduate Leader,"Equipment, Furniture and Materials",41100,Educational Supplies,05/11/2010,3350211231,820,Sunshine Centre
http://statistics.data.gov.uk/id/local-authority/38,Oxfordshire County Council,Early Years & Family Support,Supp Graduate Leader,"Equipment, Furniture and Materials",41100,Educational Supplies,05/11/2010,3350211231,3028,Sunshine Centre
http://statistics.data.gov.uk/id/local-authority/38,Oxfordshire County Council,Early Years & Family Support,Supp Graduate Leader,"Equipment, Furniture and Materials",41100,Educational Supplies,05/11/2010,3350211234,1048,BROADHILL PRE-SCHOOL
http://statistics.data.gov.uk/id/local-authority/38,Oxfordshire County Council,SCS Pooled Budgets,PD Pool Continuing Care Home Support,Other Agency and Contracted Services,57302,Home Support (Ext) Continuing Care,05/11/2010,3350211263,2321.73,Total Home Care Solutions
http://statistics.data.gov.uk/id/local-authority/38,Oxfordshire County Council,SCS Pooled Budgets,PD Pool Continuing Care Home Support,Other Agency and Contracted Services,57302,Home Support (Ext) Continuing Care,05/11/2010,3350211264,3184.92,Radis Community Care
http://statistics.data.gov.uk/id/local-authority/38,Oxfordshire County Council,SCS Pooled Budgets,PD Pool Continuing Care Home Support,Other Agency and Contracted Services,57302,Home Support (Ext) Continuing Care,05/11/2010,3350211296,757.5,EUROPEAN NURSING AGENCY LTD
http://statistics.data.gov.uk/id/local-authority/38,Oxfordshire County Council,STD Insurance,Other,Insurance Permiums Holding A/c,Z5846,Insurance Premiums Holding Account External Premiu,05/11/2010,3350211326,619.07,Zurich Municipal Management
http://statistics.data.gov.uk/id/local-authority/38,Oxfordshire County Council,Highways & Transport,Public Transport Development Plan,Private Contractors,56400,Major Contracts,05/11/2010,3350211560,946.63,Southern Electric Contracting Ltd.
http://statistics.data.gov.uk/id/local-authority/38,Oxfordshire County Council,Highways & Transport,"Electrical NP Rds, Street Lighting",Private Contractors,56400,Major Contracts,05/11/2010,3350211561,487.96,Southern Electric Contracting Ltd.
http://statistics.data.gov.uk/id/local-authority/38,Oxfordshire County Council,Highways & Transport,"Electrical NP Rds, Street Lighting",Private Contractors,56400,Major Contracts,05/11/2010,3350211562,750.45,Southern Electric Contracting Ltd.
http://statistics.data.gov.uk/id/local-authority/38,Oxfordshire County Council,Highways & Transport,"Electrical NP Rds, Street Lighting",Private Contractors,56400,Major Contracts,05/11/2010,3350211563,1366.15,Southern Electric Contracting Ltd.
http://statistics.data.gov.uk/id/local-authority/38,Oxfordshire County Council,Early Years & Family Support,Learner Grants,"Equipment, Furniture and Materials",41100,Educational Supplies,05/11/2010,3350211589,1000,Tiny Toes Day Nursery
http://statistics.data.gov.uk/id/local-authority/38,Oxfordshire County Council,Early Years & Family Support,Learner Grants,"Equipment, Furniture and Materials",41100,Educational Supplies,05/11/2010,3350211590,924,Hunsdon House Nursery School
http://statistics.data.gov.uk/id/local-authority/38,Oxfordshire County Council,SCS Other Cost Centres,Social Services Balance Sheet Default,Balance Sheet Banking,B1683,SS Payments A/C No 0165471,05/11/2010,3350211592,678.83,REDACTED PERSONAL DATA
http://statistics.data.gov.uk/id/local-authority/38,Oxfordshire County Council,Early Years & Family Support,Nursery Fixed Costs,Capital Expenditure,CCDA1,Third Party / Grant Payments,05/11/2010,3350211604,30000,Little Pippins Pre-School
http://statistics.data.gov.uk/id/local-authority/38,Oxfordshire County Council,SCS Pooled Budgets,OP Pool Continuing Care Home Support,Other Agency and Contracted Services,57302,Home Support (Ext) Continuing Care,05/11/2010,3350211605,712.2,Secure Care (Oxford) Ltd
http://statistics.data.gov.uk/id/local-authority/38,Oxfordshire County Council,SCS Pooled Budgets,LD Carers Grants,Other Agency and Contracted Services,57300,Home Support (Ext) OS&HCD,05/11/2010,3350211609,1122.55,The Mill
http://statistics.data.gov.uk/id/local-authority/38,Oxfordshire County Council,Highways & Transport,Highways General Operational,Miscellaneous Expenses,48200,Miscellaneous Insura,05/11/2010,3350211610,500,REDACTED PERSONAL DATA
http://statistics.data.gov.uk/id/local-authority/38,Oxfordshire County Council,SCS Pooled Budgets,LD Team budget (CMPB) North,Other Agency and Contracted Services,57300,Home Support (Ext) OS&HCD,05/11/2010,3350211626,952.14,Bright Yellow Group Plc
http://statistics.data.gov.uk/id/local-authority/38,Oxfordshire County Council,Early Years & Family Support,Fam Supp City 2,Temporary Staff (NJC Green Book),16717,Tempry Staff (NJC) Agency Staff,05/11/2010,4100369299,1020,Social Work 2000 Ltd
http://statistics.data.gov.uk/id/local-authority/38,Oxfordshire County Council,Early Years & Family Support,Fam Supp City 2,Temporary Staff (NJC Green Book),16717,Tempry Staff (NJC) Agency Staff,05/11/2010,4100373526,1258,Social Work 2000 Ltd
http://statistics.data.gov.uk/id/local-authority/38,Oxfordshire County Council,Early Years & Family Support,Fam Supp City 2,Temporary Staff (NJC Green Book),16717,Tempry Staff (NJC) Agency Staff,05/11/2010,4100376885,1258,Social Work 2000 Ltd
http://statistics.data.gov.uk/id/local-authority/38,Oxfordshire County Council,Corporate Core Transformation,Audit Services,Services,44500,Other Hired & Contra,05/11/2010,4100380860,1050,Supplier Audit Services
http://statistics.data.gov.uk/id/local-authority/38,Oxfordshire County Council,Early Years & Family Support,East St Ctr-Premises,"Equipment, Furniture and Materials",40101,Furniture & Equipment,05/11/2010,4100381025,476,Associated Contact Blinds Ltd
http://statistics.data.gov.uk/id/local-authority/38,Oxfordshire County Council,Social & Community Services,Special Account,"Equipment, Furniture and Materials",41602,Audio Video Material,05/11/2010,4100381045,460,Soundtrack Productions
http://statistics.data.gov.uk/id/local-authority/38,Oxfordshire County Council,Social & Community Services,Trading Standards,Services,44500,Other Hired & Contra,05/11/2010,4100382006,2180,GEMS (SW) Limited
http://statistics.data.gov.uk/id/local-authority/38,Oxfordshire County Council,Early Years & Family Support,Fam Supp City 2,Temporary Staff (NJC Green Book),16717,Tempry Staff (NJC) Agency Staff,05/11/2010,4100382819,1258,Social Work 2000 Ltd
http://statistics.data.gov.uk/id/local-authority/38,Oxfordshire County Council,Children & Young People,Service Support,Expenses,46403,Course / Tuition Fee,05/11/2010,4100383351,1150,Lifetrain UK Ltd
http://statistics.data.gov.uk/id/local-authority/38,Oxfordshire County Council,Shared Service Centre,Central Team SSC,Fixtures and Fittings,26200,Fixtures & Fittings,05/11/2010,4100383878,595.86,Canon (UK) Ltd
http://statistics.data.gov.uk/id/local-authority/38,Oxfordshire County Council,Social & Community Services,Trading Standards - Operations,Training Expenses,19990,Other Training Expenses,05/11/2010,4100384794,1320,Trading Standards Institute
http://statistics.data.gov.uk/id/local-authority/38,Oxfordshire County Council,Social & Community Services,County Print Finishers,"Printing,Stationery and Gen Office Exp",43500,Printing & Duplicating,05/11/2010,4100385443,613,SGS United Kingdom Ltd
http://statistics.data.gov.uk/id/local-authority/38,Oxfordshire County Council,Social & Community Services,Bucks Gypsy & Travellers Services,Energy Costs,23100,Electricity,05/11/2010,4100385728,1083.28,Npower Ltd
http://statistics.data.gov.uk/id/local-authority/38,Oxfordshire County Council,Social & Community Services,Bucks Gypsy & Travellers Services,Energy Costs,23100,Electricity,05/11/2010,4100385735,1915.28,Npower Ltd
http://statistics.data.gov.uk/id/local-authority/38,Oxfordshire County Council,"Commissioning, Performance & Quality Ass",School workforce gra,Training Expenses,19981,Qualification Training - Fees,05/11/2010,4100385881,500,Oneida Consultancy Limited
http://statistics.data.gov.uk/id/local-authority/38,Oxfordshire County Council,Early Years & Family Support,Fam Supp City 2,Temporary Staff (NJC Green Book),16717,Tempry Staff (NJC) Agency Staff,05/11/2010,4100385967,1258,Social Work 2000 Ltd
http://statistics.data.gov.uk/id/local-authority/38,Oxfordshire County Council,Shared Service Centre,8 Leisure Travel & Tourism,Expenses,46901,Licenses,05/11/2010,4100386357,2372.49,Phonographic Performance Ltd
http://statistics.data.gov.uk/id/local-authority/38,Oxfordshire County Council,Shared Service Centre,9 Arts Media and Publishing,Expenses,46901,Licenses,05/11/2010,4100386357,1330.53,Phonographic Performance Ltd
http://statistics.data.gov.uk/id/local-authority/38,Oxfordshire County Council,Early Years & Family Support,Thornbury - Open,Capital Expenditure,CCBA1,Other hired & contracted services - General,05/11/2010,4100386603,1000,TM Warner & CO Client
http://statistics.data.gov.uk/id/local-authority/38,Oxfordshire County Council,Corporate Core Strategy,Legal Services,Expenses,46500,Legal Fees & Exp,05/11/2010,4100386718,2480,Miss Frances Harris
http://statistics.data.gov.uk/id/local-authority/38,Oxfordshire County Council,Early Years & Family Support,Nash Court,"Printing,Stationery and Gen Office Exp",43800,Photocopier rental,05/11/2010,4100387197,1004.02,Canon (UK) Ltd
http://statistics.data.gov.uk/id/local-authority/38,Oxfordshire County Council,SCS Pooled Budgets,PD Comm Supp Budgt - Bicester/Kidlington,Other Agency and Contracted Services,57300,Home Support (Ext) OS&HCD,05/11/2010,4100387267,2878.68,Charterville Care At Home
http://statistics.data.gov.uk/id/local-authority/38,Oxfordshire County Council,Shared Service Centre,Adult Social Care & Children's Services,Expenses,46403,Course / Tuition Fee,05/11/2010,4100387535,765,Abingdon Four Pillars Hotel
http://statistics.data.gov.uk/id/local-authority/38,Oxfordshire County Council,Shared Service Centre,Adult Social Care & Children's Services,Expenses,46403,Course / Tuition Fee,05/11/2010,4100387535,434.04,Abingdon Four Pillars Hotel
http://statistics.data.gov.uk/id/local-authority/38,Oxfordshire County Council,Social & Community Services,Social Care Reform Grant,Temporary Staff (NJC Green Book),16717,Tempry Staff (NJC) Agency Staff,05/11/2010,4100387563,1257.63,Piers Meadows Recruitment
http://statistics.data.gov.uk/id/local-authority/38,Oxfordshire County Council,Shared Service Centre,Adult Social Care & Children's Services,Training Expenses,19990,Other Training Expenses,05/11/2010,4100387584,2129.5,Barbara Firth
http://statistics.data.gov.uk/id/local-authority/38,Oxfordshire County Council,Early Years & Family Support,East St Ctr-Premises,"Printing,Stationery and Gen Office Exp",43700,Stationery,05/11/2010,4100387860,1060.5,Lyreco UK Ltd
http://statistics.data.gov.uk/id/local-authority/38,Oxfordshire County Council,Social & Community Services,Stowford House,"Printing,Stationery and Gen Office Exp",43700,Stationery,05/11/2010,4100387946,525.79,Lyreco UK Ltd
http://statistics.data.gov.uk/id/local-authority/38,Oxfordshire County Council,Early Years & Family Support,Fam Supp City 2,Temporary Staff (NJC Green Book),16717,Tempry Staff (NJC) Agency Staff,05/11/2010,4100387960,1258,Social Work 2000 Ltd
http://statistics.data.gov.uk/id/local-authority/38,Oxfordshire County Council,Sustainable Development,Rights of Way Maintenance,Services,44500,Other Hired & Contra,05/11/2010,4100388289,2700,Kavan Ring
http://statistics.data.gov.uk/id/local-authority/38,Oxfordshire County Council,Children & Young People,Statementing Miscellaneous,Expenses,46200,Conference Expenses,05/11/2010,4100388315,750,M.e. and S.P. Dorsey
http://statistics.data.gov.uk/id/local-authority/38,Oxfordshire County Council,Corporate Core Transformation,Future Jobs Fund,Services,44500,Other Hired & Contra,05/11/2010,4100388325,750,Oxford Inspires
http://statistics.data.gov.uk/id/local-authority/38,Oxfordshire County Council,Corporate Core Strategy,Coroner,Expenses,46702,Post Mortems and Rep,05/11/2010,4100388924,555,LGC Forensics
http://statistics.data.gov.uk/id/local-authority/38,Oxfordshire County Council,Corporate Core Strategy,Coroner,Expenses,46702,Post Mortems and Rep,05/11/2010,4100388985,785,LGC Forensics
http://statistics.data.gov.uk/id/local-authority/38,Oxfordshire County Council,Social & Community Services,Soc&Comm Ser Learning&Development Budget,Expenses,46200,Conference Expenses,05/11/2010,4100390275,5568,Town and Country Planning Assoc
http://statistics.data.gov.uk/id/local-authority/38,Oxfordshire County Council,Highways Management,Error Suspense,Capital Expenditure,CCAA1,Main Contract - General,05/11/2010,4100390998,7550,Drayton Construction Ltd
http://statistics.data.gov.uk/id/local-authority/38,Oxfordshire County Council,SCS Pooled Budgets,IAES - South Locality,Direct Transport Costs,31402,Other vehicle runnin,05/11/2010,4100391081,1065.75,The Village Motor Company Limited
http://statistics.data.gov.uk/id/local-authority/38,Oxfordshire County Council,Early Years & Family Support,Looked After North,Voluntary Associations,55100,Fees to Non Maintain,05/11/2010,4100391088,848.85,Kids Unlimited - Waterways
http://statistics.data.gov.uk/id/local-authority/38,Oxfordshire County Council,Shared Service Centre,Adult Social Care & Children's Services,Training Expenses,19990,Other Training Expenses,05/11/2010,4100391118,650,Arthritis Care South England
http://statistics.data.gov.uk/id/local-authority/38,Oxfordshire County Council,Property Services,Samuelson House,Fixtures and Fittings,26100,Security,05/11/2010,4100391122,1782.79,Securipol Limited
http://statistics.data.gov.uk/id/local-authority/38,Oxfordshire County Council,Property Services,Samuelson House,Fixtures and Fittings,26100,Security,05/11/2010,4100391125,1782.79,Securipol Limited
http://statistics.data.gov.uk/id/local-authority/38,Oxfordshire County Council,Property Services,Speedwell House,Cleaning & Domestic Supplies,27100,Cleaning Materials &,05/11/2010,4100391130,815,PHS Group Ltd
http://statistics.data.gov.uk/id/local-authority/38,Oxfordshire County Council,"Commissioning, Performance & Quality Ass",School workforce gra,Training Expenses,19981,Qualification Training - Fees,05/11/2010,4100391138,571.2,EDEXCEL LIMITED
http://statistics.data.gov.uk/id/local-authority/38,Oxfordshire County Council,"Commissioning, Performance & Quality Ass",Family Information Service,Public Transport,34302,Staff Bus/Taxi/Air Fares,05/11/2010,4100391139,1140,Oxford Contract Vehicles
http://statistics.data.gov.uk/id/local-authority/38,Oxfordshire County Council,SCS Pooled Budgets,IAES - North Locality,Temporary Staff (NJC Green Book),16717,Tempry Staff (NJC) Agency Staff,05/11/2010,4100391191,1073,Randstad Care Ltd
http://statistics.data.gov.uk/id/local-authority/38,Oxfordshire County Council,Early Years & Family Support,Step into Training,Expenses,46403,Course / Tuition Fee,05/11/2010,4100391214,630,Baptist House Ltd
http://statistics.data.gov.uk/id/local-authority/38,Oxfordshire County Council,Sustainable Development,Composting of Food & Green Waste,Private Contractors,56604,WCA Green Waste Comp,05/11/2010,4100391219,21662.07,Agrivert (Ardley) Limited
http://statistics.data.gov.uk/id/local-authority/38,Oxfordshire County Council,Sustainable Development,Contract Management,Private Contractors,56400,Major Contracts,05/11/2010,4100391220,7588.54,Viridor Waste Management Ltd
http://statistics.data.gov.uk/id/local-authority/38,Oxfordshire County Council,Property Services,Witney Church Green C/T House,Rent and Rates,24600,Council Tax Payments,05/11/2010,4100391287,934,West Oxfordshire District Council
http://statistics.data.gov.uk/id/local-authority/38,Oxfordshire County Council,Social & Community Services,Music Unallocable,"Equipment, Furniture and Materials",41619,Musical Instruments,05/11/2010,4100391303,2088,Normans Musical Instruments UK
http://statistics.data.gov.uk/id/local-authority/38,Oxfordshire County Council,Social & Community Services,Music Unallocable,"Equipment, Furniture and Materials",41619,Musical Instruments,05/11/2010,4100391303,693,Normans Musical Instruments UK
http://statistics.data.gov.uk/id/local-authority/38,Oxfordshire County Council,Social & Community Services,Music Unallocable,"Equipment, Furniture and Materials",41619,Musical Instruments,05/11/2010,4100391304,594,Normans Musical Instruments UK
http://statistics.data.gov.uk/id/local-authority/38,Oxfordshire County Council,Social & Community Services,Music Unallocable,"Equipment, Furniture and Materials",41619,Musical Instruments,05/11/2010,4100391305,693,Normans Musical Instruments UK
http://statistics.data.gov.uk/id/local-authority/38,Oxfordshire County Council,Early Years & Family Support,Step into Training,Expenses,46403,Course / Tuition Fee,05/11/2010,4100391309,630,Baptist House Ltd
http://statistics.data.gov.uk/id/local-authority/38,Oxfordshire County Council,Sustainable Development,Landfill Non-Household,Private Contractors,56602,Residual Waste,05/11/2010,4100391321,4189.91,Viridor Waste Management Ltd
http://statistics.data.gov.uk/id/local-authority/38,Oxfordshire County Council,Sustainable Development,Other Household,Private Contractors,56602,Residual Waste,05/11/2010,4100391321,5214.25,Viridor Waste Management Ltd
http://statistics.data.gov.uk/id/local-authority/38,Oxfordshire County Council,Sustainable Development,Other Non-Household,Private Contractors,56602,Residual Waste,05/11/2010,4100391321,490,Viridor Waste Management Ltd
http://statistics.data.gov.uk/id/local-authority/38,Oxfordshire County Council,Sustainable Development,Other Household,Other Agency and Contracted Services,59100,Landfill Tax,05/11/2010,4100391321,10135.68,Viridor Waste Management Ltd
http://statistics.data.gov.uk/id/local-authority/38,Oxfordshire County Council,Sustainable Development,Other Household,Private Contractors,56602,Residual Waste,05/11/2010,4100391323,22400.35,Viridor Waste Management Ltd
http://statistics.data.gov.uk/id/local-authority/38,Oxfordshire County Council,Sustainable Development,Other Household,Private Contractors,56602,Residual Waste,05/11/2010,4100391323,431.41,Viridor Waste Management Ltd
http://statistics.data.gov.uk/id/local-authority/38,Oxfordshire County Council,Sustainable Development,Other Household,Private Contractors,56602,Residual Waste,05/11/2010,4100391323,496.27,Viridor Waste Management Ltd
http://statistics.data.gov.uk/id/local-authority/38,Oxfordshire County Council,Sustainable Development,Other Household,Other Agency and Contracted Services,59100,Landfill Tax,05/11/2010,4100391323,42073.92,Viridor Waste Management Ltd
